{"text_format":"1","workbook":"xlsx","n_sheets":7,"sheets":["Notes","MDI Calculator","MDI Calculator (data)","Lookup Tables (data)","Weather Stations (data)","MDI Farmer Rates (data)","Properties (data)"],"not_rendered":{"charts":0,"images":3,"macros":1,"external_links":0,"defined_names":34,"comments":0,"pivot_tables":0},"unopened":[],"bounds":{"document_bytes":16777216,"sheet_cells":100000,"rows_first":2000,"rows_last":500,"rows_between":2000,"halvings":0,"cell_chars":16384,"cell_head_chars":4096},"cells_cut":0,"cells_raw":0,"read":"whole","date_system":"1900"}

{"sheet":"Notes","index":0,"n_rows":4,"n_cols":10,"rows_kept":4,"cut":false,"hidden":false,"merged":[[0,1,0,10],[1,1,1,10],[2,9,3,10]]}
[null,"Moisture Deficiency Insurance (MDI)  Coverage and Premium Calculator"]
[]
[null,null,null,null,null,null,null,null,null,{"$f":"Crop_Year","v":2024}]
[null,null,null,null,null,null,null,null,"Crop Year"]

{"sheet":"MDI Calculator","index":1,"n_rows":35,"n_cols":14,"rows_kept":35,"cut":false,"hidden":false,"merged":[[34,2,36,12],[0,1,0,14],[10,9,10,13],[18,9,18,12],[2,2,2,4],[4,2,4,4],[6,2,6,4],[11,2,11,4],[18,2,18,3],[16,16377,17,16381],[25,9,25,10],[27,9,27,12],[27,2,27,4],[25,11,25,12],[16,9,17,12],[25,2,25,5]]}
[null,{"$f":"\"Moisture Deficiency Insurance  (MDI) Coverage and Premium Calculator \" & Crop_Year","v":"Moisture Deficiency Insurance  (MDI) Coverage and Premium Calculator 2024"}]
[]
[null,null,"Select Pasture Risk Area"]
[]
[null,null,"Select Type of Pasture"]
[]
[null,null,"Select Weather Station(s)"]
[]
[]
[]
[null,null,null,null,null,null,null,null,null,"Price Option"]
[null,null,"Insurance Coverage lb/ac",null,null,null,{"$f":"IF(ISERROR(HLOOKUP('MDI Calculator (data)'!Q29,'MDI Calculator (data)'!V4:Z39,'MDI Calculator (data)'!O3,FALSE)*0.8),\"\",HLOOKUP('MDI Calculator (data)'!Q29,'MDI Calculator (data)'!V4:Z39,'MDI Calculator (data)'!O3,FALSE)*0.8)","v":""},null,null,{"$f":"LOW_PRICE_OPTION*2000","v":150},"/Ton",null,{"$f":"HIGH_PRICE_OPTION*2000","v":194},"/Ton"]
[null,null,null,null,null,null,null,null,null,{"$f":"LOW_PRICE_OPTION","v":7.4999999999999997E-2},"/Lbs",null,{"$f":"HIGH_PRICE_OPTION","v":9.7000000000000003E-2},"/Lbs"]
[]
[null,null,null,null,null,null,null,null,null,{"$f":"IF(ISBLANK(G12),\"\",IFERROR($G$12*J13,\"\"))","v":""},null,null,{"$f":"IF(ISBLANK(G12),\"\",IFERROR($G$12*M13,\"\"))","v":""}]
[null,null,null,null,null,null,null,null,null,"\nLiability/Acre"]
[null,null,null,null,null,null,null,null,null,"Dollars Insured\nLiability/Acre"]
[null,null,null,null,"Weighting"]
[null,null,"Option",null,"M/J/J/A",null,null,null,null,"Premium $/Acre"]
[null,null,"A",{"$f":"'MDI Calculator (data)'!O13","v":"Short"},{"$f":"VLOOKUP(C20,'MDI Calculator (data)'!S24:T27,2,FALSE)","v":"40/40/20/00"},null,null,null,null,{"$f":"IFERROR($J$15*'MDI Calculator (data)'!Q23*0.01,\"\")","v":""},null,null,{"$f":"IFERROR($M$15*'MDI Calculator (data)'!Q23*0.01,\"\")","v":""}]
[null,null,"B",{"$f":"'MDI Calculator (data)'!O14","v":"Short"},{"$f":"VLOOKUP(C21,'MDI Calculator (data)'!S25:T27,2,FALSE)","v":"40/30/30/00"},null,null,null,null,{"$f":"IFERROR($J$15*'MDI Calculator (data)'!Q24*0.01,\"\")","v":""},null,null,{"$f":"IFERROR($M$15*'MDI Calculator (data)'!Q24*0.01,\"\")","v":""}]
[null,null,"C",{"$f":"'MDI Calculator (data)'!O15","v":"Long"},{"$f":"VLOOKUP(C22,'MDI Calculator (data)'!S26:T28,2,FALSE)","v":"30/30/20/20"},null,null,null,null,{"$f":"IFERROR($J$15*'MDI Calculator (data)'!Q25*0.01,\"\")","v":""},null,null,{"$f":"IFERROR($M$15*'MDI Calculator (data)'!Q25*0.01,\"\")","v":""}]
[null,null,"D",{"$f":"'MDI Calculator (data)'!O16","v":"Long"},{"$f":"VLOOKUP(C23,'MDI Calculator (data)'!S27:T29,2,FALSE)","v":"25/25/25/25"},null,null,null,null,{"$f":"IFERROR($J$15*'MDI Calculator (data)'!Q26*0.01,\"\")","v":""},null,null,{"$f":"IFERROR($M$15*'MDI Calculator (data)'!Q26*0.01,\"\")","v":""}]
[]
[null,null,"What if ?",null,null,null,null,"May","June","July",null,null,"Aug"]
[null,null,"Enter Estimate of Actual as a % of Normal"]
[]
[null,null,"Option",null,null,null,null,null,null,"$ Award /Acre"]
[null,null,{"$f":"C20","v":"A"},{"$f":"'MDI Calculator (data)'!O13","v":"Short"},null,null,null,null,null,{"$f":"IFERROR(VLOOKUP($C29,'MDI Calculator (data)'!$B$20:$J$35,8,FALSE),\"\")","v":""},null,null,{"$f":"IFERROR(VLOOKUP($C29,'MDI Calculator (data)'!$B$20:$J$35,9,FALSE),\"\")","v":""}]
[null,null,{"$f":"C21","v":"B"},{"$f":"'MDI Calculator (data)'!O14","v":"Short"},null,null,null,null,null,{"$f":"IFERROR(VLOOKUP($C30,'MDI Calculator (data)'!$B$20:$J$35,8,FALSE),\"\")","v":""},null,null,{"$f":"IFERROR(VLOOKUP($C30,'MDI Calculator (data)'!$B$20:$J$35,9,FALSE),\"\")","v":""}]
[null,null,{"$f":"C22","v":"C"},{"$f":"'MDI Calculator (data)'!O15","v":"Long"},null,null,null,null,null,{"$f":"IFERROR(VLOOKUP($C31,'MDI Calculator (data)'!$B$20:$J$35,8,FALSE),\"\")","v":""},null,null,{"$f":"IFERROR(VLOOKUP($C31,'MDI Calculator (data)'!$B$20:$J$35,9,FALSE),\"\")","v":""}]
[null,null,{"$f":"C23","v":"D"},{"$f":"'MDI Calculator (data)'!O16","v":"Long"},null,null,null,null,null,{"$f":"IFERROR(VLOOKUP($C32,'MDI Calculator (data)'!$B$20:$J$35,8,FALSE),\"\")","v":""},null,null,{"$f":"IFERROR(VLOOKUP($C32,'MDI Calculator (data)'!$B$20:$J$35,9,FALSE),\"\")","v":""}]
[]
[null,null,"DISCLAIMER:"]
[null,null,"This calculator is for your convenience and is intended to estimate the cost to purchase Moisture Deficiency Insurance based on information that you enter.  When results from this calculator do not reflect what you are billed if you purchase Moisture Deficiency Insurance, the Statement of Coverage and Premium will take precedence."]

{"sheet":"MDI Calculator (data)","index":2,"n_rows":300,"n_cols":53,"rows_kept":300,"cut":false,"hidden":true,"merged":[[0,1,0,9],[35,7,35,9]]}
[null,null,null,null,null,null,null,null,null,null,null,null,null,null,null,null,null,null,null,null,null,{"$f":"\"MDI Normals \" & Crop_Year","v":"MDI Normals 2024"}]
[null,null,null,null,"Weighting",null,null,null,null,null,null,null,null,null,null,null,null,null,null,null,null,{"$f":"R29","v":"Pasture Native"},{"$f":"R30","v":"Pasture Improved"},{"$f":"R31","v":"Bush 61-70%"},{"$f":"R32","v":"Bush 71-80%"},{"$f":"R33","v":"Bush 81+%"}]
[null,null,null,"A-OLD",30,30,20,20,0,null,null,null,null,null,1,{"$f":"FRA_link-1","v":0},"<FRA link",null,null,null,"FRA"]
[null,null,null,"B-OLD",20,30,30,20,0,null,null,null,null,null,null,null,null,null,null,null,null,1,2,3,4,5,null,null,null,null,"Modification History","Updated by","Description of Update","Status"]
[null,null,null,"C-OLD",20,20,20,20,20,null,null,null,null,null,null,null,null,null,null,null,1,876,1260,657,438,219,null,null,null,null,"2020-11-19","Martine West","Verified correct weather stations are displaying","Completed"]
[null,null,null,"D-OLD",10,20,30,30,10,null,null,null,null,null,null,null,null,null,null,null,2,480,703,360,240,120,null,null,null,null,"2023-01-08","J. Baumgartner","Updated the MIDI mornals."]
[null,null,null,"E-OLD",0,40,40,20,0,null,null,null,null,null,null,2,"Split",null,null,null,3,696,874,522,348,174]
[null,null,null,"F-OLD",0,40,30,30,0,null,null,null,null,null,null,null,null,null,null,null,4,876,1260,657,438,219]
[null,null,null,"G-OLD",0,30,30,20,20,null,null,null,null,null,null,null,null,null,null,null,5,1123,1361,842,562,281]
[null,null,null,"H-OLD",0,25,25,25,25,null,null,null,null,null,null,null,null,null,null,null,6,480,703,360,240,120]
[null,null,null,"I-OLD",30,30,20,20,0,null,null,null,null,null,null,null,null,null,null,null,7,480,703,360,240,120]
[null,null,null,"J-OLD",20,30,30,20,0,null,null,null,null,null,null,null,null,null,"A-OLD","30/30/20/20/00",8,480,703,360,240,120]
[null,null,null,"K-OLD",20,20,20,20,20,null,null,null,null,null,"Short",null,null,null,"B-OLD","20/30/30/20/00",9,480,703,360,240,120]
[null,null,null,"L-OLD",10,20,30,30,10,null,null,null,null,null,"Short",null,null,null,"C-OLD","20/20/20/20/20",10,696,874,522,348,174]
[null,null,null,"A",0,40,40,20,0,null,null,null,null,null,"Long",null,null,null,"D-OLD","10/20/30/30/10",11,876,1260,657,438,219]
[null,null,null,"B",0,40,30,30,0,null,null,null,null,null,"Long",null,null,null,"E-OLD","00/40/40/20/00",12,1123,1361,842,562,281]
[null,null,null,"C",0,30,30,20,20,null,null,null,null,null,null,null,null,null,"F-OLD","00/40/30/30/00",13,696,874,522,348,174]
[null,null,null,"D",0,25,25,25,25,null,null,null,null,null,null,null,null,null,"G-OLD","00/30/30/20/20",14,696,874,522,348,174]
[null,null,"Full % of normal","S1 % of normal","S2  % of normal","Payrate","S1","S2",{"$f":"'MDI Calculator'!J15","v":""},{"$f":"'MDI Calculator'!M15","v":""},null,null,{"$f":"VLOOKUP($P$35,Rate,$O$35-18,FALSE)","v":{"$error":"#N/A"}},null,null,null,null,null,"H-OLD","00/25/25/25/25",15,696,874,522,348,174]
[null,"A-OLD",{"$f":"(80*E3+M_100*F3+J_70*G3+J_30*H3+A_30*I3)*0.0001","v":0.24000000000000002},null,null,{"$f":"VLOOKUP(C20,MDI_full_lookup_table,2)","v":100},null,null,{"$f":"$I$19*F20*0.01","v":{"$error":"#VALUE!"}},{"$f":"$J$19*F20*0.01","v":{"$error":"#VALUE!"}},null,null,null,null,null,null,null,null,"I-OLD","30/30/20/20/00",16,696,874,522,348,174]
[null,"B-OLD",{"$f":"(80*E4+M_100*F4+J_70*G4+J_30*H4+A_30*I4)*0.0001","v":0.16},null,null,{"$f":"VLOOKUP(C21,MDI_full_lookup_table,2)","v":100},null,null,{"$f":"$I$19*F21*0.01","v":{"$error":"#VALUE!"}},{"$f":"$J$19*F21*0.01","v":{"$error":"#VALUE!"}},null,null,null,null,"WS rate option",null,null,null,"J-OLD","20/30/30/20/00",17,1123,1361,842,562,281]
[null,"C-OLD",0.16,null,null,100,null,null,{"$error":"#VALUE!"},{"$error":"#VALUE!"},null,null,null,"WS-1","WS-2","WS-3","Average",null,"K-OLD","20/20/20/20/20",18,1123,1361,842,562,281]
[null,"D-OLD",0.08,null,null,100,null,null,{"$error":"#VALUE!"},{"$error":"#VALUE!"},null,null,null,{"$f":"IF(ISNA(VLOOKUP($P$35,Rate,$O$35-18,FALSE)),\"none\",VLOOKUP($P$35,Rate,$O$35-18,FALSE))","v":"none"},{"$f":"IF(ISNA(VLOOKUP($P$36,Rate,$O$35-18,FALSE)),\"none\",VLOOKUP($P$36,Rate,$O$35-18,FALSE))","v":"none"},{"$f":"IF(ISNA(VLOOKUP($P$37,Rate,$O$35-18,FALSE)),\"none\",VLOOKUP($P$37,Rate,$O$35-18,FALSE))","v":"none"},{"$f":"AVERAGE(N23:P23)","v":{"$error":"#DIV/0!"}},null,"L-OLD","10/20/30/30/10",19,1123,1361,842,562,281]
[null,"E-OLD",0,null,null,{"$error":"#N/A"},null,null,{"$error":"#VALUE!"},{"$error":"#VALUE!"},null,null,null,{"$f":"IF(ISNA(VLOOKUP($P35,Rate,$O36-18,FALSE)),\"none\",VLOOKUP($P35,Rate,$O36-18,FALSE))","v":"none"},{"$f":"IF(ISNA(VLOOKUP($P$36,Rate,O36-18,FALSE)),\"none\",VLOOKUP($P$36,Rate,O36-18,FALSE))","v":"none"},{"$f":"IF(ISNA(VLOOKUP($P$37,Rate,$O36-18,FALSE)),\"none\",VLOOKUP($P$37,Rate,$O36-18,FALSE))","v":"none"},{"$f":"AVERAGE(N24:P24)","v":{"$error":"#DIV/0!"}},null,"A","40/40/20/00",20,696,874,522,348,174]
[null,"F-OLD",0,null,null,{"$error":"#N/A"},null,null,{"$error":"#VALUE!"},{"$error":"#VALUE!"},null,null,null,{"$f":"IF(ISNA(VLOOKUP($P35,Rate,$O37-18,FALSE)),\"none\",VLOOKUP($P35,Rate,$O37-18,FALSE))","v":"none"},{"$f":"IF(ISNA(VLOOKUP($P$36,Rate,$O$37-18,FALSE)),\"none\",VLOOKUP($P$36,Rate,$O$37-18,FALSE))","v":"none"},{"$f":"IF(ISNA(VLOOKUP($P37,Rate,$O37-18,FALSE)),\"none\",VLOOKUP($P37,Rate,$O37-18,FALSE))","v":"none"},{"$f":"AVERAGE(N25:P25)","v":{"$error":"#DIV/0!"}},null,"B","40/30/30/00",21,696,874,522,348,174]
[null,"G-OLD",0,null,null,{"$error":"#N/A"},null,null,{"$error":"#VALUE!"},{"$error":"#VALUE!"},null,null,null,{"$f":"IF(ISNA(VLOOKUP($P35,Rate,$O38-18,FALSE)),\"none\",VLOOKUP($P35,Rate,$O38-18,FALSE))","v":"none"},{"$f":"IF(ISNA(VLOOKUP($P$36,Rate,$O$38-18,FALSE)),\"none\",VLOOKUP($P$36,Rate,$O$38-18,FALSE))","v":"none"},{"$f":"IF(ISNA(VLOOKUP($P37,Rate,$O38-18,FALSE)),\"none\",VLOOKUP($P37,Rate,$O38-18,FALSE))","v":"none"},{"$f":"AVERAGE(N26:P26)","v":{"$error":"#DIV/0!"}},null,"C","30/30/20/20",22,876,1260,657,438,219]
[null,"H-OLD",0,null,null,{"$error":"#N/A"},null,null,{"$error":"#VALUE!"},{"$error":"#VALUE!"},null,null,null,null,null,null,null,null,"D","25/25/25/25",23,1123,1361,842,562,281]
[null,"I-OLD",{"$f":"(80*E11+M_100*F11+J_70*G11+J_30*H11+A_30*I11)*0.0001","v":0.24000000000000002},{"$f":"(80*E11+M_100*F11+0.5*(J_70*G11))*0.0001/0.7","v":0.34285714285714292},{"$f":"(J_70*0.5*G11+J_30*H11+A_30*I11)*0.0001/0.3","v":0},100,{"$f":"VLOOKUP(D28,SAT_split_lookup_table,2)","v":100},{"$f":"VLOOKUP(E28,MDI_split_lookup_table,2)","v":{"$error":"#N/A"}},{"$f":"MAX(I20,I37)","v":{"$error":"#VALUE!"}},{"$f":"MAX(J20,J37)","v":{"$error":"#VALUE!"}},null,null,null,null,null,null,null,null,null,null,24,876,1260,657,438,219]
[null,"J-OLD",0.16,{"$f":"(80*E12+M_100*F12+0.5*(J_70*G12))*0.0001/0.65","v":0.24615384615384614},{"$f":"(J_70*0.5*G12+J_30*H12+A_30*I12)*0.0001/0.35","v":0},100,100,{"$error":"#N/A"},{"$f":"MAX(I21,I38)","v":{"$error":"#VALUE!"}},{"$f":"MAX(J21,J38)","v":{"$error":"#VALUE!"}},null,null,null,null,null,1,{"$f":"Type_of_pasture_selected-1","v":0},"Pasture Native",null,null,25,876,1260,657,438,219]
[null,"K-OLD",0.16,{"$f":"(80*E13+M_100*F13+(J_70*G13))*0.0001/0.6","v":0.26666666666666666},{"$f":"(J_30*H13+A_30*I13)*0.0001/0.4","v":0},100,100,{"$error":"#N/A"},{"$error":"#VALUE!"},{"$error":"#VALUE!"},null,null,null,null,null,null,null,"Pasture Improved",null,null,26,696,874,522,348,174]
[null,"L-OLD",0.08,{"$f":"(80*E14+M_100*F14+(J_70*G14))*0.0001/0.6","v":0.13333333333333333},{"$f":"(A_30*H14+A_30*I14)*0.0001/0.4","v":0},100,100,{"$error":"#N/A"},{"$error":"#VALUE!"},{"$error":"#VALUE!"},null,null,null,null,null,null,null,"Bush 61-70%",null,null,27,876,1260,657,438,219]
[null,"A",{"$f":"(80*E15+M_100*F15+J_70*G15+J_30*H15+A_30*I15)*0.0001","v":0},{"$f":"(80*E15+M_100*F15+0.5*(J_70*G15))*0.0001/0.6","v":0},{"$f":"(J_70*0.5*G15+J_30*H15+A_30*I15)*0.0001/0.4","v":0},{"$error":"#N/A"},{"$error":"#N/A"},{"$error":"#N/A"},{"$error":"#VALUE!"},{"$error":"#VALUE!"},null,null,null,null,null,null,null,"Bush 71-80%",null,null,28,876,1260,657,438,219]
[null,"B",0,{"$f":"(80*E16+M_100*F16+0.5*(J_70*G16))*0.0001/0.55","v":0},{"$f":"(J_70*0.5*G16+J_30*H16+A_30*I16)*0.0001/0.45","v":0},{"$error":"#N/A"},{"$error":"#N/A"},{"$error":"#N/A"},{"$error":"#VALUE!"},{"$error":"#VALUE!"},null,null,null,null,null,null,null,"Bush 81+%",null,null,29,876,1260,657,438,219]
[null,"C",0,{"$f":"(80*E17+M_100*F17+(J_70*G17))*0.0001/0.6","v":0},{"$f":"(J_30*H17+A_30*I17)*0.0001/0.4","v":0},{"$error":"#N/A"},{"$error":"#N/A"},{"$error":"#N/A"},{"$error":"#VALUE!"},{"$error":"#VALUE!"},null,null,null,null,"WS row",null,"WS LINK >",null,null,null,30,876,1260,657,438,219]
[null,"D",0,{"$f":"(80*E18+M_100*F18+(J_70*G18))*0.0001/0.5","v":0},{"$f":"(J_30*H18+A_30*I18)*0.0001/0.5","v":0},{"$error":"#N/A"},{"$error":"#N/A"},{"$error":"#N/A"},{"$error":"#VALUE!"},{"$error":"#VALUE!"},null,null,null,null,{"$f":"VLOOKUP('MDI Calculator'!C20,S24:U27,3)","v":20},{"$f":"VLOOKUP(Q35,$P$41:$Q$300,2)","v":0},1,null,null,null,31,876,1260,657,438,219]
[null,null,null,null,null,null,null,"TOTAL SPLIT",null,null,null,null,null,null,{"$f":"VLOOKUP('MDI Calculator'!C21,S24:U27,3)","v":21},{"$f":"VLOOKUP(Q36,$P$41:$Q$300,2)","v":0},1,null,null,null,32,876,1260,657,438,219]
[null,"I-OLD",null,null,null,null,null,0.13279199999999999,{"$f":"($I$19*0.7)*(G28*0.01)+($I$19*0.3)*(H28*0.01)","v":{"$error":"#VALUE!"}},{"$f":"($J$19*0.7)*(G28*0.01)+($J$19*0.3)*(H28*0.01)","v":{"$error":"#VALUE!"}},null,null,null,null,{"$f":"VLOOKUP('MDI Calculator'!C22,S24:U27,3)","v":22},{"$f":"VLOOKUP(Q37,$P$41:$Q$300,2)","v":0},1,null,null,null,33,876,1260,657,438,219]
[null,"J-OLD",null,null,null,null,null,7.7462000000000003E-2,{"$f":"($I$19*0.65)*(G29*0.01)+($I$19*0.35)*(H29*0.01)","v":{"$error":"#VALUE!"}},{"$f":"($J$19*0.65)*(G29*0.01)+($J$19*0.35)*(H29*0.01)","v":{"$error":"#VALUE!"}},null,null,null,null,{"$f":"VLOOKUP('MDI Calculator'!C23,S24:U27,3)","v":23},{"$f":"VLOOKUP(Q38,$P$41:$Q$300,2)","v":"Atlee"},10,"Are these being used?",null,null,34,876,1260,657,438,219]
[null,"K-OLD",null,null,null,null,null,1.1508640000000001,{"$f":"($I$19*0.6)*(G30*0.01)+($I$19*0.4)*(H30*0.01)","v":{"$error":"#VALUE!"}},{"$f":"($J$19*0.6)*(G30*0.01)+($J$19*0.4)*(H30*0.01)","v":{"$error":"#VALUE!"}},null,null,null,null,null,null,null,null,null,null,35,876,1260,657,438,219]
[null,"L-OLD",null,null,null,null,null,0.79675200000000002,{"$f":"($I$19*0.6)*(G31*0.01)+($I$19*0.4)*(H31*0.01)","v":{"$error":"#VALUE!"}},{"$f":"($J$19*0.6)*(G31*0.01)+($J$19*0.4)*(H31*0.01)","v":{"$error":"#VALUE!"}},null,null,null,null,null,null,"WS DROPDOWN"]
[null,"A",null,null,null,null,null,0,{"$f":"'MDI Calculator'!J15","v":""},{"$f":"($J$19*0.6)*(G32*0.01)+($J$19*0.4)*(H32*0.01)","v":{"$error":"#VALUE!"}},null,null,null,null,null,1,null,"below formula is how Q42 was filled. Saving in case its needed. Jan26.2024",{"$f":"'Weather Stations (data)'!C3","v":1},{"$f":"'Weather Stations (data)'!D3","v":2},{"$f":"'Weather Stations (data)'!E3","v":3},{"$f":"'Weather Stations (data)'!F3","v":4},{"$f":"'Weather Stations (data)'!G3","v":5},{"$f":"'Weather Stations (data)'!H3","v":6},{"$f":"'Weather Stations (data)'!I3","v":7},{"$f":"'Weather Stations (data)'!J3","v":8},{"$f":"'Weather Stations (data)'!K3","v":9},{"$f":"'Weather Stations (data)'!L3","v":10},{"$f":"'Weather Stations (data)'!M3","v":11},{"$f":"'Weather Stations (data)'!N3","v":12},{"$f":"'Weather Stations (data)'!O3","v":13},{"$f":"'Weather Stations (data)'!P3","v":14},{"$f":"'Weather Stations (data)'!Q3","v":15},{"$f":"'Weather Stations (data)'!R3","v":16},{"$f":"'Weather Stations (data)'!S3","v":17},{"$f":"'Weather Stations (data)'!T3","v":18},{"$f":"'Weather Stations (data)'!U3","v":19},{"$f":"'Weather Stations (data)'!V3","v":20},{"$f":"'Weather Stations (data)'!W3","v":21},{"$f":"'Weather Stations (data)'!X3","v":22},{"$f":"'Weather Stations (data)'!Y3","v":23},{"$f":"'Weather Stations (data)'!Z3","v":24},{"$f":"'Weather Stations (data)'!AA3","v":25},{"$f":"'Weather Stations (data)'!AB3","v":26},{"$f":"'Weather Stations (data)'!AC3","v":27},{"$f":"'Weather Stations (data)'!AD3","v":28},{"$f":"'Weather Stations (data)'!AE3","v":29},{"$f":"'Weather Stations (data)'!AF3","v":30},{"$f":"'Weather Stations (data)'!AG3","v":31},{"$f":"'Weather Stations (data)'!AH3","v":32},{"$f":"'Weather Stations (data)'!AI3","v":33},{"$f":"'Weather Stations (data)'!AJ3","v":34},{"$f":"'Weather Stations (data)'!AK3","v":35}]
[null,"B",null,null,null,null,null,0.199188,{"$f":"($I$19*0.55)*(G33*0.01)+($I$19*0.45)*(H33*0.01)","v":{"$error":"#VALUE!"}},{"$f":"($J$19*0.55)*(G33*0.01)+($J$19*0.45)*(H33*0.01)","v":{"$error":"#VALUE!"}},null,null,null,null,null,2,{"$f":"'Weather Stations (data)'!B4","v":"Abee"},"@IF(@INDEX($S$41:Station_list,P42,$P$3)=0,\"\",INDEX($S$41:Station_list,P42,$P$3))",{"$f":"'Weather Stations (data)'!C28","v":"Aden"},{"$f":"'Weather Stations (data)'!D4","v":"Barnwell"},{"$f":"'Weather Stations (data)'!E4","v":"Ardenville"},{"$f":"'Weather Stations (data)'!F4","v":"Ardenville"},{"$f":"'Weather Stations (data)'!G4","v":"Ardenville"},{"$f":"'Weather Stations (data)'!H4","v":"Acadia Valley"},{"$f":"'Weather Stations (data)'!I4","v":"Acadia Valley"},{"$f":"'Weather Stations (data)'!J4","v":"Atlee"},{"$f":"'Weather Stations (data)'!K4","v":"Atlee"},{"$f":"'Weather Stations (data)'!L4","v":"Ardenville"},{"$f":"'Weather Stations (data)'!M4","v":"Ardenville"},{"$f":"'Weather Stations (data)'!N4","v":"Azure"},{"$f":"'Weather Stations (data)'!O4","v":"Acadia Valley"},{"$f":"'Weather Stations (data)'!P4","v":"Alliance"},{"$f":"'Weather Stations (data)'!Q4","v":"Alliance"},{"$f":"'Weather Stations (data)'!R4","v":"Alliance"},{"$f":"'Weather Stations (data)'!S4","v":"Azure"},{"$f":"'Weather Stations (data)'!T4","v":"Battle River"},{"$f":"'Weather Stations (data)'!U4","v":"Battle River"},{"$f":"'Weather Stations (data)'!V4","v":"Albert Hall"},{"$f":"'Weather Stations (data)'!W4","v":"Albert Hall"},{"$f":"'Weather Stations (data)'!X4","v":"Alliance"},{"$f":"'Weather Stations (data)'!Y4","v":"Barrhead"},{"$f":"'Weather Stations (data)'!Z4","v":"Barrhead"},{"$f":"'Weather Stations (data)'!AA4","v":"Barrhead"},{"$f":"'Weather Stations (data)'!AB4","v":"Abee"},{"$f":"'Weather Stations (data)'!AC4","v":"Abee"},{"$f":"'Weather Stations (data)'!AD4","v":"Abee"},{"$f":"'Weather Stations (data)'!AE4","v":"Abee"},{"$f":"'Weather Stations (data)'!AF4","v":"Athabasca"},{"$f":"'Weather Stations (data)'!AG4","v":"Ballater"},{"$f":"'Weather Stations (data)'!AH4","v":"Ballater"},{"$f":"'Weather Stations (data)'!AI4","v":"Ballater"},{"$f":"'Weather Stations (data)'!AJ4","v":"Ballater"},{"$f":"'Weather Stations (data)'!AK4","v":"Brownvale"}]
[null,"C",null,null,null,null,null,1.1508640000000001,{"$f":"($I$19*0.6)*(G34*0.01)+($I$19*0.4)*(H34*0.01)","v":{"$error":"#VALUE!"}},{"$f":"($J$19*0.6)*(G34*0.01)+($J$19*0.4)*(H34*0.01)","v":{"$error":"#VALUE!"}},null,null,null,null,null,3,{"$f":"'Weather Stations (data)'!B5","v":"Acadia Valley"},null,{"$f":"'Weather Stations (data)'!C4","v":"Bow Island South"},{"$f":"'Weather Stations (data)'!D5","v":"Bow Island South"},{"$f":"'Weather Stations (data)'!E5","v":"Barnwell"},{"$f":"'Weather Stations (data)'!F5","v":"Barnwell"},{"$f":"'Weather Stations (data)'!G5","v":"Barons"},{"$f":"'Weather Stations (data)'!H5","v":"Atlee"},{"$f":"'Weather Stations (data)'!I5","v":"Atlee"},{"$f":"'Weather Stations (data)'!J5","v":"Barnwell"},{"$f":"'Weather Stations (data)'!K5","v":"Bassano"},{"$f":"'Weather Stations (data)'!L5","v":"Azure"},{"$f":"'Weather Stations (data)'!M5","v":"Azure"},{"$f":"'Weather Stations (data)'!N5","v":"Barons"},{"$f":"'Weather Stations (data)'!O5","v":"Alliance"},{"$f":"'Weather Stations (data)'!P5","v":"Bellshill"},{"$f":"'Weather Stations (data)'!Q5","v":"Bassano"},{"$f":"'Weather Stations (data)'!R5","v":"Azure"},{"$f":"'Weather Stations (data)'!S5","v":"Beiseker"},{"$f":"'Weather Stations (data)'!T5","v":"Beiseker"},{"$f":"'Weather Stations (data)'!U5","v":"Breton"},{"$f":"'Weather Stations (data)'!V5","v":"Alliance"},{"$f":"'Weather Stations (data)'!W5","v":"Alliance"},{"$f":"'Weather Stations (data)'!X5","v":"Andrew"},{"$f":"'Weather Stations (data)'!Y5","v":"Battle River"},{"$f":"'Weather Stations (data)'!Z5","v":"Battle River"},{"$f":"'Weather Stations (data)'!AA5","v":"Breton"},{"$f":"'Weather Stations (data)'!AB5","v":"Albert Hall"},{"$f":"'Weather Stations (data)'!AC5","v":"Andrew"},{"$f":"'Weather Stations (data)'!AD5","v":"Andrew"},{"$f":"'Weather Stations (data)'!AE5","v":"Andrew"},{"$f":"'Weather Stations (data)'!AF5","v":"Ballater"},{"$f":"'Weather Stations (data)'!AG5","v":"Brownvale"},{"$f":"'Weather Stations (data)'!AH5","v":"Beaverlodge"},{"$f":"'Weather Stations (data)'!AI5","v":"Beaverlodge"},{"$f":"'Weather Stations (data)'!AJ5","v":"Beaverlodge"},{"$f":"'Weather Stations (data)'!AK5","v":"Cleardale"}]
[null,"D",null,null,null,null,null,1.43858,{"$f":"($I$19*0.5)*(G35*0.01)+($I$19*0.5)*(H35*0.01)","v":{"$error":"#VALUE!"}},{"$f":"($J$19*0.5)*(G35*0.01)+($J$19*0.5)*(H35*0.01)","v":{"$error":"#VALUE!"}},null,null,null,null,null,4,{"$f":"'Weather Stations (data)'!B6","v":"Aden"},null,{"$f":"'Weather Stations (data)'!C5","v":"Bullsprings"},{"$f":"'Weather Stations (data)'!D6","v":"Brooks"},{"$f":"'Weather Stations (data)'!E6","v":"Barons"},{"$f":"'Weather Stations (data)'!F6","v":"Barons"},{"$f":"'Weather Stations (data)'!G6","v":"Brocket"},{"$f":"'Weather Stations (data)'!H6","v":"Barnwell"},{"$f":"'Weather Stations (data)'!I6","v":"Bassano"},{"$f":"'Weather Stations (data)'!J6","v":"Barons"},{"$f":"'Weather Stations (data)'!K6","v":"Beiseker"},{"$f":"'Weather Stations (data)'!L6","v":"Barnwell"},{"$f":"'Weather Stations (data)'!M6","v":"Barons"},{"$f":"'Weather Stations (data)'!N6","v":"Beiseker"},{"$f":"'Weather Stations (data)'!O6","v":"Bassano"},{"$f":"'Weather Stations (data)'!P6","v":"Big Valley"},{"$f":"'Weather Stations (data)'!Q6","v":"Beiseker"},{"$f":"'Weather Stations (data)'!R6","v":"Bassano"},{"$f":"'Weather Stations (data)'!S6","v":"Big Valley"},{"$f":"'Weather Stations (data)'!T6","v":"Big Valley"},{"$f":"'Weather Stations (data)'!U6","v":"Crestomere"},{"$f":"'Weather Stations (data)'!V6","v":"Beiseker"},{"$f":"'Weather Stations (data)'!W6","v":"Bellshill"},{"$f":"'Weather Stations (data)'!X6","v":"Battle River"},{"$f":"'Weather Stations (data)'!Y6","v":"Breton"},{"$f":"'Weather Stations (data)'!Z6","v":"Breton"},{"$f":"'Weather Stations (data)'!AA6","v":"Campsie"},{"$f":"'Weather Stations (data)'!AB6","v":"Andrew"},{"$f":"'Weather Stations (data)'!AC6","v":"Athabasca"},{"$f":"'Weather Stations (data)'!AD6","v":"Athabasca"},{"$f":"'Weather Stations (data)'!AE6","v":"Athabasca"},{"$f":"'Weather Stations (data)'!AF6","v":"Barrhead"},{"$f":"'Weather Stations (data)'!AG6","v":"Chisholm"},{"$f":"'Weather Stations (data)'!AH6","v":"Brownvale"},{"$f":"'Weather Stations (data)'!AI6","v":"Brownvale"},{"$f":"'Weather Stations (data)'!AJ6","v":"Brownvale"},{"$f":"'Weather Stations (data)'!AK6","v":"Deadwood"}]
[null,null,null,null,null,null,null,null,null,null,null,null,null,null,null,5,{"$f":"'Weather Stations (data)'!B7","v":"Albert Hall"},null,{"$f":"'Weather Stations (data)'!C6","v":"Comrey"},{"$f":"'Weather Stations (data)'!D7","v":"BTAP"},{"$f":"'Weather Stations (data)'!E7","v":"Blackie"},{"$f":"'Weather Stations (data)'!F7","v":"Brocket"},{"$f":"'Weather Stations (data)'!G7","v":"BTAP"},{"$f":"'Weather Stations (data)'!H7","v":"Bow Island South"},{"$f":"'Weather Stations (data)'!I7","v":"Bodo"},{"$f":"'Weather Stations (data)'!J7","v":"Bassano"},{"$f":"'Weather Stations (data)'!K7","v":"Blackie"},{"$f":"'Weather Stations (data)'!L7","v":"Barons"},{"$f":"'Weather Stations (data)'!M7","v":"Beiseker"},{"$f":"'Weather Stations (data)'!N7","v":"Black Diamond"},{"$f":"'Weather Stations (data)'!O7","v":"Big Valley"},{"$f":"'Weather Stations (data)'!P7","v":"Bodo"},{"$f":"'Weather Stations (data)'!Q7","v":"Big Valley"},{"$f":"'Weather Stations (data)'!R7","v":"Beiseker"},{"$f":"'Weather Stations (data)'!S7","v":"Black Diamond"},{"$f":"'Weather Stations (data)'!T7","v":"Breton"},{"$f":"'Weather Stations (data)'!U7","v":"Dickson Dam"},{"$f":"'Weather Stations (data)'!V7","v":"Bellshill"},{"$f":"'Weather Stations (data)'!W7","v":"Big Valley"},{"$f":"'Weather Stations (data)'!X7","v":"Beiseker"},{"$f":"'Weather Stations (data)'!Y7","v":"Busby"},{"$f":"'Weather Stations (data)'!Z7","v":"Busby"},{"$f":"'Weather Stations (data)'!AA7","v":"Carrot Creek"},{"$f":"'Weather Stations (data)'!AB7","v":"Beaverdam"},{"$f":"'Weather Stations (data)'!AC7","v":"Atmore"},{"$f":"'Weather Stations (data)'!AD7","v":"Barrhead"},{"$f":"'Weather Stations (data)'!AE7","v":"Atmore"},{"$f":"'Weather Stations (data)'!AF7","v":"Campsie"},{"$f":"'Weather Stations (data)'!AG7","v":"Deadwood"},{"$f":"'Weather Stations (data)'!AH7","v":"Eaglesham"},{"$f":"'Weather Stations (data)'!AI7","v":"Cleardale"},{"$f":"'Weather Stations (data)'!AJ7","v":"Cleardale"},{"$f":"'Weather Stations (data)'!AK7","v":"Eureka River"}]
[null,null,null,null,null,null,null,null,null,null,null,null,null,null,null,6,{"$f":"'Weather Stations (data)'!B8","v":"Alliance"},null,{"$f":"'Weather Stations (data)'!C7","v":"Etzikom"},{"$f":"'Weather Stations (data)'!D8","v":"Bullsprings"},{"$f":"'Weather Stations (data)'!E8","v":"Bow Island South"},{"$f":"'Weather Stations (data)'!F8","v":"BTAP"},{"$f":"'Weather Stations (data)'!G8","v":"Bullhorn Coulee Reservoir Inlet"},{"$f":"'Weather Stations (data)'!H8","v":"Brooks"},{"$f":"'Weather Stations (data)'!I8","v":"Brooks"},{"$f":"'Weather Stations (data)'!J8","v":"Blackie"},{"$f":"'Weather Stations (data)'!K8","v":"Brooks"},{"$f":"'Weather Stations (data)'!L8","v":"Bassano"},{"$f":"'Weather Stations (data)'!M8","v":"Black Diamond"},{"$f":"'Weather Stations (data)'!N8","v":"Blackie"},{"$f":"'Weather Stations (data)'!O8","v":"Bodo"},{"$f":"'Weather Stations (data)'!P8","v":"Cadogan"},{"$f":"'Weather Stations (data)'!Q8","v":"Cabin Lake"},{"$f":"'Weather Stations (data)'!R8","v":"Big Valley"},{"$f":"'Weather Stations (data)'!S8","v":"Blackie"},{"$f":"'Weather Stations (data)'!T8","v":"Calgary"},{"$f":"'Weather Stations (data)'!U8","v":"Divide Hills"},{"$f":"'Weather Stations (data)'!V8","v":"Big Valley"},{"$f":"'Weather Stations (data)'!W8","v":"Camrose"},{"$f":"'Weather Stations (data)'!X8","v":"Big Valley"},{"$f":"'Weather Stations (data)'!Y8","v":"Campsie"},{"$f":"'Weather Stations (data)'!Z8","v":"Campsie"},{"$f":"'Weather Stations (data)'!AA8","v":"Edson"},{"$f":"'Weather Stations (data)'!AB8","v":"Camrose"},{"$f":"'Weather Stations (data)'!AC8","v":"Beaverdam"},{"$f":"'Weather Stations (data)'!AD8","v":"Battle River"},{"$f":"'Weather Stations (data)'!AE8","v":"Barrhead"},{"$f":"'Weather Stations (data)'!AF8","v":"Chisholm"},{"$f":"'Weather Stations (data)'!AG8","v":"Duck Lake"},{"$f":"'Weather Stations (data)'!AH8","v":"Eureka River"},{"$f":"'Weather Stations (data)'!AI8","v":"Deadwood"},{"$f":"'Weather Stations (data)'!AJ8","v":"Deadwood"},{"$f":"'Weather Stations (data)'!AK8","v":"Fairview"}]
[null,null,null,null,null,null,null,null,null,null,null,null,null,null,null,7,{"$f":"'Weather Stations (data)'!B9","v":"Andrew"},null,{"$f":"'Weather Stations (data)'!C8","v":"Foremost"},{"$f":"'Weather Stations (data)'!D9","v":"Comrey"},{"$f":"'Weather Stations (data)'!E9","v":"Brocket"},{"$f":"'Weather Stations (data)'!F9","v":"Bullhorn Coulee Reservoir Inlet"},{"$f":"'Weather Stations (data)'!G9","v":"Bullhorn Headwater"},{"$f":"'Weather Stations (data)'!H9","v":"Buffalo"},{"$f":"'Weather Stations (data)'!I9","v":"Buffalo"},{"$f":"'Weather Stations (data)'!J9","v":"Bow Island South"},{"$f":"'Weather Stations (data)'!K9","v":"Cabin Lake"},{"$f":"'Weather Stations (data)'!L9","v":"Beiseker"},{"$f":"'Weather Stations (data)'!M9","v":"Blackie"},{"$f":"'Weather Stations (data)'!N9","v":"Calgary"},{"$f":"'Weather Stations (data)'!O9","v":"Cabin Lake"},{"$f":"'Weather Stations (data)'!P9","v":"Consort"},{"$f":"'Weather Stations (data)'!Q9","v":"Calgary"},{"$f":"'Weather Stations (data)'!R9","v":"Black Diamond"},{"$f":"'Weather Stations (data)'!S9","v":"Calgary"},{"$f":"'Weather Stations (data)'!T9","v":"Camrose"},{"$f":"'Weather Stations (data)'!U9","v":"Edmonton"},{"$f":"'Weather Stations (data)'!V9","v":"Bodo"},{"$f":"'Weather Stations (data)'!W9","v":"Craigmyle"},{"$f":"'Weather Stations (data)'!X9","v":"Breton"},{"$f":"'Weather Stations (data)'!Y9","v":"Camrose"},{"$f":"'Weather Stations (data)'!Z9","v":"Carrot Creek"},{"$f":"'Weather Stations (data)'!AA9","v":"Evansburg2"},{"$f":"'Weather Stations (data)'!AB9","v":"Dewberry"},{"$f":"'Weather Stations (data)'!AC9","v":"Busby"},{"$f":"'Weather Stations (data)'!AD9","v":"Breton"},{"$f":"'Weather Stations (data)'!AE9","v":"Busby"},{"$f":"'Weather Stations (data)'!AF9","v":"Duck Lake"},{"$f":"'Weather Stations (data)'!AG9","v":"Eaglesham"},{"$f":"'Weather Stations (data)'!AH9","v":"Fairview"},{"$f":"'Weather Stations (data)'!AI9","v":"Eaglesham"},{"$f":"'Weather Stations (data)'!AJ9","v":"Eaglesham"},{"$f":"'Weather Stations (data)'!AK9","v":"Ft Vermilion"}]
[null,null,null,null,null,null,null,null,null,null,null,null,null,null,null,8,{"$f":"'Weather Stations (data)'!B10","v":"Ardenville"},null,{"$f":"'Weather Stations (data)'!C26","v":"Gahern"},{"$f":"'Weather Stations (data)'!D10","v":"Enchant"},{"$f":"'Weather Stations (data)'!E10","v":"Brooks"},{"$f":"'Weather Stations (data)'!F10","v":"Bullhorn Headwater"},{"$f":"'Weather Stations (data)'!G10","v":"Cardston"},{"$f":"'Weather Stations (data)'!H10","v":"Bullsprings"},{"$f":"'Weather Stations (data)'!I10","v":"Bullsprings"},{"$f":"'Weather Stations (data)'!J10","v":"Brooks"},{"$f":"'Weather Stations (data)'!K10","v":"Champion"},{"$f":"'Weather Stations (data)'!L10","v":"Big Valley"},{"$f":"'Weather Stations (data)'!M10","v":"Brocket"},{"$f":"'Weather Stations (data)'!N10","v":"Champion"},{"$f":"'Weather Stations (data)'!O10","v":"Cadogan"},{"$f":"'Weather Stations (data)'!P10","v":"Coronation"},{"$f":"'Weather Stations (data)'!Q10","v":"Coronation"},{"$f":"'Weather Stations (data)'!R10","v":"Blackie"},{"$f":"'Weather Stations (data)'!S10","v":"Craigmyle"},{"$f":"'Weather Stations (data)'!T10","v":"Crestomere"},{"$f":"'Weather Stations (data)'!U10","v":"Edson"},{"$f":"'Weather Stations (data)'!V10","v":"Cadogan"},{"$f":"'Weather Stations (data)'!W10","v":"Crestomere"},{"$f":"'Weather Stations (data)'!X10","v":"Camrose"},{"$f":"'Weather Stations (data)'!Y10","v":"Crestomere"},{"$f":"'Weather Stations (data)'!Z10","v":"Crestomere"},{"$f":"'Weather Stations (data)'!AA10","v":"Ft Assiniboine"},{"$f":"'Weather Stations (data)'!AB10","v":"Dupre"},{"$f":"'Weather Stations (data)'!AC10","v":"Dewberry"},{"$f":"'Weather Stations (data)'!AD10","v":"Busby"},{"$f":"'Weather Stations (data)'!AE10","v":"Campsie"},{"$f":"'Weather Stations (data)'!AF10","v":"Ft Assiniboine"},{"$f":"'Weather Stations (data)'!AG10","v":"Hazel"},{"$f":"'Weather Stations (data)'!AH10","v":"High Level"},{"$f":"'Weather Stations (data)'!AI10","v":"Eureka River"},{"$f":"'Weather Stations (data)'!AJ10","v":"Eureka River"},{"$f":"'Weather Stations (data)'!AK10","v":"Hawk Hills"}]
[null,null,null,null,null,null,null,null,null,null,null,null,null,null,null,9,{"$f":"'Weather Stations (data)'!B11","v":"Athabasca"},null,{"$f":"'Weather Stations (data)'!C25","v":"Hilda"},{"$f":"'Weather Stations (data)'!D11","v":"Etzikom"},{"$f":"'Weather Stations (data)'!E11","v":"BTAP"},{"$f":"'Weather Stations (data)'!F11","v":"Cardston"},{"$f":"'Weather Stations (data)'!G11","v":"Carway"},{"$f":"'Weather Stations (data)'!H11","v":"Cabin Lake"},{"$f":"'Weather Stations (data)'!I11","v":"Cabin Lake"},{"$f":"'Weather Stations (data)'!J11","v":"BTAP"},{"$f":"'Weather Stations (data)'!K11","v":"Craigmyle"},{"$f":"'Weather Stations (data)'!L11","v":"Black Diamond"},{"$f":"'Weather Stations (data)'!M11","v":"BTAP"},{"$f":"'Weather Stations (data)'!N11","v":"Claresholm"},{"$f":"'Weather Stations (data)'!O11","v":"Cereal"},{"$f":"'Weather Stations (data)'!P11","v":"Craigmyle"},{"$f":"'Weather Stations (data)'!Q11","v":"Craigmyle"},{"$f":"'Weather Stations (data)'!R11","v":"Calgary"},{"$f":"'Weather Stations (data)'!S11","v":"Delburne"},{"$f":"'Weather Stations (data)'!T11","v":"Delburne"},{"$f":"'Weather Stations (data)'!U11","v":"Evansburg2"},{"$f":"'Weather Stations (data)'!V11","v":"Consort"},{"$f":"'Weather Stations (data)'!W11","v":"Delburne"},{"$f":"'Weather Stations (data)'!X11","v":"Craigmyle"},{"$f":"'Weather Stations (data)'!Y11","v":"Delburne"},{"$f":"'Weather Stations (data)'!Z11","v":"Edmonton"},{"$f":"'Weather Stations (data)'!AA11","v":"Glenevis"},{"$f":"'Weather Stations (data)'!AB11","v":"Edmonton"},{"$f":"'Weather Stations (data)'!AC11","v":"Dupre"},{"$f":"'Weather Stations (data)'!AD11","v":"Campsie"},{"$f":"'Weather Stations (data)'!AE11","v":"Chisholm"},{"$f":"'Weather Stations (data)'!AF11","v":"High Prairie"},{"$f":"'Weather Stations (data)'!AG11","v":"High Level"},{"$f":"'Weather Stations (data)'!AH11","v":"High Prairie"},{"$f":"'Weather Stations (data)'!AI11","v":"Fairview"},{"$f":"'Weather Stations (data)'!AJ11","v":"Fairview"},{"$f":"'Weather Stations (data)'!AK11","v":"Hazel"}]
[null,null,null,null,null,null,null,null,null,null,null,null,null,null,null,10,{"$f":"'Weather Stations (data)'!B12","v":"Atlee"},null,{"$f":"'Weather Stations (data)'!C9","v":"Irvine"},{"$f":"'Weather Stations (data)'!D12","v":"Fincastle"},{"$f":"'Weather Stations (data)'!E12","v":"Bullhorn Coulee Reservoir Inlet"},{"$f":"'Weather Stations (data)'!F40","v":"Carseland"},{"$f":"'Weather Stations (data)'!G12","v":"Claresholm"},{"$f":"'Weather Stations (data)'!H12","v":"Cappon"},{"$f":"'Weather Stations (data)'!I12","v":"Cadogan"},{"$f":"'Weather Stations (data)'!J12","v":"Buffalo"},{"$f":"'Weather Stations (data)'!K12","v":"Drumheller"},{"$f":"'Weather Stations (data)'!L12","v":"Blackie"},{"$f":"'Weather Stations (data)'!M12","v":"Calgary"},{"$f":"'Weather Stations (data)'!N12","v":"Elbow"},{"$f":"'Weather Stations (data)'!O12","v":"Consort"},{"$f":"'Weather Stations (data)'!P12","v":"Delburne"},{"$f":"'Weather Stations (data)'!Q12","v":"Delburne"},{"$f":"'Weather Stations (data)'!R12","v":"Champion"},{"$f":"'Weather Stations (data)'!S12","v":"Dickson Dam"},{"$f":"'Weather Stations (data)'!T12","v":"Dickson Dam"},{"$f":"'Weather Stations (data)'!U12","v":"Hespero"},{"$f":"'Weather Stations (data)'!V12","v":"Coronation"},{"$f":"'Weather Stations (data)'!W12","v":"Divide Hills"},{"$f":"'Weather Stations (data)'!X12","v":"Crestomere"},{"$f":"'Weather Stations (data)'!Y12","v":"Dickson Dam"},{"$f":"'Weather Stations (data)'!Z12","v":"Edson"},{"$f":"'Weather Stations (data)'!AA12","v":"Greencourt"},{"$f":"'Weather Stations (data)'!AB12","v":"Elk Island Park"},{"$f":"'Weather Stations (data)'!AC12","v":"Edmonton"},{"$f":"'Weather Stations (data)'!AD12","v":"Camrose"},{"$f":"'Weather Stations (data)'!AE12","v":"Duck Lake"},{"$f":"'Weather Stations (data)'!AF12","v":"High Prairie  Banana Belt"},{"$f":"'Weather Stations (data)'!AG12","v":"High Prairie"},{"$f":"'Weather Stations (data)'!AH12","v":"High Prairie  Banana Belt"},{"$f":"'Weather Stations (data)'!AI12","v":"Hazel"},{"$f":"'Weather Stations (data)'!AJ12","v":"Hawk Hills"},{"$f":"'Weather Stations (data)'!AK12","v":"High Level"}]
[null,null,null,null,null,null,null,null,null,null,null,null,null,null,null,11,{"$f":"'Weather Stations (data)'!B13","v":"Atmore"},null,{"$f":"'Weather Stations (data)'!C10","v":"Ketchum Creek"},{"$f":"'Weather Stations (data)'!D13","v":"Foremost"},{"$f":"'Weather Stations (data)'!E13","v":"Bullhorn Headwater"},{"$f":"'Weather Stations (data)'!F12","v":"Carway"},{"$f":"'Weather Stations (data)'!G13","v":"Cross Drain 5"},{"$f":"'Weather Stations (data)'!H13","v":"Cereal"},{"$f":"'Weather Stations (data)'!I13","v":"Cappon"},{"$f":"'Weather Stations (data)'!J13","v":"Bullsprings"},{"$f":"'Weather Stations (data)'!K13","v":"Enchant"},{"$f":"'Weather Stations (data)'!L13","v":"Brocket"},{"$f":"'Weather Stations (data)'!M13","v":"Champion"},{"$f":"'Weather Stations (data)'!N13","v":"Keoma"},{"$f":"'Weather Stations (data)'!O13","v":"Coronation"},{"$f":"'Weather Stations (data)'!P13","v":"Divide Hills"},{"$f":"'Weather Stations (data)'!Q13","v":"Divide Hills"},{"$f":"'Weather Stations (data)'!R13","v":"Craigmyle"},{"$f":"'Weather Stations (data)'!S13","v":"Divide Hills"},{"$f":"'Weather Stations (data)'!T13","v":"Divide Hills"},{"$f":"'Weather Stations (data)'!U13","v":"Lacombe"},{"$f":"'Weather Stations (data)'!V13","v":"Craigmyle"},{"$f":"'Weather Stations (data)'!W13","v":"Drumheller"},{"$f":"'Weather Stations (data)'!X13","v":"Delburne"},{"$f":"'Weather Stations (data)'!Y13","v":"Divide Hills"},{"$f":"'Weather Stations (data)'!Z13","v":"Evansburg2"},{"$f":"'Weather Stations (data)'!AA13","v":"Little Paddle Headwaters"},{"$f":"'Weather Stations (data)'!AB13","v":"Ferintosh"},{"$f":"'Weather Stations (data)'!AC13","v":"Elk Island Park"},{"$f":"'Weather Stations (data)'!AD13","v":"Duck Lake"},{"$f":"'Weather Stations (data)'!AE13","v":"Elk Island Park"},{"$f":"'Weather Stations (data)'!AF13","v":"Little Paddle Headwaters"},{"$f":"'Weather Stations (data)'!AG13","v":"High Prairie  Banana Belt"},{"$f":"'Weather Stations (data)'!AH13","v":"Hines Creek"},{"$f":"'Weather Stations (data)'!AI13","v":"High Level"},{"$f":"'Weather Stations (data)'!AJ13","v":"Hazel"},{"$f":"'Weather Stations (data)'!AK13","v":"Hines Creek"}]
[null,null,null,null,null,null,null,null,null,null,null,null,null,null,null,12,{"$f":"'Weather Stations (data)'!B14","v":"Azure"},null,{"$f":"'Weather Stations (data)'!C11","v":"Lodge Creek"},{"$f":"'Weather Stations (data)'!D14","v":"Grassy Lake"},{"$f":"'Weather Stations (data)'!E14","v":"Cardston"},{"$f":"'Weather Stations (data)'!F13","v":"Champion"},{"$f":"'Weather Stations (data)'!G14","v":"Del Bonita"},{"$f":"'Weather Stations (data)'!H14","v":"Etzikom"},{"$f":"'Weather Stations (data)'!I14","v":"Cereal"},{"$f":"'Weather Stations (data)'!J14","v":"Cabin Lake"},{"$f":"'Weather Stations (data)'!K14","v":"Finnegan"},{"$f":"'Weather Stations (data)'!L14","v":"BTAP"},{"$f":"'Weather Stations (data)'!M14","v":"Claresholm"},{"$f":"'Weather Stations (data)'!N14","v":"Linden"},{"$f":"'Weather Stations (data)'!O14","v":"Craigmyle"},{"$f":"'Weather Stations (data)'!P14","v":"Drumheller"},{"$f":"'Weather Stations (data)'!Q14","v":"Drumheller"},{"$f":"'Weather Stations (data)'!R14","v":"Crestomere"},{"$f":"'Weather Stations (data)'!S14","v":"Drumheller"},{"$f":"'Weather Stations (data)'!T14","v":"Elbow"},{"$f":"'Weather Stations (data)'!U14","v":"Leedale"},{"$f":"'Weather Stations (data)'!V14","v":"Delburne"},{"$f":"'Weather Stations (data)'!W14","v":"Edgerton"},{"$f":"'Weather Stations (data)'!X14","v":"Dickson Dam"},{"$f":"'Weather Stations (data)'!Y14","v":"Edmonton"},{"$f":"'Weather Stations (data)'!Z14","v":"Ft Assiniboine"},{"$f":"'Weather Stations (data)'!AA14","v":"Mayerthorpe"},{"$f":"'Weather Stations (data)'!AB14","v":"Forestburg"},{"$f":"'Weather Stations (data)'!AC14","v":"Holden"},{"$f":"'Weather Stations (data)'!AD14","v":"Edmonton"},{"$f":"'Weather Stations (data)'!AE14","v":"Evansburg2"},{"$f":"'Weather Stations (data)'!AF14","v":"Mayerthorpe"},{"$f":"'Weather Stations (data)'!AG14","v":"Jean Cote"},{"$f":"'Weather Stations (data)'!AH14","v":"Jean Cote"},{"$f":"'Weather Stations (data)'!AI14","v":"High Prairie"},{"$f":"'Weather Stations (data)'!AJ14","v":"High Level"},{"$f":"'Weather Stations (data)'!AK14","v":"Jean Cote"}]
[null,null,null,null,null,null,null,null,null,null,null,null,null,null,null,13,{"$f":"'Weather Stations (data)'!B15","v":"Ballater"},null,{"$f":"'Weather Stations (data)'!C12","v":"Manyberries"},{"$f":"'Weather Stations (data)'!D15","v":"Irvine"},{"$f":"'Weather Stations (data)'!E15","v":"Carway"},{"$f":"'Weather Stations (data)'!F14","v":"Claresholm"},{"$f":"'Weather Stations (data)'!G15","v":"Fort Macleod"},{"$f":"'Weather Stations (data)'!H15","v":"Fincastle"},{"$f":"'Weather Stations (data)'!I15","v":"Consort"},{"$f":"'Weather Stations (data)'!J15","v":"Cappon"},{"$f":"'Weather Stations (data)'!K15","v":"Gleichen"},{"$f":"'Weather Stations (data)'!L15","v":"Bullhorn Coulee Reservoir Inlet"},{"$f":"'Weather Stations (data)'!M15","v":"Elbow"},{"$f":"'Weather Stations (data)'!N15","v":"Livingston"},{"$f":"'Weather Stations (data)'!O15","v":"Drumheller"},{"$f":"'Weather Stations (data)'!P15","v":"Edgerton"},{"$f":"'Weather Stations (data)'!Q15","v":"Finnegan"},{"$f":"'Weather Stations (data)'!R15","v":"Delburne"},{"$f":"'Weather Stations (data)'!S15","v":"Elbow"},{"$f":"'Weather Stations (data)'!T15","v":"Ferintosh"},{"$f":"'Weather Stations (data)'!U15","v":"Linden"},{"$f":"'Weather Stations (data)'!V15","v":"Divide Hills"},{"$f":"'Weather Stations (data)'!W15","v":"Edmonton"},{"$f":"'Weather Stations (data)'!X15","v":"Divide Hills"},{"$f":"'Weather Stations (data)'!Y15","v":"Elk Island Park"},{"$f":"'Weather Stations (data)'!Z15","v":"Glenevis"},{"$f":"'Weather Stations (data)'!AA15","v":"Paddle Dam"},{"$f":"'Weather Stations (data)'!AB15","v":"Gladstone"},{"$f":"'Weather Stations (data)'!AC15","v":"Hoselaw"},{"$f":"'Weather Stations (data)'!AD15","v":"Elk Island Park"},{"$f":"'Weather Stations (data)'!AE15","v":"Ft Assiniboine"},{"$f":"'Weather Stations (data)'!AF15","v":"Paddle Dam"},{"$f":"'Weather Stations (data)'!AG15","v":"Manning"},{"$f":"'Weather Stations (data)'!AH15","v":"La Glace"},{"$f":"'Weather Stations (data)'!AI15","v":"Hines Creek"},{"$f":"'Weather Stations (data)'!AJ15","v":"Hines Creek"},{"$f":"'Weather Stations (data)'!AK15","v":"Keg River"}]
[null,null,null,null,null,null,null,null,null,null,null,null,null,null,null,14,{"$f":"'Weather Stations (data)'!B16","v":"Barnwell"},null,{"$f":"'Weather Stations (data)'!C13","v":"Medicine Hat"},{"$f":"'Weather Stations (data)'!D16","v":"Ketchum Creek"},{"$f":"'Weather Stations (data)'!E16","v":"Champion"},{"$f":"'Weather Stations (data)'!F15","v":"Cross Drain 5"},{"$f":"'Weather Stations (data)'!G16","v":"Lee Creek"},{"$f":"'Weather Stations (data)'!H16","v":"Finnegan"},{"$f":"'Weather Stations (data)'!I16","v":"Coronation"},{"$f":"'Weather Stations (data)'!J16","v":"Champion"},{"$f":"'Weather Stations (data)'!K16","v":"Hand Hills"},{"$f":"'Weather Stations (data)'!L16","v":"Bullhorn Headwater"},{"$f":"'Weather Stations (data)'!M16","v":"Fort Macleod"},{"$f":"'Weather Stations (data)'!N16","v":"Mossleigh"},{"$f":"'Weather Stations (data)'!O16","v":"Esther"},{"$f":"'Weather Stations (data)'!P16","v":"Esther"},{"$f":"'Weather Stations (data)'!Q16","v":"Fleet"},{"$f":"'Weather Stations (data)'!R16","v":"Dickson Dam"},{"$f":"'Weather Stations (data)'!S16","v":"Gleichen"},{"$f":"'Weather Stations (data)'!T16","v":"Hespero"},{"$f":"'Weather Stations (data)'!U16","v":"Magee Lake"},{"$f":"'Weather Stations (data)'!V16","v":"Drumheller"},{"$f":"'Weather Stations (data)'!W16","v":"Elk Island Park"},{"$f":"'Weather Stations (data)'!X16","v":"Edmonton"},{"$f":"'Weather Stations (data)'!Y16","v":"Evansburg2"},{"$f":"'Weather Stations (data)'!Z16","v":"Greencourt"},{"$f":"'Weather Stations (data)'!AA16","v":"Rocky Mnt H"},{"$f":"'Weather Stations (data)'!AB16","v":"Greencourt"},{"$f":"'Weather Stations (data)'!AC16","v":"Kinikinik"},{"$f":"'Weather Stations (data)'!AD16","v":"Evansburg2"},{"$f":"'Weather Stations (data)'!AE16","v":"Glenevis"},{"$f":"'Weather Stations (data)'!AF16","v":"Peavine"},{"$f":"'Weather Stations (data)'!AG16","v":"Peavine"},{"$f":"'Weather Stations (data)'!AH16","v":"Peavine"},{"$f":"'Weather Stations (data)'!AI16","v":"Jean Cote"},{"$f":"'Weather Stations (data)'!AJ16","v":"Jean Cote"},{"$f":"'Weather Stations (data)'!AK16","v":"La Crete"}]
[null,null,null,null,null,null,null,null,null,null,null,null,null,null,null,15,{"$f":"'Weather Stations (data)'!B17","v":"Barons"},null,{"$f":"'Weather Stations (data)'!C14","v":"Medicine Lodge"},{"$f":"'Weather Stations (data)'!D17","v":"Lathom"},{"$f":"'Weather Stations (data)'!E17","v":"Claresholm"},{"$f":"'Weather Stations (data)'!F16","v":"Del Bonita"},{"$f":"'Weather Stations (data)'!G17","v":"Livingston"},{"$f":"'Weather Stations (data)'!H17","v":"Foremost"},{"$f":"'Weather Stations (data)'!I17","v":"Craigmyle"},{"$f":"'Weather Stations (data)'!J17","v":"Claresholm"},{"$f":"'Weather Stations (data)'!K17","v":"Hussar"},{"$f":"'Weather Stations (data)'!L17","v":"Calgary"},{"$f":"'Weather Stations (data)'!M17","v":"Gleichen"},{"$f":"'Weather Stations (data)'!N17","v":"Neir"},{"$f":"'Weather Stations (data)'!O17","v":"Finnegan"},{"$f":"'Weather Stations (data)'!P17","v":"Fleet"},{"$f":"'Weather Stations (data)'!Q17","v":"Forestburg"},{"$f":"'Weather Stations (data)'!R17","v":"Drumheller"},{"$f":"'Weather Stations (data)'!S17","v":"Hespero"},{"$f":"'Weather Stations (data)'!T17","v":"Keoma"},{"$f":"'Weather Stations (data)'!U17","v":"Neir"},{"$f":"'Weather Stations (data)'!V17","v":"Edgerton"},{"$f":"'Weather Stations (data)'!W17","v":"Ferintosh"},{"$f":"'Weather Stations (data)'!X17","v":"Elk Island Park"},{"$f":"'Weather Stations (data)'!Y17","v":"Ferintosh"},{"$f":"'Weather Stations (data)'!Z17","v":"Lacombe"},{"$f":"'Weather Stations (data)'!AA17","v":"Tomahawk"},{"$f":"'Weather Stations (data)'!AB17","v":"Holden"},{"$f":"'Weather Stations (data)'!AC17","v":"Kitscoty"},{"$f":"'Weather Stations (data)'!AD17","v":"Ferintosh"},{"$f":"'Weather Stations (data)'!AE17","v":"Greencourt"},{"$f":"'Weather Stations (data)'!AF17","v":"Pibroch"},{"$f":"'Weather Stations (data)'!AG17","v":"Pleasant View"},{"$f":"'Weather Stations (data)'!AH17","v":"Peoria"},{"$f":"'Weather Stations (data)'!AI17","v":"La Glace"},{"$f":"'Weather Stations (data)'!AJ17","v":"La Glace"},{"$f":"'Weather Stations (data)'!AK17","v":"Manning"}]
[null,null,null,null,null,null,null,null,null,null,null,null,null,null,null,16,{"$f":"'Weather Stations (data)'!B18","v":"Barrhead"},null,{"$f":"'Weather Stations (data)'!C15","v":"Onefour"},{"$f":"'Weather Stations (data)'!D18","v":"Lethbridge"},{"$f":"'Weather Stations (data)'!E18","v":"Cross Drain 5"},{"$f":"'Weather Stations (data)'!F17","v":"Enchant"},{"$f":"'Weather Stations (data)'!G18","v":"Milk River Ridge"},{"$f":"'Weather Stations (data)'!H18","v":"Grassy Lake"},{"$f":"'Weather Stations (data)'!I18","v":"Drumheller"},{"$f":"'Weather Stations (data)'!J18","v":"Enchant"},{"$f":"'Weather Stations (data)'!K18","v":"Keoma"},{"$f":"'Weather Stations (data)'!L18","v":"Cardston"},{"$f":"'Weather Stations (data)'!M18","v":"Keoma"},{"$f":"'Weather Stations (data)'!N18","v":"Olds"},{"$f":"'Weather Stations (data)'!O18","v":"Fleet"},{"$f":"'Weather Stations (data)'!P18","v":"Forestburg"},{"$f":"'Weather Stations (data)'!Q18","v":"Gleichen"},{"$f":"'Weather Stations (data)'!R18","v":"Elbow"},{"$f":"'Weather Stations (data)'!S18","v":"Keoma"},{"$f":"'Weather Stations (data)'!T18","v":"Lacombe"},{"$f":"'Weather Stations (data)'!U18","v":"Olds"},{"$f":"'Weather Stations (data)'!V18","v":"Esther"},{"$f":"'Weather Stations (data)'!W18","v":"Fleet"},{"$f":"'Weather Stations (data)'!X18","v":"Ferintosh"},{"$f":"'Weather Stations (data)'!Y18","v":"Glenevis"},{"$f":"'Weather Stations (data)'!Z18","v":"Leedale"},{"$f":"'Weather Stations (data)'!AA18","v":"Twin Lakes"},{"$f":"'Weather Stations (data)'!AB18","v":"Hoselaw"},{"$f":"'Weather Stations (data)'!AC18","v":"Lac La Biche"},{"$f":"'Weather Stations (data)'!AD18","v":"Ft Assiniboine"},{"$f":"'Weather Stations (data)'!AE18","v":"Kinikinik"},{"$f":"'Weather Stations (data)'!AF18","v":"Slave Lake"},{"$f":"'Weather Stations (data)'!AG18","v":"Roma"},{"$f":"'Weather Stations (data)'!AH18","v":"Roma"},{"$f":"'Weather Stations (data)'!AI18","v":"Manning"},{"$f":"'Weather Stations (data)'!AJ18","v":"Manning"},{"$f":"'Weather Stations (data)'!AK18","v":"Rocky Lane"}]
[null,null,null,null,null,null,null,null,null,null,null,null,null,null,null,17,{"$f":"'Weather Stations (data)'!B19","v":"Bassano"},null,{"$f":"'Weather Stations (data)'!C16","v":"Pakowki Lake"},{"$f":"'Weather Stations (data)'!D19","v":"Lodge Creek"},{"$f":"'Weather Stations (data)'!E19","v":"Del Bonita"},{"$f":"'Weather Stations (data)'!F18","v":"Fincastle"},{"$f":"'Weather Stations (data)'!G19","v":"Pincher Creek"},{"$f":"'Weather Stations (data)'!H19","v":"Iddesleigh"},{"$f":"'Weather Stations (data)'!I19","v":"Esther"},{"$f":"'Weather Stations (data)'!J19","v":"Etzikom"},{"$f":"'Weather Stations (data)'!K19","v":"Lathom"},{"$f":"'Weather Stations (data)'!L19","v":"Champion"},{"$f":"'Weather Stations (data)'!M19","v":"Livingston"},{"$f":"'Weather Stations (data)'!N19","v":"Pine Coulee FP"},{"$f":"'Weather Stations (data)'!O19","v":"Forestburg"},{"$f":"'Weather Stations (data)'!P19","v":"Gooseberry Lake"},{"$f":"'Weather Stations (data)'!Q19","v":"Halkirk"},{"$f":"'Weather Stations (data)'!R19","v":"Ferintosh"},{"$f":"'Weather Stations (data)'!S19","v":"Lacombe"},{"$f":"'Weather Stations (data)'!T19","v":"Leedale"},{"$f":"'Weather Stations (data)'!U19","v":"Prentiss"},{"$f":"'Weather Stations (data)'!V19","v":"Fleet"},{"$f":"'Weather Stations (data)'!W19","v":"Forestburg"},{"$f":"'Weather Stations (data)'!X19","v":"Fleet"},{"$f":"'Weather Stations (data)'!Y19","v":"Hespero"},{"$f":"'Weather Stations (data)'!Z19","v":"Little Paddle Headwaters"},{"$f":"'Weather Stations (data)'!AA19","v":"Whitecourt"},{"$f":"'Weather Stations (data)'!AB19","v":"Killam"},{"$f":"'Weather Stations (data)'!AC19","v":"Legal"},{"$f":"'Weather Stations (data)'!AD19","v":"Gladstone"},{"$f":"'Weather Stations (data)'!AE19","v":"Lac La Biche"},{"$f":"'Weather Stations (data)'!AF19","v":"Spring Creek"},{"$f":"'Weather Stations (data)'!AG19","v":"Slave Lake"},{"$f":"'Weather Stations (data)'!AH19","v":"Rycroft"},{"$f":"'Weather Stations (data)'!AI19","v":"Peavine"},{"$f":"'Weather Stations (data)'!AJ19","v":"Peoria"},{"$f":"'Weather Stations (data)'!AK19","v":"Roma"}]
[null,null,null,null,null,null,null,null,null,null,null,null,null,null,null,18,{"$f":"'Weather Stations (data)'!B20","v":"Battle River"},null,{"$f":"'Weather Stations (data)'!C17","v":"Pinhorn"},{"$f":"'Weather Stations (data)'!D20","v":"Manyberries"},{"$f":"'Weather Stations (data)'!E20","v":"Enchant"},{"$f":"'Weather Stations (data)'!F19","v":"Fort Macleod"},{"$f":"'Weather Stations (data)'!G20","v":"Pine Coulee FP"},{"$f":"'Weather Stations (data)'!H20","v":"Irvine"},{"$f":"'Weather Stations (data)'!I20","v":"Finnegan"},{"$f":"'Weather Stations (data)'!J20","v":"Fincastle"},{"$f":"'Weather Stations (data)'!K20","v":"Linden"},{"$f":"'Weather Stations (data)'!L20","v":"Claresholm"},{"$f":"'Weather Stations (data)'!M20","v":"Mossleigh"},{"$f":"'Weather Stations (data)'!N20","v":"Porcupine"},{"$f":"'Weather Stations (data)'!O20","v":"Gleichen"},{"$f":"'Weather Stations (data)'!P20","v":"Halkirk"},{"$f":"'Weather Stations (data)'!Q20","v":"Hand Hills"},{"$f":"'Weather Stations (data)'!R20","v":"Fleet"},{"$f":"'Weather Stations (data)'!S20","v":"Linden"},{"$f":"'Weather Stations (data)'!T20","v":"Linden"},{"$f":"'Weather Stations (data)'!U20","v":"Red Deer"},{"$f":"'Weather Stations (data)'!V20","v":"Forestburg"},{"$f":"'Weather Stations (data)'!W20","v":"Gilt Edge North"},{"$f":"'Weather Stations (data)'!X20","v":"Forestburg"},{"$f":"'Weather Stations (data)'!Y20","v":"Holden"},{"$f":"'Weather Stations (data)'!Z20","v":"Magee Lake"},{"$f":"'Weather Stations (data)'!AA20","v":""},{"$f":"'Weather Stations (data)'!AB20","v":"Kitscoty"},{"$f":"'Weather Stations (data)'!AC20","v":"Lindbergh"},{"$f":"'Weather Stations (data)'!AD20","v":"Glenevis"},{"$f":"'Weather Stations (data)'!AE20","v":"Legal"},{"$f":"'Weather Stations (data)'!AF20","v":"Twin Lakes"},{"$f":"'Weather Stations (data)'!AG20","v":"Three Creeks"},{"$f":"'Weather Stations (data)'!AH20","v":"Savanna"},{"$f":"'Weather Stations (data)'!AI20","v":"Peoria"},{"$f":"'Weather Stations (data)'!AJ20","v":"Roma"},{"$f":"'Weather Stations (data)'!AK20","v":"Savanna"}]
[null,null,null,null,null,null,null,null,null,null,null,null,null,null,null,19,{"$f":"'Weather Stations (data)'!B21","v":"Beaverdam"},null,{"$f":"'Weather Stations (data)'!C18","v":"Ralston"},{"$f":"'Weather Stations (data)'!D21","v":"Masinisan"},{"$f":"'Weather Stations (data)'!E21","v":"Fincastle"},{"$f":"'Weather Stations (data)'!F20","v":"Lee Creek"},{"$f":"'Weather Stations (data)'!G21","v":"Porcupine"},{"$f":"'Weather Stations (data)'!H21","v":"Lathom"},{"$f":"'Weather Stations (data)'!I21","v":"Fleet"},{"$f":"'Weather Stations (data)'!J21","v":"Finnegan"},{"$f":"'Weather Stations (data)'!K21","v":"Morrin"},{"$f":"'Weather Stations (data)'!L21","v":"Craigmyle"},{"$f":"'Weather Stations (data)'!M21","v":"Neir"},{"$f":"'Weather Stations (data)'!N21","v":"Priddis Observatory"},{"$f":"'Weather Stations (data)'!O21","v":"Gooseberry Lake"},{"$f":"'Weather Stations (data)'!P21","v":"Hand Hills"},{"$f":"'Weather Stations (data)'!Q21","v":"Hemaruka"},{"$f":"'Weather Stations (data)'!R21","v":"Forestburg"},{"$f":"'Weather Stations (data)'!S21","v":"Magee Lake"},{"$f":"'Weather Stations (data)'!T21","v":"Magee Lake"},{"$f":"'Weather Stations (data)'!U21","v":"Rocky Mnt H"},{"$f":"'Weather Stations (data)'!V21","v":"Gilt Edge North"},{"$f":"'Weather Stations (data)'!W21","v":"Gladstone"},{"$f":"'Weather Stations (data)'!X21","v":"Gladstone"},{"$f":"'Weather Stations (data)'!Y21","v":"Lacombe"},{"$f":"'Weather Stations (data)'!Z21","v":"Mayerthorpe"},{"$f":"'Weather Stations (data)'!AA21","v":""},{"$f":"'Weather Stations (data)'!AB21","v":"Legal"},{"$f":"'Weather Stations (data)'!AC21","v":"Lloydminster"},{"$f":"'Weather Stations (data)'!AD21","v":"Greencourt"},{"$f":"'Weather Stations (data)'!AE21","v":"Little Paddle Headwaters"},{"$f":"'Weather Stations (data)'!AF21","v":"Valleyview"},{"$f":"'Weather Stations (data)'!AG21","v":"Valleyview"},{"$f":"'Weather Stations (data)'!AH21","v":"Spring Creek"},{"$f":"'Weather Stations (data)'!AI21","v":"Roma"},{"$f":"'Weather Stations (data)'!AJ21","v":"Rycroft"},{"$f":"'Weather Stations (data)'!AK21","v":"Three Creeks"}]
[null,null,null,null,null,null,null,null,null,null,null,null,null,null,null,20,{"$f":"'Weather Stations (data)'!B22","v":"Beaverlodge"},null,{"$f":"'Weather Stations (data)'!C19","v":"Rush Lake"},{"$f":"'Weather Stations (data)'!D22","v":"Medicine Hat"},{"$f":"'Weather Stations (data)'!E22","v":"Foremost"},{"$f":"'Weather Stations (data)'!F21","v":"Lethbridge"},{"$f":"'Weather Stations (data)'!G22","v":"Raymond"},{"$f":"'Weather Stations (data)'!H22","v":"Lodge Creek"},{"$f":"'Weather Stations (data)'!I22","v":"Gleichen"},{"$f":"'Weather Stations (data)'!J22","v":"Foremost"},{"$f":"'Weather Stations (data)'!K22","v":"Mossleigh"},{"$f":"'Weather Stations (data)'!L22","v":"Cross Drain 5"},{"$f":"'Weather Stations (data)'!M22","v":"Pincher Creek"},{"$f":"'Weather Stations (data)'!N22","v":"Stavely"},{"$f":"'Weather Stations (data)'!O22","v":"Halkirk"},{"$f":"'Weather Stations (data)'!P22","v":"Hemaruka"},{"$f":"'Weather Stations (data)'!Q22","v":"Hussar"},{"$f":"'Weather Stations (data)'!R22","v":"Gleichen"},{"$f":"'Weather Stations (data)'!S22","v":"Morrin"},{"$f":"'Weather Stations (data)'!T22","v":"Neir"},{"$f":"'Weather Stations (data)'!U22","v":"St. Francis"},{"$f":"'Weather Stations (data)'!V22","v":"Gladstone"},{"$f":"'Weather Stations (data)'!W22","v":"Halkirk"},{"$f":"'Weather Stations (data)'!X22","v":"Halkirk"},{"$f":"'Weather Stations (data)'!Y22","v":"Leedale"},{"$f":"'Weather Stations (data)'!Z22","v":"Paddle Dam"},{"$f":"'Weather Stations (data)'!AA22","v":""},{"$f":"'Weather Stations (data)'!AB22","v":"Lindbergh"},{"$f":"'Weather Stations (data)'!AC22","v":"Mannville"},{"$f":"'Weather Stations (data)'!AD22","v":"Holden"},{"$f":"'Weather Stations (data)'!AE22","v":"Mayerthorpe"},{"$f":"'Weather Stations (data)'!AF22","v":"Vega"},{"$f":"'Weather Stations (data)'!AG22","v":"Whitemud Creek"},{"$f":"'Weather Stations (data)'!AH22","v":"Teepee Creek"},{"$f":"'Weather Stations (data)'!AI22","v":"Rycroft"},{"$f":"'Weather Stations (data)'!AJ22","v":"Savanna"},{"$f":"'Weather Stations (data)'!AK22","v":"Tompkins Landing"}]
[null,null,null,null,null,null,null,null,null,null,null,null,null,null,null,21,{"$f":"'Weather Stations (data)'!B23","v":"Beiseker"},null,{"$f":"'Weather Stations (data)'!C20","v":"Sage Creek"},{"$f":"'Weather Stations (data)'!D23","v":"Medicine Lodge"},{"$f":"'Weather Stations (data)'!E23","v":"Fort Macleod"},{"$f":"'Weather Stations (data)'!F22","v":"Livingston"},{"$f":"'Weather Stations (data)'!G23","v":"Streeter Creek"},{"$f":"'Weather Stations (data)'!H46","v":"Marwayne"},{"$f":"'Weather Stations (data)'!I23","v":"Gooseberry Lake"},{"$f":"'Weather Stations (data)'!J23","v":"Fort Macleod"},{"$f":"'Weather Stations (data)'!K23","v":"Patricia"},{"$f":"'Weather Stations (data)'!L23","v":"Drumheller"},{"$f":"'Weather Stations (data)'!M23","v":"Pine Coulee FP"},{"$f":"'Weather Stations (data)'!N23","v":"Strathmore"},{"$f":"'Weather Stations (data)'!O23","v":"Hand Hills"},{"$f":"'Weather Stations (data)'!P23","v":"Hughenden"},{"$f":"'Weather Stations (data)'!Q23","v":"Keoma"},{"$f":"'Weather Stations (data)'!R23","v":"Halkirk"},{"$f":"'Weather Stations (data)'!S23","v":"Mossleigh"},{"$f":"'Weather Stations (data)'!T23","v":"Olds"},{"$f":"'Weather Stations (data)'!U23","v":"Stony Plain"},{"$f":"'Weather Stations (data)'!V23","v":"Gooseberry Lake"},{"$f":"'Weather Stations (data)'!W23","v":"Hand Hills"},{"$f":"'Weather Stations (data)'!X23","v":"Hespero"},{"$f":"'Weather Stations (data)'!Y23","v":"Legal"},{"$f":"'Weather Stations (data)'!Z23","v":"Pibroch"},{"$f":"'Weather Stations (data)'!AA23","v":""},{"$f":"'Weather Stations (data)'!AB23","v":"Lloydminster"},{"$f":"'Weather Stations (data)'!AC23","v":"Mundare"},{"$f":"'Weather Stations (data)'!AD23","v":"Killam"},{"$f":"'Weather Stations (data)'!AE23","v":"Mundare"},{"$f":"'Weather Stations (data)'!AF23","v":"Whitecourt"},{"$f":"'Weather Stations (data)'!AG23","v":"Worsley"},{"$f":"'Weather Stations (data)'!AH23","v":"Three Creeks"},{"$f":"'Weather Stations (data)'!AI23","v":"Savanna"},{"$f":"'Weather Stations (data)'!AJ23","v":"Teepee Creek"},{"$f":"'Weather Stations (data)'!AK23","v":"Worsley"}]
[null,null,null,null,null,null,null,null,null,null,null,null,null,null,null,22,{"$f":"'Weather Stations (data)'!B24","v":"Bellshill"},null,{"$f":"'Weather Stations (data)'!C21","v":"Schuler"},{"$f":"'Weather Stations (data)'!D24","v":"Milk River"},{"$f":"'Weather Stations (data)'!E24","v":"Grassy Lake"},{"$f":"'Weather Stations (data)'!F23","v":"Masinisan"},{"$f":"'Weather Stations (data)'!G24","v":"Tennessee Creek"},{"$f":"'Weather Stations (data)'!H23","v":"Medicine Hat"},{"$f":"'Weather Stations (data)'!I24","v":"Hand Hills"},{"$f":"'Weather Stations (data)'!J24","v":"Gleichen"},{"$f":"'Weather Stations (data)'!K24","v":"Pollockville"},{"$f":"'Weather Stations (data)'!L24","v":"Enchant"},{"$f":"'Weather Stations (data)'!M24","v":"Porcupine"},{"$f":"'Weather Stations (data)'!N24","v":"Streeter Creek"},{"$f":"'Weather Stations (data)'!O24","v":"Hemaruka"},{"$f":"'Weather Stations (data)'!P24","v":"Kessler"},{"$f":"'Weather Stations (data)'!Q24","v":"Linden"},{"$f":"'Weather Stations (data)'!R24","v":"Hand Hills"},{"$f":"'Weather Stations (data)'!S24","v":"Neir"},{"$f":"'Weather Stations (data)'!T24","v":"Parlby Creek"},{"$f":"'Weather Stations (data)'!U24","v":"Sundre"},{"$f":"'Weather Stations (data)'!V24","v":"Halkirk"},{"$f":"'Weather Stations (data)'!W24","v":"Holden"},{"$f":"'Weather Stations (data)'!X24","v":"Killam"},{"$f":"'Weather Stations (data)'!Y24","v":"Little Paddle Headwaters"},{"$f":"'Weather Stations (data)'!Z24","v":"Rocky Mnt H"},{"$f":"'Weather Stations (data)'!AA24","v":""},{"$f":"'Weather Stations (data)'!AB24","v":"Mannville"},{"$f":"'Weather Stations (data)'!AC24","v":"Myrnam"},{"$f":"'Weather Stations (data)'!AD24","v":"Kinikinik"},{"$f":"'Weather Stations (data)'!AE24","v":"Oliver"},{"$f":"'Weather Stations (data)'!AF24","v":"Whitemud Creek"},{"$f":"'Weather Stations (data)'!AG24","v":""},{"$f":"'Weather Stations (data)'!AH24","v":"Whitemud Creek"},{"$f":"'Weather Stations (data)'!AI24","v":"Spring Creek"},{"$f":"'Weather Stations (data)'!AJ24","v":"Three Creeks"}]
[null,null,null,null,null,null,null,null,null,null,null,null,null,null,null,23,{"$f":"'Weather Stations (data)'!B25","v":"Big Valley"},null,{"$f":"'Weather Stations (data)'!C22","v":"Seven Persons"},{"$f":"'Weather Stations (data)'!D25","v":"Milk River Reservoir"},{"$f":"'Weather Stations (data)'!E25","v":"Ketchum Creek"},{"$f":"'Weather Stations (data)'!F24","v":"Milk River"},{"$f":"'Weather Stations (data)'!G25","v":""},{"$f":"'Weather Stations (data)'!H24","v":"Medicine Lodge"},{"$f":"'Weather Stations (data)'!I25","v":"Hemaruka"},{"$f":"'Weather Stations (data)'!J25","v":"Grassy Lake"},{"$f":"'Weather Stations (data)'!K25","v":"Queenstown"},{"$f":"'Weather Stations (data)'!L25","v":"Fincastle"},{"$f":"'Weather Stations (data)'!M25","v":"Priddis Observatory"},{"$f":"'Weather Stations (data)'!N25","v":"Sundre"},{"$f":"'Weather Stations (data)'!O25","v":"Hughenden"},{"$f":"'Weather Stations (data)'!P25","v":"Killam"},{"$f":"'Weather Stations (data)'!Q25","v":"Morrin"},{"$f":"'Weather Stations (data)'!R25","v":"Hussar"},{"$f":"'Weather Stations (data)'!S25","v":"Olds"},{"$f":"'Weather Stations (data)'!T25","v":"Prentiss"},{"$f":"'Weather Stations (data)'!U25","v":"Thorsby"},{"$f":"'Weather Stations (data)'!V25","v":"Hand Hills"},{"$f":"'Weather Stations (data)'!W25","v":"Hughenden"},{"$f":"'Weather Stations (data)'!X25","v":"Kinsella"},{"$f":"'Weather Stations (data)'!Y25","v":"Magee Lake"},{"$f":"'Weather Stations (data)'!Z25","v":"St. Albert"},{"$f":"'Weather Stations (data)'!AA25","v":""},{"$f":"'Weather Stations (data)'!AB25","v":"Mundare"},{"$f":"'Weather Stations (data)'!AC25","v":"New Sarepta"},{"$f":"'Weather Stations (data)'!AD25","v":"Kinsella"},{"$f":"'Weather Stations (data)'!AE25","v":"Paddle Dam"},{"$f":"'Weather Stations (data)'!AF25","v":""},{"$f":"'Weather Stations (data)'!AG25","v":""},{"$f":"'Weather Stations (data)'!AH25","v":""},{"$f":"'Weather Stations (data)'!AI25","v":"Teepee Creek"},{"$f":"'Weather Stations (data)'!AJ25","v":"Worsley"},{"$f":"'Weather Stations (data)'!AK25","v":""}]
[null,null,null,null,null,null,null,null,null,null,null,null,null,null,null,24,{"$f":"'Weather Stations (data)'!B26","v":"Black Diamond"},null,{"$f":"'Weather Stations (data)'!C27","v":"Twin River "},{"$f":"'Weather Stations (data)'!D26","v":"Milk River Ridge"},{"$f":"'Weather Stations (data)'!E26","v":"Lathom"},{"$f":"'Weather Stations (data)'!F25","v":"Milk River Reservoir"},{"$f":"'Weather Stations (data)'!G26","v":""},{"$f":"'Weather Stations (data)'!H25","v":"Oyen"},{"$f":"'Weather Stations (data)'!I26","v":"Homestead Coulee"},{"$f":"'Weather Stations (data)'!J26","v":"Hussar"},{"$f":"'Weather Stations (data)'!K26","v":"Rainier"},{"$f":"'Weather Stations (data)'!L26","v":"Finnegan"},{"$f":"'Weather Stations (data)'!M26","v":"Queenstown"},{"$f":"'Weather Stations (data)'!N26","v":"Water Valley"},{"$f":"'Weather Stations (data)'!O26","v":"Hussar"},{"$f":"'Weather Stations (data)'!P26","v":"Kirriemuir"},{"$f":"'Weather Stations (data)'!Q26","v":"Mossleigh"},{"$f":"'Weather Stations (data)'!R26","v":"Keoma"},{"$f":"'Weather Stations (data)'!S26","v":"Parlby Creek"},{"$f":"'Weather Stations (data)'!T26","v":"Priddis Observatory"},{"$f":"'Weather Stations (data)'!U26","v":"Tomahawk"},{"$f":"'Weather Stations (data)'!V26","v":"Hemaruka"},{"$f":"'Weather Stations (data)'!W26","v":"Killam"},{"$f":"'Weather Stations (data)'!X26","v":"Lacombe"},{"$f":"'Weather Stations (data)'!Y26","v":"Mayerthorpe"},{"$f":"'Weather Stations (data)'!Z26","v":"St. Francis"},{"$f":"'Weather Stations (data)'!AA26","v":""},{"$f":"'Weather Stations (data)'!AB26","v":"Myrnam"},{"$f":"'Weather Stations (data)'!AC26","v":"Oliver"},{"$f":"'Weather Stations (data)'!AD26","v":"Legal"},{"$f":"'Weather Stations (data)'!AE26","v":"Pibroch"},{"$f":"'Weather Stations (data)'!AF26","v":""},{"$f":"'Weather Stations (data)'!AG26","v":""},{"$f":"'Weather Stations (data)'!AH26","v":""},{"$f":"'Weather Stations (data)'!AI26","v":"Three Creeks"},null,{"$f":"'Weather Stations (data)'!AK26","v":""}]
[null,null,null,null,null,null,null,null,null,null,null,null,null,null,null,25,{"$f":"'Weather Stations (data)'!B27","v":"Blackie"},null,{"$f":"'Weather Stations (data)'!C23","v":"Vernon Lake"},{"$f":"'Weather Stations (data)'!D27","v":"Onefour"},{"$f":"'Weather Stations (data)'!E27","v":"Lethbridge"},{"$f":"'Weather Stations (data)'!F26","v":"Milk River Ridge"},{"$f":"'Weather Stations (data)'!G27","v":""},{"$f":"'Weather Stations (data)'!H26","v":"Patricia"},{"$f":"'Weather Stations (data)'!I27","v":"Hussar"},{"$f":"'Weather Stations (data)'!J27","v":"Keoma"},{"$f":"'Weather Stations (data)'!K27","v":"Red Coat"},{"$f":"'Weather Stations (data)'!L27","v":"Fort Macleod"},{"$f":"'Weather Stations (data)'!M27","v":"Standard"},{"$f":"'Weather Stations (data)'!N27","v":""},{"$f":"'Weather Stations (data)'!O27","v":"Kessler"},{"$f":"'Weather Stations (data)'!P27","v":"Morrin"},{"$f":"'Weather Stations (data)'!Q27","v":"Neir"},{"$f":"'Weather Stations (data)'!R27","v":"Lacombe"},{"$f":"'Weather Stations (data)'!S27","v":"Prentiss"},{"$f":"'Weather Stations (data)'!T27","v":"Red Deer"},{"$f":"'Weather Stations (data)'!U27","v":"Water Valley"},{"$f":"'Weather Stations (data)'!V27","v":"Holden"},{"$f":"'Weather Stations (data)'!W27","v":"Kinsella"},{"$f":"'Weather Stations (data)'!X27","v":"Leedale"},{"$f":"'Weather Stations (data)'!Y27","v":"Mundare"},{"$f":"'Weather Stations (data)'!Z27","v":"Stony Plain"},{"$f":"'Weather Stations (data)'!AA27","v":""},{"$f":"'Weather Stations (data)'!AB27","v":"New Sarepta"},{"$f":"'Weather Stations (data)'!AC27","v":"Pleasant View"},{"$f":"'Weather Stations (data)'!AD27","v":"Little Paddle Headwaters"},{"$f":"'Weather Stations (data)'!AE27","v":"Pleasant View"},{"$f":"'Weather Stations (data)'!AF27","v":""},{"$f":"'Weather Stations (data)'!AG27","v":""},{"$f":"'Weather Stations (data)'!AH27","v":""},{"$f":"'Weather Stations (data)'!AI27","v":"Valleyview"},{"$f":"'Weather Stations (data)'!AJ27","v":""},{"$f":"'Weather Stations (data)'!AK27","v":""}]
[null,null,null,null,null,null,null,null,null,null,null,null,null,null,null,26,{"$f":"'Weather Stations (data)'!B28","v":"Bodo"},null,{"$f":"'Weather Stations (data)'!C24","v":"Winnifred"},{"$f":"'Weather Stations (data)'!D28","v":"Pakowki Lake"},{"$f":"'Weather Stations (data)'!E28","v":"Masinisan"},{"$f":"'Weather Stations (data)'!F27","v":"Picture Butte"},{"$f":"'Weather Stations (data)'!G28","v":""},{"$f":"'Weather Stations (data)'!H27","v":"Pollockville"},{"$f":"'Weather Stations (data)'!I28","v":"Kessler"},{"$f":"'Weather Stations (data)'!J28","v":"Lathom"},{"$f":"'Weather Stations (data)'!K28","v":"Rolling Hills"},{"$f":"'Weather Stations (data)'!L28","v":"Gleichen"},{"$f":"'Weather Stations (data)'!M28","v":"Stavely"},{"$f":"'Weather Stations (data)'!N28","v":""},{"$f":"'Weather Stations (data)'!O28","v":"Kirriemuir"},{"$f":"'Weather Stations (data)'!P28","v":"Oyen"},{"$f":"'Weather Stations (data)'!Q28","v":"Olds"},{"$f":"'Weather Stations (data)'!R28","v":"Lathom"},{"$f":"'Weather Stations (data)'!S28","v":"Priddis Observatory"},{"$f":"'Weather Stations (data)'!T28","v":"Rocky Mnt H"},{"$f":"'Weather Stations (data)'!U28","v":"Wetaskiwin"},{"$f":"'Weather Stations (data)'!V28","v":"Hughenden"},{"$f":"'Weather Stations (data)'!W28","v":"Kitscoty"},{"$f":"'Weather Stations (data)'!X28","v":"Linden"},{"$f":"'Weather Stations (data)'!Y28","v":"New Sarepta"},{"$f":"'Weather Stations (data)'!Z28","v":"Thorsby"},{"$f":"'Weather Stations (data)'!AA28","v":""},{"$f":"'Weather Stations (data)'!AB28","v":"Oliver"},{"$f":"'Weather Stations (data)'!AC28","v":"Radway"},{"$f":"'Weather Stations (data)'!AD28","v":"Mayerthorpe"},{"$f":"'Weather Stations (data)'!AE28","v":"Radway"},{"$f":"'Weather Stations (data)'!AF28","v":""},{"$f":"'Weather Stations (data)'!AG28","v":""},{"$f":"'Weather Stations (data)'!AH28","v":""},{"$f":"'Weather Stations (data)'!AI28","v":"Whitemud Creek"},{"$f":"'Weather Stations (data)'!AJ28","v":""},{"$f":"'Weather Stations (data)'!AK28","v":""}]
[null,null,null,null,null,null,null,null,null,null,null,null,null,null,null,27,{"$f":"'Weather Stations (data)'!B29","v":"Bow Island South"},null,{"$f":"'Weather Stations (data)'!C29","v":""},{"$f":"'Weather Stations (data)'!D29","v":"Picture Butte"},{"$f":"'Weather Stations (data)'!E29","v":"Milk River"},{"$f":"'Weather Stations (data)'!F28","v":"Pincher Creek"},{"$f":"'Weather Stations (data)'!G29","v":""},{"$f":"'Weather Stations (data)'!H44","v":"Radway"},{"$f":"'Weather Stations (data)'!I29","v":"Kirriemuir"},{"$f":"'Weather Stations (data)'!J29","v":"Lethbridge"},{"$f":"'Weather Stations (data)'!K29","v":"Rosemary"},{"$f":"'Weather Stations (data)'!L29","v":"Hand Hills"},{"$f":"'Weather Stations (data)'!M29","v":"Strathmore"},{"$f":"'Weather Stations (data)'!N29","v":""},{"$f":"'Weather Stations (data)'!O29","v":"Morrin"},{"$f":"'Weather Stations (data)'!P29","v":"Parlby Creek"},{"$f":"'Weather Stations (data)'!Q29","v":"Parlby Creek"},{"$f":"'Weather Stations (data)'!R29","v":"Linden"},{"$f":"'Weather Stations (data)'!S29","v":"Red Deer"},{"$f":"'Weather Stations (data)'!T29","v":"Stettler"},{"$f":"'Weather Stations (data)'!U29","v":"Wimborne"},{"$f":"'Weather Stations (data)'!V29","v":"Hussar"},{"$f":"'Weather Stations (data)'!W29","v":"Lacombe"},{"$f":"'Weather Stations (data)'!X29","v":"Magee Lake"},{"$f":"'Weather Stations (data)'!Y29","v":"Oliver"},{"$f":"'Weather Stations (data)'!Z29","v":"Tomahawk"},{"$f":"'Weather Stations (data)'!AA29","v":""},{"$f":"'Weather Stations (data)'!AB29","v":"Radway"},{"$f":"'Weather Stations (data)'!AC29","v":"Ranfurly"},{"$f":"'Weather Stations (data)'!AD29","v":"Mundare"},{"$f":"'Weather Stations (data)'!AE29","v":"Redwater"},{"$f":"'Weather Stations (data)'!AF29","v":""},{"$f":"'Weather Stations (data)'!AG29","v":""},{"$f":"'Weather Stations (data)'!AH29","v":""},{"$f":"'Weather Stations (data)'!AI29","v":"Worsley"},{"$f":"'Weather Stations (data)'!AJ29","v":""},{"$f":"'Weather Stations (data)'!AK29","v":""}]
[null,null,null,null,null,null,null,null,null,null,null,null,null,null,null,28,{"$f":"'Weather Stations (data)'!B30","v":"Breton"},null,{"$f":"'Weather Stations (data)'!C30","v":""},{"$f":"'Weather Stations (data)'!D30","v":"Pinhorn"},{"$f":"'Weather Stations (data)'!E30","v":"Milk River Reservoir"},{"$f":"'Weather Stations (data)'!F29","v":"Pine Coulee FP"},{"$f":"'Weather Stations (data)'!G30","v":""},{"$f":"'Weather Stations (data)'!H28","v":"Rainier"},{"$f":"'Weather Stations (data)'!I30","v":"Lathom"},{"$f":"'Weather Stations (data)'!J30","v":"Medicine Hat"},{"$f":"'Weather Stations (data)'!K30","v":"Sheerness"},{"$f":"'Weather Stations (data)'!L30","v":"Hussar"},{"$f":"'Weather Stations (data)'!M30","v":"Streeter Creek"},{"$f":"'Weather Stations (data)'!N30","v":""},{"$f":"'Weather Stations (data)'!O30","v":"Oyen"},{"$f":"'Weather Stations (data)'!P30","v":"Ribstone"},{"$f":"'Weather Stations (data)'!Q30","v":"Pollockville"},{"$f":"'Weather Stations (data)'!R30","v":"Magee Lake"},{"$f":"'Weather Stations (data)'!S30","v":"Standard"},{"$f":"'Weather Stations (data)'!T30","v":"Strathmore"},{"$f":"'Weather Stations (data)'!U30","v":""},{"$f":"'Weather Stations (data)'!V30","v":"Kessler"},{"$f":"'Weather Stations (data)'!W30","v":"Magee Lake"},{"$f":"'Weather Stations (data)'!X30","v":"Morrin"},{"$f":"'Weather Stations (data)'!Y30","v":"Paddle Dam"},{"$f":"'Weather Stations (data)'!Z30","v":"Twin Lakes"},{"$f":"'Weather Stations (data)'!AA30","v":""},{"$f":"'Weather Stations (data)'!AB30","v":"Ranfurly"},{"$f":"'Weather Stations (data)'!AC30","v":"Redwater"},{"$f":"'Weather Stations (data)'!AD30","v":"New Sarepta"},{"$f":"'Weather Stations (data)'!AE30","v":"Rich Lake"},{"$f":"'Weather Stations (data)'!AF30","v":""},{"$f":"'Weather Stations (data)'!AG30","v":""},{"$f":"'Weather Stations (data)'!AH30","v":""},null,{"$f":"'Weather Stations (data)'!AJ30","v":""},{"$f":"'Weather Stations (data)'!AK30","v":""}]
[null,null,null,null,null,null,null,null,null,null,null,null,null,null,null,29,{"$f":"'Weather Stations (data)'!B31","v":"Brocket"},null,{"$f":"'Weather Stations (data)'!C31","v":""},{"$f":"'Weather Stations (data)'!D31","v":"Rainier"},{"$f":"'Weather Stations (data)'!E31","v":"Milk River Ridge"},{"$f":"'Weather Stations (data)'!F30","v":"Porcupine"},{"$f":"'Weather Stations (data)'!G31","v":""},{"$f":"'Weather Stations (data)'!H29","v":"Ralston"},{"$f":"'Weather Stations (data)'!I31","v":"Morrin"},{"$f":"'Weather Stations (data)'!J31","v":"Mossleigh"},{"$f":"'Weather Stations (data)'!K31","v":"Spondin"},{"$f":"'Weather Stations (data)'!L31","v":"Keoma"},{"$f":"'Weather Stations (data)'!M31","v":"Tennessee Creek"},{"$f":"'Weather Stations (data)'!N31","v":""},{"$f":"'Weather Stations (data)'!O31","v":"Pollockville"},{"$f":"'Weather Stations (data)'!P31","v":"Sedalia"},{"$f":"'Weather Stations (data)'!Q31","v":"Queenstown"},{"$f":"'Weather Stations (data)'!R31","v":"Morrin"},{"$f":"'Weather Stations (data)'!S31","v":"Stettler"},{"$f":"'Weather Stations (data)'!T31","v":"Sundre"},{"$f":"'Weather Stations (data)'!U31","v":""},{"$f":"'Weather Stations (data)'!V31","v":"Killam"},{"$f":"'Weather Stations (data)'!W31","v":"Mannville"},{"$f":"'Weather Stations (data)'!X31","v":"Mundare"},{"$f":"'Weather Stations (data)'!Y31","v":"Parlby Creek"},{"$f":"'Weather Stations (data)'!Z31","v":"Vega"},{"$f":"'Weather Stations (data)'!AA31","v":""},{"$f":"'Weather Stations (data)'!AB31","v":"Redwater"},{"$f":"'Weather Stations (data)'!AC31","v":"Rich Lake"},{"$f":"'Weather Stations (data)'!AD31","v":"Oliver"},{"$f":"'Weather Stations (data)'!AE31","v":"Sandy Lake"},{"$f":"'Weather Stations (data)'!AF31","v":""},{"$f":"'Weather Stations (data)'!AG31","v":""},{"$f":"'Weather Stations (data)'!AH31","v":""},{"$f":"'Weather Stations (data)'!AI31","v":""},{"$f":"'Weather Stations (data)'!AJ31","v":""},{"$f":"'Weather Stations (data)'!AK31","v":""}]
[null,null,null,null,null,null,null,null,null,null,null,null,null,null,null,30,{"$f":"'Weather Stations (data)'!B32","v":"Brooks"},null,{"$f":"'Weather Stations (data)'!C32","v":""},{"$f":"'Weather Stations (data)'!D32","v":"Ralston"},{"$f":"'Weather Stations (data)'!E32","v":"Pakowki Lake"},{"$f":"'Weather Stations (data)'!F31","v":"Raymond"},{"$f":"'Weather Stations (data)'!G32","v":""},{"$f":"'Weather Stations (data)'!H30","v":"Red Coat"},{"$f":"'Weather Stations (data)'!I32","v":"Oyen"},{"$f":"'Weather Stations (data)'!J32","v":"Patricia"},{"$f":"'Weather Stations (data)'!K32","v":"Standard"},{"$f":"'Weather Stations (data)'!L32","v":"Lathom"},{"$f":"'Weather Stations (data)'!M32","v":"Travers"},{"$f":"'Weather Stations (data)'!N32","v":""},{"$f":"'Weather Stations (data)'!O32","v":"Ribstone"},{"$f":"'Weather Stations (data)'!P32","v":"Sheerness"},{"$f":"'Weather Stations (data)'!Q32","v":"Red Deer"},{"$f":"'Weather Stations (data)'!R32","v":"Mossleigh"},{"$f":"'Weather Stations (data)'!S32","v":"Strathmore"},{"$f":"'Weather Stations (data)'!T32","v":"Thorsby"},{"$f":"'Weather Stations (data)'!U32","v":""},{"$f":"'Weather Stations (data)'!V32","v":"Kinsella"},{"$f":"'Weather Stations (data)'!W32","v":"Morrin"},{"$f":"'Weather Stations (data)'!X32","v":"Neir"},{"$f":"'Weather Stations (data)'!Y32","v":"Prentiss"},{"$f":"'Weather Stations (data)'!Z32","v":"Wetaskiwin"},{"$f":"'Weather Stations (data)'!AA32","v":""},{"$f":"'Weather Stations (data)'!AB32","v":"Rich Lake"},{"$f":"'Weather Stations (data)'!AC32","v":"Sandy Lake"},{"$f":"'Weather Stations (data)'!AD32","v":"Paddle Dam"},{"$f":"'Weather Stations (data)'!AE32","v":"Slave Lake"},{"$f":"'Weather Stations (data)'!AF32","v":""},{"$f":"'Weather Stations (data)'!AG32","v":""},{"$f":"'Weather Stations (data)'!AH32","v":""},{"$f":"'Weather Stations (data)'!AI32","v":""},{"$f":"'Weather Stations (data)'!AJ32","v":""},{"$f":"'Weather Stations (data)'!AK32","v":""}]
[null,null,null,null,null,null,null,null,null,null,null,null,null,null,null,31,{"$f":"'Weather Stations (data)'!B33","v":"Brownvale"},null,{"$f":"'Weather Stations (data)'!C33","v":""},{"$f":"'Weather Stations (data)'!D33","v":"Raymond"},{"$f":"'Weather Stations (data)'!E33","v":"Picture Butte"},{"$f":"'Weather Stations (data)'!F32","v":"St. Mary Reservior"},{"$f":"'Weather Stations (data)'!G33","v":""},{"$f":"'Weather Stations (data)'!H31","v":"Rolling Hills"},{"$f":"'Weather Stations (data)'!I33","v":"Patricia"},{"$f":"'Weather Stations (data)'!J33","v":"Picture Butte"},{"$f":"'Weather Stations (data)'!K33","v":"Strathmore"},{"$f":"'Weather Stations (data)'!L33","v":"Lethbridge"},{"$f":"'Weather Stations (data)'!M33","v":""},{"$f":"'Weather Stations (data)'!N33","v":""},{"$f":"'Weather Stations (data)'!O33","v":"Rosemary"},{"$f":"'Weather Stations (data)'!P33","v":"Spondin"},{"$f":"'Weather Stations (data)'!Q33","v":"Rosemary"},{"$f":"'Weather Stations (data)'!R33","v":"Neir"},{"$f":"'Weather Stations (data)'!S33","v":"Sundre"},{"$f":"'Weather Stations (data)'!T33","v":"Three Hills"},{"$f":"'Weather Stations (data)'!U33","v":""},{"$f":"'Weather Stations (data)'!V33","v":"Kirriemuir"},{"$f":"'Weather Stations (data)'!W33","v":"Mundare"},{"$f":"'Weather Stations (data)'!X33","v":"New Sarepta"},{"$f":"'Weather Stations (data)'!Y33","v":"Radway"},{"$f":"'Weather Stations (data)'!Z33","v":"Whitecourt"},{"$f":"'Weather Stations (data)'!AA33","v":""},{"$f":"'Weather Stations (data)'!AB33","v":"Rosalind"},{"$f":"'Weather Stations (data)'!AC33","v":"Shonts"},{"$f":"'Weather Stations (data)'!AD33","v":"Pibroch"},{"$f":"'Weather Stations (data)'!AE33","v":"Smoky Lake"},{"$f":"'Weather Stations (data)'!AF33","v":""},{"$f":"'Weather Stations (data)'!AG33","v":""},{"$f":"'Weather Stations (data)'!AH33","v":""},{"$f":"'Weather Stations (data)'!AI33","v":""},{"$f":"'Weather Stations (data)'!AJ33","v":""},{"$f":"'Weather Stations (data)'!AK33","v":""}]
[null,null,null,null,null,null,null,null,null,null,null,null,null,null,null,32,{"$f":"'Weather Stations (data)'!B34","v":"BTAP"},null,{"$f":"'Weather Stations (data)'!C34","v":""},{"$f":"'Weather Stations (data)'!D34","v":"Rolling Hills"},{"$f":"'Weather Stations (data)'!E36","v":"Picture Butte"},{"$f":"'Weather Stations (data)'!F33","v":"Stavely"},{"$f":"'Weather Stations (data)'!G34","v":""},{"$f":"'Weather Stations (data)'!H32","v":"Rosemary"},{"$f":"'Weather Stations (data)'!I34","v":"Pollockville"},{"$f":"'Weather Stations (data)'!J34","v":"Pine Coulee FP"},{"$f":"'Weather Stations (data)'!K34","v":"Sunnynook"},{"$f":"'Weather Stations (data)'!L34","v":"Linden"},{"$f":"'Weather Stations (data)'!M34","v":""},{"$f":"'Weather Stations (data)'!N34","v":""},{"$f":"'Weather Stations (data)'!O34","v":"Sedalia"},{"$f":"'Weather Stations (data)'!P34","v":"Stettler"},{"$f":"'Weather Stations (data)'!Q34","v":"Sheerness"},{"$f":"'Weather Stations (data)'!R34","v":"Olds"},{"$f":"'Weather Stations (data)'!S34","v":"Three Hills"},{"$f":"'Weather Stations (data)'!T34","v":"Water Valley"},{"$f":"'Weather Stations (data)'!U34","v":""},{"$f":"'Weather Stations (data)'!V34","v":"Kitscoty"},{"$f":"'Weather Stations (data)'!W34","v":"Myrnam"},{"$f":"'Weather Stations (data)'!X34","v":"Olds"},{"$f":"'Weather Stations (data)'!Y34","v":"Red Deer"},{"$f":"'Weather Stations (data)'!Z34","v":""},{"$f":"'Weather Stations (data)'!AA34","v":""},{"$f":"'Weather Stations (data)'!AB34","v":"Sandy Lake"},{"$f":"'Weather Stations (data)'!AC34","v":"Smoky Lake"},{"$f":"'Weather Stations (data)'!AD34","v":"Pleasant View"},{"$f":"'Weather Stations (data)'!AE34","v":"St. Albert"},{"$f":"'Weather Stations (data)'!AF34","v":""},{"$f":"'Weather Stations (data)'!AG34","v":""},{"$f":"'Weather Stations (data)'!AH34","v":""},{"$f":"'Weather Stations (data)'!AI34","v":""},{"$f":"'Weather Stations (data)'!AJ34","v":""},{"$f":"'Weather Stations (data)'!AK34","v":""}]
[null,null,null,null,null,null,null,null,null,null,null,null,null,null,null,33,{"$f":"'Weather Stations (data)'!B35","v":"Buffalo"},null,{"$f":"'Weather Stations (data)'!C35","v":""},{"$f":"'Weather Stations (data)'!D35","v":"Rush Lake"},{"$f":"'Weather Stations (data)'!E34","v":"Pine Coulee FP"},{"$f":"'Weather Stations (data)'!F34","v":"Streeter Creek"},{"$f":"'Weather Stations (data)'!G35","v":""},{"$f":"'Weather Stations (data)'!H45","v":"Ross Creek "},{"$f":"'Weather Stations (data)'!I35","v":"Queenstown"},{"$f":"'Weather Stations (data)'!J35","v":"Pollockville"},{"$f":"'Weather Stations (data)'!K35","v":"Three Hills"},{"$f":"'Weather Stations (data)'!L35","v":"Livingston"},{"$f":"'Weather Stations (data)'!M35","v":""},{"$f":"'Weather Stations (data)'!N35","v":""},{"$f":"'Weather Stations (data)'!O35","v":"Sheerness"},{"$f":"'Weather Stations (data)'!P35","v":"Three Hills"},{"$f":"'Weather Stations (data)'!Q35","v":"Spondin"},{"$f":"'Weather Stations (data)'!R35","v":"Parlby Creek"},{"$f":"'Weather Stations (data)'!S35","v":"Water Valley"},{"$f":"'Weather Stations (data)'!T35","v":"Wetaskiwin"},{"$f":"'Weather Stations (data)'!U35","v":""},{"$f":"'Weather Stations (data)'!V35","v":"Linden"},{"$f":"'Weather Stations (data)'!W35","v":"New Sarepta"},{"$f":"'Weather Stations (data)'!X35","v":"Oliver"},{"$f":"'Weather Stations (data)'!Y35","v":"Redwater"},{"$f":"'Weather Stations (data)'!Z35","v":""},{"$f":"'Weather Stations (data)'!AA35","v":""},{"$f":"'Weather Stations (data)'!AB35","v":"Shonts"},{"$f":"'Weather Stations (data)'!AC35","v":"St. Albert"},{"$f":"'Weather Stations (data)'!AD35","v":"Radway"},{"$f":"'Weather Stations (data)'!AE35","v":"Stony Plain"},{"$f":"'Weather Stations (data)'!AF35","v":""},{"$f":"'Weather Stations (data)'!AG35","v":""},{"$f":"'Weather Stations (data)'!AH35","v":""},{"$f":"'Weather Stations (data)'!AI35","v":""},{"$f":"'Weather Stations (data)'!AJ35","v":""},{"$f":"'Weather Stations (data)'!AK35","v":""}]
[null,null,null,null,null,null,null,null,null,null,null,null,null,null,null,34,{"$f":"'Weather Stations (data)'!B36","v":"Bullhorn Coulee Reservoir Inlet"},null,{"$f":"'Weather Stations (data)'!C36","v":""},{"$f":"'Weather Stations (data)'!D36","v":"Sage Creek"},{"$f":"'Weather Stations (data)'!E35","v":"Pinhorn"},{"$f":"'Weather Stations (data)'!F35","v":"Tennessee Creek"},{"$f":"'Weather Stations (data)'!G36","v":""},{"$f":"'Weather Stations (data)'!H33","v":"Rush Lake"},{"$f":"'Weather Stations (data)'!I36","v":"Rainier"},{"$f":"'Weather Stations (data)'!J36","v":"Queenstown"},{"$f":"'Weather Stations (data)'!K36","v":"Tide Lake"},{"$f":"'Weather Stations (data)'!L36","v":"Milk River Reservoir"},{"$f":"'Weather Stations (data)'!M36","v":""},{"$f":"'Weather Stations (data)'!N36","v":""},{"$f":"'Weather Stations (data)'!O36","v":"Spondin"},{"$f":"'Weather Stations (data)'!P36","v":"Wainwright"},{"$f":"'Weather Stations (data)'!Q36","v":"Standard"},{"$f":"'Weather Stations (data)'!R36","v":"Prentiss"},{"$f":"'Weather Stations (data)'!S36","v":"Wimborne"},{"$f":"'Weather Stations (data)'!T36","v":"Wimborne"},{"$f":"'Weather Stations (data)'!U36","v":""},{"$f":"'Weather Stations (data)'!V36","v":"Lloydminster"},{"$f":"'Weather Stations (data)'!W36","v":"Oliver"},{"$f":"'Weather Stations (data)'!X36","v":"Parlby Creek"},{"$f":"'Weather Stations (data)'!Y36","v":"Rocky Mnt H"},{"$f":"'Weather Stations (data)'!Z36","v":""},{"$f":"'Weather Stations (data)'!AA36","v":""},{"$f":"'Weather Stations (data)'!AB36","v":"Smoky Lake"},{"$f":"'Weather Stations (data)'!AC36","v":"St. Lina"},{"$f":"'Weather Stations (data)'!AD36","v":"Redwater"},{"$f":"'Weather Stations (data)'!AE36","v":"Tawatinaw"},{"$f":"'Weather Stations (data)'!AF36","v":""},{"$f":"'Weather Stations (data)'!AG36","v":""},{"$f":"'Weather Stations (data)'!AH36","v":""},{"$f":"'Weather Stations (data)'!AI36","v":""},{"$f":"'Weather Stations (data)'!AJ36","v":""},{"$f":"'Weather Stations (data)'!AK36","v":""}]
[null,null,null,null,null,null,null,null,null,null,null,null,null,null,null,35,{"$f":"'Weather Stations (data)'!B37","v":"Bullhorn Headwater"},null,{"$f":"'Weather Stations (data)'!C37","v":""},{"$f":"'Weather Stations (data)'!D37","v":"Schuler"},{"$f":"'Weather Stations (data)'!E37","v":"Porcupine"},{"$f":"'Weather Stations (data)'!F36","v":"Travers"},{"$f":"'Weather Stations (data)'!G37","v":""},{"$f":"'Weather Stations (data)'!H34","v":"Schuler"},{"$f":"'Weather Stations (data)'!I37","v":"Ralston"},{"$f":"'Weather Stations (data)'!J37","v":"Rainier"},{"$f":"'Weather Stations (data)'!K37","v":"Travers"},{"$f":"'Weather Stations (data)'!L37","v":"Milk River Ridge"},{"$f":"'Weather Stations (data)'!M37","v":""},{"$f":"'Weather Stations (data)'!N37","v":""},{"$f":"'Weather Stations (data)'!O37","v":"Standard"},{"$f":"'Weather Stations (data)'!P37","v":"Youngstown"},{"$f":"'Weather Stations (data)'!Q37","v":"Stettler"},{"$f":"'Weather Stations (data)'!R37","v":"Priddis Observatory"},{"$f":"'Weather Stations (data)'!S37","v":""},{"$f":"'Weather Stations (data)'!T37","v":""},{"$f":"'Weather Stations (data)'!U37","v":""},{"$f":"'Weather Stations (data)'!V37","v":"Mannville"},{"$f":"'Weather Stations (data)'!W37","v":"Parlby Creek"},{"$f":"'Weather Stations (data)'!X37","v":"Prentiss"},{"$f":"'Weather Stations (data)'!Y37","v":"Shonts"},{"$f":"'Weather Stations (data)'!Z37","v":""},{"$f":"'Weather Stations (data)'!AA37","v":""},{"$f":"'Weather Stations (data)'!AB37","v":"St. Albert"},{"$f":"'Weather Stations (data)'!AC37","v":"St. Paul"},{"$f":"'Weather Stations (data)'!AD37","v":"Rosalind"},{"$f":"'Weather Stations (data)'!AE37","v":"Tomahawk"},{"$f":"'Weather Stations (data)'!AF37","v":""},{"$f":"'Weather Stations (data)'!AG37","v":""},{"$f":"'Weather Stations (data)'!AH37","v":""},{"$f":"'Weather Stations (data)'!AI37","v":""},{"$f":"'Weather Stations (data)'!AJ37","v":""},{"$f":"'Weather Stations (data)'!AK37","v":""}]
[null,null,null,null,null,null,null,null,null,null,null,null,null,null,null,36,{"$f":"'Weather Stations (data)'!B38","v":"Bullsprings"},null,{"$f":"'Weather Stations (data)'!C38","v":""},{"$f":"'Weather Stations (data)'!D38","v":"Seven Persons"},{"$f":"'Weather Stations (data)'!E38","v":"Queenstown"},{"$f":"'Weather Stations (data)'!F37","v":"Vauxhall"},{"$f":"'Weather Stations (data)'!G38","v":""},{"$f":"'Weather Stations (data)'!H35","v":"Seven Persons"},{"$f":"'Weather Stations (data)'!I38","v":"Red Coat"},{"$f":"'Weather Stations (data)'!J38","v":"Ralston"},{"$f":"'Weather Stations (data)'!K38","v":"Verger"},{"$f":"'Weather Stations (data)'!L38","v":"Morrin"},{"$f":"'Weather Stations (data)'!M38","v":""},{"$f":"'Weather Stations (data)'!N38","v":""},{"$f":"'Weather Stations (data)'!O38","v":"Stettler"},{"$f":"'Weather Stations (data)'!P38","v":""},{"$f":"'Weather Stations (data)'!Q38","v":"Strathmore"},{"$f":"'Weather Stations (data)'!R38","v":"Queenstown"},{"$f":"'Weather Stations (data)'!S38","v":""},{"$f":"'Weather Stations (data)'!T38","v":""},{"$f":"'Weather Stations (data)'!U38","v":""},{"$f":"'Weather Stations (data)'!V38","v":"Morrin"},{"$f":"'Weather Stations (data)'!W38","v":"Prentiss"},{"$f":"'Weather Stations (data)'!X38","v":"Red Deer"},{"$f":"'Weather Stations (data)'!Y38","v":"St. Albert"},{"$f":"'Weather Stations (data)'!Z38","v":""},{"$f":"'Weather Stations (data)'!AA38","v":""},{"$f":"'Weather Stations (data)'!AB38","v":"St. Lina"},{"$f":"'Weather Stations (data)'!AC38","v":"Stony Plain"},{"$f":"'Weather Stations (data)'!AD38","v":"Sandy Lake"},{"$f":"'Weather Stations (data)'!AE38","v":"Twin Lakes"},{"$f":"'Weather Stations (data)'!AF38","v":""},{"$f":"'Weather Stations (data)'!AG38","v":""},{"$f":"'Weather Stations (data)'!AH38","v":""},{"$f":"'Weather Stations (data)'!AI38","v":""},{"$f":"'Weather Stations (data)'!AJ38","v":""},{"$f":"'Weather Stations (data)'!AK38","v":""}]
[null,null,null,null,null,null,null,null,null,null,null,null,null,null,null,37,{"$f":"'Weather Stations (data)'!B39","v":"Busby"},null,{"$f":"'Weather Stations (data)'!C39","v":""},{"$f":"'Weather Stations (data)'!D39","v":"St. Mary Reservior"},{"$f":"'Weather Stations (data)'!E39","v":"Rainier"},{"$f":"'Weather Stations (data)'!F38","v":"Warner"},{"$f":"'Weather Stations (data)'!G39","v":""},{"$f":"'Weather Stations (data)'!H36","v":"Sheerness"},{"$f":"'Weather Stations (data)'!I39","v":"Rolling Hills"},{"$f":"'Weather Stations (data)'!J39","v":"Raymond"},{"$f":"'Weather Stations (data)'!K39","v":"Youngstown"},{"$f":"'Weather Stations (data)'!L39","v":"Mossleigh"},{"$f":"'Weather Stations (data)'!M39","v":""},{"$f":"'Weather Stations (data)'!N39","v":""},{"$f":"'Weather Stations (data)'!O39","v":"Sunnynook"},{"$f":"'Weather Stations (data)'!P39","v":""},{"$f":"'Weather Stations (data)'!Q39","v":"Sunnynook"},{"$f":"'Weather Stations (data)'!R39","v":"Red Deer"},{"$f":"'Weather Stations (data)'!S39","v":""},{"$f":"'Weather Stations (data)'!T39","v":""},{"$f":"'Weather Stations (data)'!U39","v":""},{"$f":"'Weather Stations (data)'!V39","v":"Myrnam"},{"$f":"'Weather Stations (data)'!W39","v":"Ranfurly"},{"$f":"'Weather Stations (data)'!X39","v":"Rosalind"},{"$f":"'Weather Stations (data)'!Y39","v":"St. Francis"},{"$f":"'Weather Stations (data)'!Z39","v":""},{"$f":"'Weather Stations (data)'!AA39","v":""},{"$f":"'Weather Stations (data)'!AB39","v":"St. Paul"},{"$f":"'Weather Stations (data)'!AC39","v":"Tawatinaw"},{"$f":"'Weather Stations (data)'!AD39","v":"Shonts"},{"$f":"'Weather Stations (data)'!AE39","v":"Vega"},{"$f":"'Weather Stations (data)'!AF39","v":""},{"$f":"'Weather Stations (data)'!AG39","v":""},{"$f":"'Weather Stations (data)'!AH39","v":""},{"$f":"'Weather Stations (data)'!AI39","v":""},{"$f":"'Weather Stations (data)'!AJ39","v":""},{"$f":"'Weather Stations (data)'!AK39","v":""}]
[null,null,null,null,null,null,null,null,null,null,null,null,null,null,null,38,{"$f":"'Weather Stations (data)'!B40","v":"Cabin Lake"},null,{"$f":"'Weather Stations (data)'!C40","v":""},{"$f":"'Weather Stations (data)'!D40","v":"Steveville"},{"$f":"'Weather Stations (data)'!E40","v":"Raymond"},{"$f":"'Weather Stations (data)'!F39","v":"Wrentham"},{"$f":"'Weather Stations (data)'!G40","v":""},{"$f":"'Weather Stations (data)'!H37","v":"Social Plains"},{"$f":"'Weather Stations (data)'!I40","v":"Rosemary"},{"$f":"'Weather Stations (data)'!J40","v":"Red Coat"},{"$f":"'Weather Stations (data)'!K40","v":""},{"$f":"'Weather Stations (data)'!L40","v":"Neir"},{"$f":"'Weather Stations (data)'!M40","v":""},{"$f":"'Weather Stations (data)'!N40","v":""},{"$f":"'Weather Stations (data)'!O40","v":"Verger"},{"$f":"'Weather Stations (data)'!P40","v":""},{"$f":"'Weather Stations (data)'!Q40","v":"Three Hills"},{"$f":"'Weather Stations (data)'!R40","v":"Rosalind"},{"$f":"'Weather Stations (data)'!S40","v":""},{"$f":"'Weather Stations (data)'!T40","v":""},{"$f":"'Weather Stations (data)'!U40","v":""},{"$f":"'Weather Stations (data)'!V40","v":"Parlby Creek"},{"$f":"'Weather Stations (data)'!W40","v":"Red Deer"},{"$f":"'Weather Stations (data)'!X40","v":"Shonts"},{"$f":"'Weather Stations (data)'!Y40","v":"Stettler"},{"$f":"'Weather Stations (data)'!Z40","v":""},{"$f":"'Weather Stations (data)'!AA40","v":""},{"$f":"'Weather Stations (data)'!AB40","v":"Tulliby Lake"},{"$f":"'Weather Stations (data)'!AC40","v":"Tulliby Lake"},{"$f":"'Weather Stations (data)'!AD40","v":"Smoky Lake"},{"$f":"'Weather Stations (data)'!AE40","v":"Vilna"},{"$f":"'Weather Stations (data)'!AF40","v":""},{"$f":"'Weather Stations (data)'!AG40","v":""},{"$f":"'Weather Stations (data)'!AH40","v":""},{"$f":"'Weather Stations (data)'!AI40","v":""},{"$f":"'Weather Stations (data)'!AJ40","v":""},{"$f":"'Weather Stations (data)'!AK40","v":""}]
[null,null,null,null,null,null,null,null,null,null,null,null,null,null,null,39,{"$f":"'Weather Stations (data)'!B41","v":"Cadogan"},null,{"$f":"'Weather Stations (data)'!C41","v":""},{"$f":"'Weather Stations (data)'!D41","v":"Tide Lake"},{"$f":"'Weather Stations (data)'!E41","v":"Rolling Hills"},{"$f":"'Weather Stations (data)'!F41","v":""},{"$f":"'Weather Stations (data)'!G41","v":""},{"$f":"'Weather Stations (data)'!H38","v":"Sunnynook"},{"$f":"'Weather Stations (data)'!I41","v":"Schuler"},{"$f":"'Weather Stations (data)'!J41","v":"Rolling Hills"},{"$f":"'Weather Stations (data)'!K41","v":""},{"$f":"'Weather Stations (data)'!L41","v":"Olds"},{"$f":"'Weather Stations (data)'!M41","v":""},{"$f":"'Weather Stations (data)'!N41","v":""},{"$f":"'Weather Stations (data)'!O41","v":"Wardlow"},{"$f":"'Weather Stations (data)'!P41","v":""},{"$f":"'Weather Stations (data)'!Q41","v":"Verger"},{"$f":"'Weather Stations (data)'!R41","v":"Standard"},{"$f":"'Weather Stations (data)'!S41","v":""},{"$f":"'Weather Stations (data)'!T41","v":""},{"$f":"'Weather Stations (data)'!U41","v":""},{"$f":"'Weather Stations (data)'!V41","v":"Prentiss"},{"$f":"'Weather Stations (data)'!W41","v":"Rosalind"},{"$f":"'Weather Stations (data)'!X41","v":"St. Albert"},{"$f":"'Weather Stations (data)'!Y41","v":"Stony Plain"},{"$f":"'Weather Stations (data)'!Z41","v":""},{"$f":"'Weather Stations (data)'!AA41","v":""},{"$f":"'Weather Stations (data)'!AB41","v":"Two Hills"},{"$f":"'Weather Stations (data)'!AC41","v":"Two Hills"},{"$f":"'Weather Stations (data)'!AD41","v":"St. Albert"},{"$f":"'Weather Stations (data)'!AE41","v":"Wandering River"},{"$f":"'Weather Stations (data)'!AF41","v":""},{"$f":"'Weather Stations (data)'!AG41","v":""},{"$f":"'Weather Stations (data)'!AH41","v":""},{"$f":"'Weather Stations (data)'!AI41","v":""},{"$f":"'Weather Stations (data)'!AJ41","v":""},{"$f":"'Weather Stations (data)'!AK41","v":""}]
[null,null,null,null,null,null,null,null,null,null,null,null,null,null,null,40,{"$f":"'Weather Stations (data)'!B42","v":"Calgary"},null,{"$f":"'Weather Stations (data)'!C42","v":""},{"$f":"'Weather Stations (data)'!D42","v":"Travers"},{"$f":"'Weather Stations (data)'!E42","v":"St. Mary Reservior"},{"$f":"'Weather Stations (data)'!F42","v":""},{"$f":"'Weather Stations (data)'!G42","v":""},{"$f":"'Weather Stations (data)'!H39","v":"Tide Lake"},{"$f":"'Weather Stations (data)'!I42","v":"Sedalia"},{"$f":"'Weather Stations (data)'!J42","v":"Rosemary"},{"$f":"'Weather Stations (data)'!K42","v":""},{"$f":"'Weather Stations (data)'!L42","v":"Picture Butte"},{"$f":"'Weather Stations (data)'!M42","v":""},{"$f":"'Weather Stations (data)'!N42","v":""},{"$f":"'Weather Stations (data)'!O42","v":"Youngstown"},{"$f":"'Weather Stations (data)'!P42","v":""},{"$f":"'Weather Stations (data)'!Q42","v":"Wardlow"},{"$f":"'Weather Stations (data)'!R42","v":"Stavely"},{"$f":"'Weather Stations (data)'!S42","v":""},{"$f":"'Weather Stations (data)'!T42","v":""},{"$f":"'Weather Stations (data)'!U42","v":""},{"$f":"'Weather Stations (data)'!V42","v":"Ranfurly"},{"$f":"'Weather Stations (data)'!W42","v":"Shonts"},{"$f":"'Weather Stations (data)'!X42","v":"St. Francis"},{"$f":"'Weather Stations (data)'!Y42","v":"Thorsby"},{"$f":"'Weather Stations (data)'!Z42","v":""},{"$f":"'Weather Stations (data)'!AA42","v":""},{"$f":"'Weather Stations (data)'!AB42","v":"Vegreville"},{"$f":"'Weather Stations (data)'!AC42","v":"Vegreville"},{"$f":"'Weather Stations (data)'!AD42","v":"St. Francis"},{"$f":"'Weather Stations (data)'!AE42","v":"Whitecourt"},{"$f":"'Weather Stations (data)'!AF42","v":""},{"$f":"'Weather Stations (data)'!AG42","v":""},{"$f":"'Weather Stations (data)'!AH42","v":""},{"$f":"'Weather Stations (data)'!AI42","v":""},{"$f":"'Weather Stations (data)'!AJ42","v":""},{"$f":"'Weather Stations (data)'!AK42","v":""}]
[null,null,null,null,null,null,null,null,null,null,null,null,null,null,null,41,{"$f":"'Weather Stations (data)'!B43","v":"Campsie"},null,{"$f":"'Weather Stations (data)'!C43","v":""},{"$f":"'Weather Stations (data)'!D43","v":"Vauxhall"},{"$f":"'Weather Stations (data)'!E43","v":"Stavely"},{"$f":"'Weather Stations (data)'!F43","v":""},{"$f":"'Weather Stations (data)'!G43","v":""},{"$f":"'Weather Stations (data)'!H40","v":"Vauxhall"},{"$f":"'Weather Stations (data)'!I43","v":"Sheerness"},{"$f":"'Weather Stations (data)'!J43","v":"Rush Lake"},{"$f":"'Weather Stations (data)'!K43","v":""},{"$f":"'Weather Stations (data)'!L43","v":"Pincher Creek"},{"$f":"'Weather Stations (data)'!M43","v":""},{"$f":"'Weather Stations (data)'!N43","v":""},{"$f":"'Weather Stations (data)'!O43","v":""},{"$f":"'Weather Stations (data)'!P43","v":""},{"$f":"'Weather Stations (data)'!Q43","v":"Wimborne"},{"$f":"'Weather Stations (data)'!R43","v":"Stettler"},{"$f":"'Weather Stations (data)'!S43","v":""},{"$f":"'Weather Stations (data)'!T43","v":""},{"$f":"'Weather Stations (data)'!U43","v":""},{"$f":"'Weather Stations (data)'!V43","v":"Ribstone"},{"$f":"'Weather Stations (data)'!W43","v":"Spondin"},{"$f":"'Weather Stations (data)'!X43","v":"Stettler"},{"$f":"'Weather Stations (data)'!Y43","v":"Tomahawk"},{"$f":"'Weather Stations (data)'!Z43","v":""},{"$f":"'Weather Stations (data)'!AA43","v":""},{"$f":"'Weather Stations (data)'!AB43","v":"Vermilion"},{"$f":"'Weather Stations (data)'!AC43","v":"Vermilion"},{"$f":"'Weather Stations (data)'!AD43","v":"Stony Plain"},{"$f":"'Weather Stations (data)'!AE43","v":""},{"$f":"'Weather Stations (data)'!AF43","v":""},{"$f":"'Weather Stations (data)'!AG43","v":""},{"$f":"'Weather Stations (data)'!AH43","v":""},{"$f":"'Weather Stations (data)'!AI43","v":""},{"$f":"'Weather Stations (data)'!AJ43","v":""},{"$f":"'Weather Stations (data)'!AK43","v":""}]
[null,null,null,null,null,null,null,null,null,null,null,null,null,null,null,42,{"$f":"'Weather Stations (data)'!B44","v":"Camrose"},null,{"$f":"'Weather Stations (data)'!C44","v":""},{"$f":"'Weather Stations (data)'!D44","v":"Vernon Lake"},{"$f":"'Weather Stations (data)'!E44","v":"Steveville"},{"$f":"'Weather Stations (data)'!F44","v":""},{"$f":"'Weather Stations (data)'!G44","v":""},{"$f":"'Weather Stations (data)'!H41","v":"Verger"},{"$f":"'Weather Stations (data)'!I44","v":"Social Plains"},{"$f":"'Weather Stations (data)'!J44","v":"Seven Persons"},{"$f":"'Weather Stations (data)'!K44","v":""},{"$f":"'Weather Stations (data)'!L44","v":"Pine Coulee FP"},{"$f":"'Weather Stations (data)'!M44","v":""},{"$f":"'Weather Stations (data)'!N44","v":""},{"$f":"'Weather Stations (data)'!O44","v":""},{"$f":"'Weather Stations (data)'!P44","v":""},{"$f":"'Weather Stations (data)'!Q44","v":"Youngstown"},{"$f":"'Weather Stations (data)'!R44","v":"Strathmore"},{"$f":"'Weather Stations (data)'!S44","v":""},{"$f":"'Weather Stations (data)'!T44","v":""},{"$f":"'Weather Stations (data)'!U44","v":""},{"$f":"'Weather Stations (data)'!V44","v":"Rivercourse"},{"$f":"'Weather Stations (data)'!W44","v":"Stettler"},{"$f":"'Weather Stations (data)'!X44","v":"Stony Plain"},{"$f":"'Weather Stations (data)'!Y44","v":"Twin Lakes"},{"$f":"'Weather Stations (data)'!Z44","v":""},{"$f":"'Weather Stations (data)'!AA44","v":""},{"$f":"'Weather Stations (data)'!AB44","v":"Viking"},{"$f":"'Weather Stations (data)'!AC44","v":"Vilna"},{"$f":"'Weather Stations (data)'!AD44","v":"Tawatinaw"},{"$f":"'Weather Stations (data)'!AE44","v":""},{"$f":"'Weather Stations (data)'!AF44","v":""},{"$f":"'Weather Stations (data)'!AG44","v":""},{"$f":"'Weather Stations (data)'!AH44","v":""},{"$f":"'Weather Stations (data)'!AI44","v":""},{"$f":"'Weather Stations (data)'!AJ44","v":""},{"$f":"'Weather Stations (data)'!AK44","v":""}]
[null,null,null,null,null,null,null,null,null,null,null,null,null,null,null,43,{"$f":"'Weather Stations (data)'!B45","v":"Cappon"},null,{"$f":"'Weather Stations (data)'!C45","v":""},{"$f":"'Weather Stations (data)'!D45","v":"Warner"},{"$f":"'Weather Stations (data)'!E45","v":"Streeter Creek"},{"$f":"'Weather Stations (data)'!F45","v":""},{"$f":"'Weather Stations (data)'!G45","v":""},{"$f":"'Weather Stations (data)'!H42","v":"Winnifred"},{"$f":"'Weather Stations (data)'!I45","v":"Spondin"},{"$f":"'Weather Stations (data)'!J45","v":"Standard"},{"$f":"'Weather Stations (data)'!K45","v":""},{"$f":"'Weather Stations (data)'!L45","v":"Porcupine"},{"$f":"'Weather Stations (data)'!M45","v":""},{"$f":"'Weather Stations (data)'!N45","v":""},{"$f":"'Weather Stations (data)'!O45","v":""},{"$f":"'Weather Stations (data)'!P45","v":""},{"$f":"'Weather Stations (data)'!Q45","v":""},{"$f":"'Weather Stations (data)'!R45","v":"Three Hills"},{"$f":"'Weather Stations (data)'!S45","v":""},{"$f":"'Weather Stations (data)'!T45","v":""},{"$f":"'Weather Stations (data)'!U45","v":""},{"$f":"'Weather Stations (data)'!V45","v":"Rosalind"},{"$f":"'Weather Stations (data)'!W45","v":"Thorsby"},{"$f":"'Weather Stations (data)'!X45","v":"Sundre"},{"$f":"'Weather Stations (data)'!Y45","v":"Wetaskiwin"},{"$f":"'Weather Stations (data)'!Z45","v":""},{"$f":"'Weather Stations (data)'!AA45","v":""},{"$f":"'Weather Stations (data)'!AB45","v":"Vilna"},{"$f":"'Weather Stations (data)'!AC45","v":"Wandering River"},{"$f":"'Weather Stations (data)'!AD45","v":"Thorsby"},{"$f":"'Weather Stations (data)'!AE45","v":""},{"$f":"'Weather Stations (data)'!AF45","v":""},{"$f":"'Weather Stations (data)'!AG45","v":""},{"$f":"'Weather Stations (data)'!AH45","v":""},{"$f":"'Weather Stations (data)'!AI45","v":""},{"$f":"'Weather Stations (data)'!AJ45","v":""},{"$f":"'Weather Stations (data)'!AK45","v":""}]
[null,null,null,null,null,null,null,null,null,null,null,null,null,null,null,44,{"$f":"'Weather Stations (data)'!B46","v":"Cardston"},null,{"$f":"'Weather Stations (data)'!C46","v":""},{"$f":"'Weather Stations (data)'!D46","v":"Winnifred"},{"$f":"'Weather Stations (data)'!E46","v":"Tennessee Creek"},{"$f":"'Weather Stations (data)'!F46","v":""},{"$f":"'Weather Stations (data)'!G46","v":""},{"$f":"'Weather Stations (data)'!H43","v":"Youngstown"},{"$f":"'Weather Stations (data)'!I46","v":"Standard"},{"$f":"'Weather Stations (data)'!J46","v":"Strathmore"},{"$f":"'Weather Stations (data)'!K46","v":""},{"$f":"'Weather Stations (data)'!L46","v":"Priddis Observatory"},{"$f":"'Weather Stations (data)'!M46","v":""},{"$f":"'Weather Stations (data)'!N46","v":""},{"$f":"'Weather Stations (data)'!O46","v":""},{"$f":"'Weather Stations (data)'!P46","v":""},{"$f":"'Weather Stations (data)'!Q46","v":""},{"$f":"'Weather Stations (data)'!R46","v":"Travers"},{"$f":"'Weather Stations (data)'!S46","v":""},{"$f":"'Weather Stations (data)'!T46","v":""},{"$f":"'Weather Stations (data)'!U46","v":""},{"$f":"'Weather Stations (data)'!V46","v":"Shonts"},{"$f":"'Weather Stations (data)'!W46","v":"Three Hills"},{"$f":"'Weather Stations (data)'!X46","v":"Thorsby"},{"$f":"'Weather Stations (data)'!Y46","v":"Wimborne"},{"$f":"'Weather Stations (data)'!Z46","v":""},{"$f":"'Weather Stations (data)'!AA46","v":""},{"$f":"'Weather Stations (data)'!AB46","v":"Wetaskiwin"},{"$f":"'Weather Stations (data)'!AC46","v":""},{"$f":"'Weather Stations (data)'!AD46","v":"Tomahawk"},{"$f":"'Weather Stations (data)'!AE46","v":""},{"$f":"'Weather Stations (data)'!AF46","v":""},{"$f":"'Weather Stations (data)'!AG46","v":""},{"$f":"'Weather Stations (data)'!AH46","v":""},{"$f":"'Weather Stations (data)'!AI46","v":""},{"$f":"'Weather Stations (data)'!AJ46","v":""},{"$f":"'Weather Stations (data)'!AK46","v":""}]
[null,null,null,null,null,null,null,null,null,null,null,null,null,null,null,45,{"$f":"'Weather Stations (data)'!B47","v":"Carrot Creek"},null,{"$f":"'Weather Stations (data)'!C47","v":""},{"$f":"'Weather Stations (data)'!D47","v":"Wrentham"},{"$f":"'Weather Stations (data)'!E47","v":"Travers"},{"$f":"'Weather Stations (data)'!F47","v":""},{"$f":"'Weather Stations (data)'!G47","v":""},{"$f":"'Weather Stations (data)'!H47","v":""},{"$f":"'Weather Stations (data)'!I47","v":"Sunnynook"},{"$f":"'Weather Stations (data)'!J47","v":"Sunnynook"},{"$f":"'Weather Stations (data)'!K47","v":""},{"$f":"'Weather Stations (data)'!L47","v":"Queenstown"},{"$f":"'Weather Stations (data)'!M47","v":""},{"$f":"'Weather Stations (data)'!N47","v":""},{"$f":"'Weather Stations (data)'!O47","v":""},{"$f":"'Weather Stations (data)'!P47","v":""},{"$f":"'Weather Stations (data)'!Q47","v":""},{"$f":"'Weather Stations (data)'!R47","v":"Water Valley"},{"$f":"'Weather Stations (data)'!S47","v":""},{"$f":"'Weather Stations (data)'!T47","v":""},{"$f":"'Weather Stations (data)'!U47","v":""},{"$f":"'Weather Stations (data)'!V47","v":"Spondin"},{"$f":"'Weather Stations (data)'!W47","v":"Two Hills"},{"$f":"'Weather Stations (data)'!X47","v":"Three Hills"},{"$f":"'Weather Stations (data)'!Y47","v":""},{"$f":"'Weather Stations (data)'!Z47","v":""},{"$f":"'Weather Stations (data)'!AA47","v":""},{"$f":"'Weather Stations (data)'!AB47","v":""},{"$f":"'Weather Stations (data)'!AC47","v":""},{"$f":"'Weather Stations (data)'!AD47","v":"Twin Lakes"},{"$f":"'Weather Stations (data)'!AE47","v":""},{"$f":"'Weather Stations (data)'!AF47","v":""},{"$f":"'Weather Stations (data)'!AG47","v":""},{"$f":"'Weather Stations (data)'!AH47","v":""},{"$f":"'Weather Stations (data)'!AI47","v":""},{"$f":"'Weather Stations (data)'!AJ47","v":""},{"$f":"'Weather Stations (data)'!AK47","v":""}]
[null,null,null,null,null,null,null,null,null,null,null,null,null,null,null,46,{"$f":"'Weather Stations (data)'!B48","v":"Carseland"},null,{"$f":"'Weather Stations (data)'!C48","v":""},{"$f":"'Weather Stations (data)'!D48","v":""},{"$f":"'Weather Stations (data)'!E48","v":"Vauxhall"},{"$f":"'Weather Stations (data)'!F48","v":""},{"$f":"'Weather Stations (data)'!G48","v":""},{"$f":"'Weather Stations (data)'!H48","v":""},{"$f":"'Weather Stations (data)'!I48","v":"Tide Lake"},{"$f":"'Weather Stations (data)'!J48","v":"Tide Lake"},{"$f":"'Weather Stations (data)'!K48","v":""},{"$f":"'Weather Stations (data)'!L48","v":"Rainier"},{"$f":"'Weather Stations (data)'!M48","v":""},{"$f":"'Weather Stations (data)'!N48","v":""},{"$f":"'Weather Stations (data)'!O48","v":""},{"$f":"'Weather Stations (data)'!P48","v":""},{"$f":"'Weather Stations (data)'!Q48","v":""},{"$f":"'Weather Stations (data)'!R48","v":"Wimborne"},{"$f":"'Weather Stations (data)'!S48","v":""},{"$f":"'Weather Stations (data)'!T48","v":""},{"$f":"'Weather Stations (data)'!U48","v":""},{"$f":"'Weather Stations (data)'!V48","v":"Standard"},{"$f":"'Weather Stations (data)'!W48","v":"Vegreville"},{"$f":"'Weather Stations (data)'!X48","v":"Two Hills"},{"$f":"'Weather Stations (data)'!Y48","v":""},{"$f":"'Weather Stations (data)'!Z48","v":""},{"$f":"'Weather Stations (data)'!AA48","v":""},{"$f":"'Weather Stations (data)'!AB48","v":""},{"$f":"'Weather Stations (data)'!AC48","v":""},{"$f":"'Weather Stations (data)'!AD48","v":"Two Hills"},{"$f":"'Weather Stations (data)'!AE48","v":""},{"$f":"'Weather Stations (data)'!AF48","v":""},{"$f":"'Weather Stations (data)'!AG48","v":""},{"$f":"'Weather Stations (data)'!AH48","v":""},{"$f":"'Weather Stations (data)'!AI48","v":""},{"$f":"'Weather Stations (data)'!AJ48","v":""},{"$f":"'Weather Stations (data)'!AK48","v":""}]
[null,null,null,null,null,null,null,null,null,null,null,null,null,null,null,47,{"$f":"'Weather Stations (data)'!B49","v":"Carway"},null,{"$f":"'Weather Stations (data)'!C49","v":""},{"$f":"'Weather Stations (data)'!D49","v":""},{"$f":"'Weather Stations (data)'!E49","v":"Warner"},{"$f":"'Weather Stations (data)'!F49","v":""},{"$f":"'Weather Stations (data)'!G49","v":""},{"$f":"'Weather Stations (data)'!H49","v":""},{"$f":"'Weather Stations (data)'!I49","v":"Verger"},{"$f":"'Weather Stations (data)'!J49","v":"Travers"},{"$f":"'Weather Stations (data)'!K49","v":""},{"$f":"'Weather Stations (data)'!L49","v":"Raymond"},{"$f":"'Weather Stations (data)'!M49","v":""},{"$f":"'Weather Stations (data)'!N49","v":""},{"$f":"'Weather Stations (data)'!O49","v":""},{"$f":"'Weather Stations (data)'!P49","v":""},{"$f":"'Weather Stations (data)'!Q49","v":""},{"$f":"'Weather Stations (data)'!R49","v":""},{"$f":"'Weather Stations (data)'!S49","v":""},{"$f":"'Weather Stations (data)'!T49","v":""},{"$f":"'Weather Stations (data)'!U49","v":""},{"$f":"'Weather Stations (data)'!V49","v":"Stettler"},{"$f":"'Weather Stations (data)'!W49","v":"Vermilion"},{"$f":"'Weather Stations (data)'!X49","v":"Vegreville"},{"$f":"'Weather Stations (data)'!Y49","v":""},{"$f":"'Weather Stations (data)'!Z49","v":""},{"$f":"'Weather Stations (data)'!AA49","v":""},{"$f":"'Weather Stations (data)'!AB49","v":""},{"$f":"'Weather Stations (data)'!AC49","v":""},{"$f":"'Weather Stations (data)'!AD49","v":"Vega"},{"$f":"'Weather Stations (data)'!AE49","v":""},{"$f":"'Weather Stations (data)'!AF49","v":""},{"$f":"'Weather Stations (data)'!AG49","v":""},{"$f":"'Weather Stations (data)'!AH49","v":""},{"$f":"'Weather Stations (data)'!AI49","v":""},{"$f":"'Weather Stations (data)'!AJ49","v":""},{"$f":"'Weather Stations (data)'!AK49","v":""}]
[null,null,null,null,null,null,null,null,null,null,null,null,null,null,null,48,{"$f":"'Weather Stations (data)'!B50","v":"Cereal"},null,{"$f":"'Weather Stations (data)'!C50","v":""},{"$f":"'Weather Stations (data)'!D50","v":""},{"$f":"'Weather Stations (data)'!E50","v":"Winnifred"},{"$f":"'Weather Stations (data)'!F50","v":""},{"$f":"'Weather Stations (data)'!G50","v":""},{"$f":"'Weather Stations (data)'!H50","v":""},{"$f":"'Weather Stations (data)'!I50","v":"Wardlow"},{"$f":"'Weather Stations (data)'!J50","v":"Vauxhall"},{"$f":"'Weather Stations (data)'!K50","v":""},{"$f":"'Weather Stations (data)'!L50","v":"Rosemary"},{"$f":"'Weather Stations (data)'!M50","v":""},{"$f":"'Weather Stations (data)'!N50","v":""},{"$f":"'Weather Stations (data)'!O50","v":""},{"$f":"'Weather Stations (data)'!P50","v":""},{"$f":"'Weather Stations (data)'!Q50","v":""},{"$f":"'Weather Stations (data)'!R50","v":""},{"$f":"'Weather Stations (data)'!S50","v":""},{"$f":"'Weather Stations (data)'!T50","v":""},{"$f":"'Weather Stations (data)'!U50","v":""},{"$f":"'Weather Stations (data)'!V50","v":"Three Hills"},{"$f":"'Weather Stations (data)'!W50","v":"Viking"},{"$f":"'Weather Stations (data)'!X50","v":"Viking"},{"$f":"'Weather Stations (data)'!Y50","v":""},{"$f":"'Weather Stations (data)'!Z50","v":""},{"$f":"'Weather Stations (data)'!AA50","v":""},{"$f":"'Weather Stations (data)'!AB50","v":""},{"$f":"'Weather Stations (data)'!AC50","v":""},{"$f":"'Weather Stations (data)'!AD50","v":"Vegreville"},{"$f":"'Weather Stations (data)'!AE50","v":""},{"$f":"'Weather Stations (data)'!AF50","v":""},{"$f":"'Weather Stations (data)'!AG50","v":""},{"$f":"'Weather Stations (data)'!AH50","v":""},{"$f":"'Weather Stations (data)'!AI50","v":""},{"$f":"'Weather Stations (data)'!AJ50","v":""},{"$f":"'Weather Stations (data)'!AK50","v":""}]
[null,null,null,null,null,null,null,null,null,null,null,null,null,null,null,49,{"$f":"'Weather Stations (data)'!B51","v":"Champion"},null,{"$f":"'Weather Stations (data)'!C51","v":""},{"$f":"'Weather Stations (data)'!D51","v":""},{"$f":"'Weather Stations (data)'!E51","v":"Wrentham"},{"$f":"'Weather Stations (data)'!F51","v":""},{"$f":"'Weather Stations (data)'!G51","v":""},{"$f":"'Weather Stations (data)'!H51","v":""},{"$f":"'Weather Stations (data)'!I51","v":"Youngstown"},{"$f":"'Weather Stations (data)'!J51","v":"Verger"},{"$f":"'Weather Stations (data)'!K51","v":""},{"$f":"'Weather Stations (data)'!L51","v":"St. Mary Reservior"},{"$f":"'Weather Stations (data)'!M51","v":""},{"$f":"'Weather Stations (data)'!N51","v":""},{"$f":"'Weather Stations (data)'!O51","v":""},{"$f":"'Weather Stations (data)'!P51","v":""},{"$f":"'Weather Stations (data)'!Q51","v":""},{"$f":"'Weather Stations (data)'!R51","v":""},{"$f":"'Weather Stations (data)'!S51","v":""},{"$f":"'Weather Stations (data)'!T51","v":""},{"$f":"'Weather Stations (data)'!U51","v":""},{"$f":"'Weather Stations (data)'!V51","v":"Tulliby Lake"},{"$f":"'Weather Stations (data)'!W51","v":"Wainwright"},{"$f":"'Weather Stations (data)'!X51","v":"Wetaskiwin"},{"$f":"'Weather Stations (data)'!Y51","v":""},{"$f":"'Weather Stations (data)'!Z51","v":""},{"$f":"'Weather Stations (data)'!AA51","v":""},{"$f":"'Weather Stations (data)'!AB51","v":""},{"$f":"'Weather Stations (data)'!AC51","v":""},{"$f":"'Weather Stations (data)'!AD51","v":"Viking"},{"$f":"'Weather Stations (data)'!AE51","v":""},{"$f":"'Weather Stations (data)'!AF51","v":""},{"$f":"'Weather Stations (data)'!AG51","v":""},{"$f":"'Weather Stations (data)'!AH51","v":""},{"$f":"'Weather Stations (data)'!AI51","v":""},{"$f":"'Weather Stations (data)'!AJ51","v":""},{"$f":"'Weather Stations (data)'!AK51","v":""}]
[null,null,null,null,null,null,null,null,null,null,null,null,null,null,null,50,{"$f":"'Weather Stations (data)'!B52","v":"Chisholm"},null,{"$f":"'Weather Stations (data)'!C52","v":""},{"$f":"'Weather Stations (data)'!D52","v":""},{"$f":"'Weather Stations (data)'!E52","v":""},{"$f":"'Weather Stations (data)'!F52","v":""},{"$f":"'Weather Stations (data)'!G52","v":""},{"$f":"'Weather Stations (data)'!H52","v":""},{"$f":"'Weather Stations (data)'!I52","v":""},{"$f":"'Weather Stations (data)'!J52","v":"Wardlow"},{"$f":"'Weather Stations (data)'!K52","v":""},{"$f":"'Weather Stations (data)'!L52","v":"Standard"},{"$f":"'Weather Stations (data)'!M52","v":""},{"$f":"'Weather Stations (data)'!N52","v":""},{"$f":"'Weather Stations (data)'!O52","v":""},{"$f":"'Weather Stations (data)'!P52","v":""},{"$f":"'Weather Stations (data)'!Q52","v":""},{"$f":"'Weather Stations (data)'!R52","v":""},{"$f":"'Weather Stations (data)'!S52","v":""},{"$f":"'Weather Stations (data)'!T52","v":""},{"$f":"'Weather Stations (data)'!U52","v":""},{"$f":"'Weather Stations (data)'!V52","v":"Two Hills"},{"$f":"'Weather Stations (data)'!W52","v":"Wetaskiwin"},{"$f":"'Weather Stations (data)'!X52","v":"Wimborne"},{"$f":"'Weather Stations (data)'!Y52","v":""},{"$f":"'Weather Stations (data)'!Z52","v":""},{"$f":"'Weather Stations (data)'!AA52","v":""},{"$f":"'Weather Stations (data)'!AB52","v":""},{"$f":"'Weather Stations (data)'!AC52","v":""},{"$f":"'Weather Stations (data)'!AD52","v":"Vilna"},{"$f":"'Weather Stations (data)'!AE52","v":""},{"$f":"'Weather Stations (data)'!AF52","v":""},{"$f":"'Weather Stations (data)'!AG52","v":""},{"$f":"'Weather Stations (data)'!AH52","v":""},{"$f":"'Weather Stations (data)'!AI52","v":""},{"$f":"'Weather Stations (data)'!AJ52","v":""},{"$f":"'Weather Stations (data)'!AK52","v":""}]
[null,null,null,null,null,null,null,null,null,null,null,null,null,null,null,51,{"$f":"'Weather Stations (data)'!B53","v":"Claresholm"},null,{"$f":"'Weather Stations (data)'!C53","v":""},{"$f":"'Weather Stations (data)'!D53","v":""},{"$f":"'Weather Stations (data)'!E53","v":""},{"$f":"'Weather Stations (data)'!F53","v":""},{"$f":"'Weather Stations (data)'!G53","v":""},{"$f":"'Weather Stations (data)'!H53","v":""},{"$f":"'Weather Stations (data)'!I53","v":""},{"$f":"'Weather Stations (data)'!J53","v":"Winnifred"},{"$f":"'Weather Stations (data)'!K53","v":""},{"$f":"'Weather Stations (data)'!L53","v":"Stavely"},{"$f":"'Weather Stations (data)'!M53","v":""},{"$f":"'Weather Stations (data)'!N53","v":""},{"$f":"'Weather Stations (data)'!O53","v":""},{"$f":"'Weather Stations (data)'!P53","v":""},{"$f":"'Weather Stations (data)'!Q53","v":""},{"$f":"'Weather Stations (data)'!R53","v":""},{"$f":"'Weather Stations (data)'!S53","v":""},{"$f":"'Weather Stations (data)'!T53","v":""},{"$f":"'Weather Stations (data)'!U53","v":""},{"$f":"'Weather Stations (data)'!V53","v":"Vegreville"},{"$f":"'Weather Stations (data)'!W53","v":"Wimborne"},{"$f":"'Weather Stations (data)'!X53","v":""},{"$f":"'Weather Stations (data)'!Y53","v":""},{"$f":"'Weather Stations (data)'!Z53","v":""},{"$f":"'Weather Stations (data)'!AA53","v":""},{"$f":"'Weather Stations (data)'!AB53","v":""},{"$f":"'Weather Stations (data)'!AC53","v":""},{"$f":"'Weather Stations (data)'!AD53","v":"Wetaskiwin"},{"$f":"'Weather Stations (data)'!AE53","v":""},{"$f":"'Weather Stations (data)'!AF53","v":""},{"$f":"'Weather Stations (data)'!AG53","v":""},{"$f":"'Weather Stations (data)'!AH53","v":""},{"$f":"'Weather Stations (data)'!AI53","v":""},{"$f":"'Weather Stations (data)'!AJ53","v":""},{"$f":"'Weather Stations (data)'!AK53","v":""}]
[null,null,null,null,null,null,null,null,null,null,null,null,null,null,null,52,{"$f":"'Weather Stations (data)'!B54","v":"Cleardale"},null,{"$f":"'Weather Stations (data)'!C54","v":""},{"$f":"'Weather Stations (data)'!D54","v":""},{"$f":"'Weather Stations (data)'!E54","v":""},{"$f":"'Weather Stations (data)'!F54","v":""},{"$f":"'Weather Stations (data)'!G54","v":""},{"$f":"'Weather Stations (data)'!H54","v":""},{"$f":"'Weather Stations (data)'!I54","v":""},{"$f":"'Weather Stations (data)'!J54","v":"Wrentham"},{"$f":"'Weather Stations (data)'!K54","v":""},{"$f":"'Weather Stations (data)'!L54","v":"Strathmore"},{"$f":"'Weather Stations (data)'!M54","v":""},{"$f":"'Weather Stations (data)'!N54","v":""},{"$f":"'Weather Stations (data)'!O54","v":""},{"$f":"'Weather Stations (data)'!P54","v":""},{"$f":"'Weather Stations (data)'!Q54","v":""},{"$f":"'Weather Stations (data)'!R54","v":""},{"$f":"'Weather Stations (data)'!S54","v":""},{"$f":"'Weather Stations (data)'!T54","v":""},{"$f":"'Weather Stations (data)'!U54","v":""},{"$f":"'Weather Stations (data)'!V54","v":"Vermilion"},{"$f":"'Weather Stations (data)'!W54","v":""},{"$f":"'Weather Stations (data)'!X54","v":""},{"$f":"'Weather Stations (data)'!Y54","v":""},{"$f":"'Weather Stations (data)'!Z54","v":""},{"$f":"'Weather Stations (data)'!AA54","v":""},{"$f":"'Weather Stations (data)'!AB54","v":""},{"$f":"'Weather Stations (data)'!AC54","v":""},{"$f":"'Weather Stations (data)'!AD54","v":"Whitecourt"},{"$f":"'Weather Stations (data)'!AE54","v":""},{"$f":"'Weather Stations (data)'!AF54","v":""},{"$f":"'Weather Stations (data)'!AG54","v":""},{"$f":"'Weather Stations (data)'!AH54","v":""},{"$f":"'Weather Stations (data)'!AI54","v":""},{"$f":"'Weather Stations (data)'!AJ54","v":""},{"$f":"'Weather Stations (data)'!AK54","v":""}]
[null,null,null,null,null,null,null,null,null,null,null,null,null,null,null,53,{"$f":"'Weather Stations (data)'!B55","v":"Comrey"},null,{"$f":"'Weather Stations (data)'!C55","v":""},{"$f":"'Weather Stations (data)'!D55","v":""},{"$f":"'Weather Stations (data)'!E55","v":""},{"$f":"'Weather Stations (data)'!F55","v":""},{"$f":"'Weather Stations (data)'!G55","v":""},{"$f":"'Weather Stations (data)'!H55","v":""},{"$f":"'Weather Stations (data)'!I55","v":""},{"$f":"'Weather Stations (data)'!J55","v":""},{"$f":"'Weather Stations (data)'!K55","v":""},{"$f":"'Weather Stations (data)'!L55","v":"Streeter Creek"},{"$f":"'Weather Stations (data)'!M55","v":""},{"$f":"'Weather Stations (data)'!N55","v":""},{"$f":"'Weather Stations (data)'!O55","v":""},{"$f":"'Weather Stations (data)'!P55","v":""},{"$f":"'Weather Stations (data)'!Q55","v":""},{"$f":"'Weather Stations (data)'!R55","v":""},{"$f":"'Weather Stations (data)'!S55","v":""},{"$f":"'Weather Stations (data)'!T55","v":""},{"$f":"'Weather Stations (data)'!U55","v":""},{"$f":"'Weather Stations (data)'!V55","v":"Viking"},{"$f":"'Weather Stations (data)'!W55","v":""},{"$f":"'Weather Stations (data)'!X55","v":""},{"$f":"'Weather Stations (data)'!Y55","v":""},{"$f":"'Weather Stations (data)'!Z55","v":""},{"$f":"'Weather Stations (data)'!AA55","v":""},{"$f":"'Weather Stations (data)'!AB55","v":""},{"$f":"'Weather Stations (data)'!AC55","v":""},{"$f":"'Weather Stations (data)'!AD55","v":""},{"$f":"'Weather Stations (data)'!AE55","v":""},{"$f":"'Weather Stations (data)'!AF55","v":""},{"$f":"'Weather Stations (data)'!AG55","v":""},{"$f":"'Weather Stations (data)'!AH55","v":""},{"$f":"'Weather Stations (data)'!AI55","v":""},{"$f":"'Weather Stations (data)'!AJ55","v":""},{"$f":"'Weather Stations (data)'!AK55","v":""}]
[null,null,null,null,null,null,null,null,null,null,null,null,null,null,null,54,{"$f":"'Weather Stations (data)'!B56","v":"Consort"},null,{"$f":"'Weather Stations (data)'!C56","v":""},{"$f":"'Weather Stations (data)'!D56","v":""},{"$f":"'Weather Stations (data)'!E56","v":""},{"$f":"'Weather Stations (data)'!F56","v":""},{"$f":"'Weather Stations (data)'!G56","v":""},{"$f":"'Weather Stations (data)'!H56","v":""},{"$f":"'Weather Stations (data)'!I56","v":""},{"$f":"'Weather Stations (data)'!J56","v":""},{"$f":"'Weather Stations (data)'!K56","v":""},{"$f":"'Weather Stations (data)'!L56","v":"Tennessee Creek"},{"$f":"'Weather Stations (data)'!M56","v":""},{"$f":"'Weather Stations (data)'!N56","v":""},{"$f":"'Weather Stations (data)'!O56","v":""},{"$f":"'Weather Stations (data)'!P56","v":""},{"$f":"'Weather Stations (data)'!Q56","v":""},{"$f":"'Weather Stations (data)'!R56","v":""},{"$f":"'Weather Stations (data)'!S56","v":""},{"$f":"'Weather Stations (data)'!T56","v":""},{"$f":"'Weather Stations (data)'!U56","v":""},{"$f":"'Weather Stations (data)'!V56","v":"Wainwright"},{"$f":"'Weather Stations (data)'!W56","v":""},{"$f":"'Weather Stations (data)'!X56","v":""},{"$f":"'Weather Stations (data)'!Y56","v":""},{"$f":"'Weather Stations (data)'!Z56","v":""},{"$f":"'Weather Stations (data)'!AA56","v":""},{"$f":"'Weather Stations (data)'!AB56","v":""},{"$f":"'Weather Stations (data)'!AC56","v":""},{"$f":"'Weather Stations (data)'!AD56","v":""},{"$f":"'Weather Stations (data)'!AE56","v":""},{"$f":"'Weather Stations (data)'!AF56","v":""},{"$f":"'Weather Stations (data)'!AG56","v":""},{"$f":"'Weather Stations (data)'!AH56","v":""},{"$f":"'Weather Stations (data)'!AI56","v":""},{"$f":"'Weather Stations (data)'!AJ56","v":""},{"$f":"'Weather Stations (data)'!AK56","v":""}]
[null,null,null,null,null,null,null,null,null,null,null,null,null,null,null,55,{"$f":"'Weather Stations (data)'!B57","v":"Coronation"},null,{"$f":"'Weather Stations (data)'!C57","v":""},{"$f":"'Weather Stations (data)'!D57","v":""},{"$f":"'Weather Stations (data)'!E57","v":""},{"$f":"'Weather Stations (data)'!F57","v":""},{"$f":"'Weather Stations (data)'!G57","v":""},{"$f":"'Weather Stations (data)'!H57","v":""},{"$f":"'Weather Stations (data)'!I57","v":""},{"$f":"'Weather Stations (data)'!J57","v":""},{"$f":"'Weather Stations (data)'!K57","v":""},{"$f":"'Weather Stations (data)'!L57","v":"Three Hills"},{"$f":"'Weather Stations (data)'!M57","v":""},{"$f":"'Weather Stations (data)'!N57","v":""},{"$f":"'Weather Stations (data)'!O57","v":""},{"$f":"'Weather Stations (data)'!P57","v":""},{"$f":"'Weather Stations (data)'!Q57","v":""},{"$f":"'Weather Stations (data)'!R57","v":""},{"$f":"'Weather Stations (data)'!S57","v":""},{"$f":"'Weather Stations (data)'!T57","v":""},{"$f":"'Weather Stations (data)'!U57","v":""},{"$f":"'Weather Stations (data)'!V57","v":"Wimborne"},{"$f":"'Weather Stations (data)'!W57","v":""},{"$f":"'Weather Stations (data)'!X57","v":""},{"$f":"'Weather Stations (data)'!Y57","v":""},{"$f":"'Weather Stations (data)'!Z57","v":""},{"$f":"'Weather Stations (data)'!AA57","v":""},{"$f":"'Weather Stations (data)'!AB57","v":""},{"$f":"'Weather Stations (data)'!AC57","v":""},{"$f":"'Weather Stations (data)'!AD57","v":""},{"$f":"'Weather Stations (data)'!AE57","v":""},{"$f":"'Weather Stations (data)'!AF57","v":""},{"$f":"'Weather Stations (data)'!AG57","v":""},{"$f":"'Weather Stations (data)'!AH57","v":""},{"$f":"'Weather Stations (data)'!AI57","v":""},{"$f":"'Weather Stations (data)'!AJ57","v":""},{"$f":"'Weather Stations (data)'!AK57","v":""}]
[null,null,null,null,null,null,null,null,null,null,null,null,null,null,null,56,{"$f":"'Weather Stations (data)'!B58","v":"Craigmyle"},null,{"$f":"'Weather Stations (data)'!C58","v":""},{"$f":"'Weather Stations (data)'!D58","v":""},{"$f":"'Weather Stations (data)'!E58","v":""},{"$f":"'Weather Stations (data)'!F58","v":""},{"$f":"'Weather Stations (data)'!G58","v":""},{"$f":"'Weather Stations (data)'!H58","v":""},{"$f":"'Weather Stations (data)'!I58","v":""},{"$f":"'Weather Stations (data)'!J58","v":""},{"$f":"'Weather Stations (data)'!K59","v":""},{"$f":"'Weather Stations (data)'!L58","v":"Travers"},{"$f":"'Weather Stations (data)'!M58","v":""},{"$f":"'Weather Stations (data)'!N58","v":""},{"$f":"'Weather Stations (data)'!O58","v":""},{"$f":"'Weather Stations (data)'!P58","v":""},{"$f":"'Weather Stations (data)'!Q58","v":""},{"$f":"'Weather Stations (data)'!R58","v":""},{"$f":"'Weather Stations (data)'!S58","v":""},{"$f":"'Weather Stations (data)'!T58","v":""},{"$f":"'Weather Stations (data)'!U58","v":""},{"$f":"'Weather Stations (data)'!V58","v":""},{"$f":"'Weather Stations (data)'!W58","v":""},{"$f":"'Weather Stations (data)'!X58","v":""},{"$f":"'Weather Stations (data)'!Y58","v":""},{"$f":"'Weather Stations (data)'!Z58","v":""},{"$f":"'Weather Stations (data)'!AA58","v":""},{"$f":"'Weather Stations (data)'!AB58","v":""},{"$f":"'Weather Stations (data)'!AC58","v":""},{"$f":"'Weather Stations (data)'!AD58","v":""},{"$f":"'Weather Stations (data)'!AE58","v":""},{"$f":"'Weather Stations (data)'!AF58","v":""},{"$f":"'Weather Stations (data)'!AG58","v":""},{"$f":"'Weather Stations (data)'!AH58","v":""},{"$f":"'Weather Stations (data)'!AI58","v":""},{"$f":"'Weather Stations (data)'!AJ58","v":""},{"$f":"'Weather Stations (data)'!AK58","v":""}]
[null,null,null,null,null,null,null,null,null,null,null,null,null,null,null,57,{"$f":"'Weather Stations (data)'!B59","v":"Crestomere"},null,{"$f":"'Weather Stations (data)'!C59","v":""},{"$f":"'Weather Stations (data)'!D59","v":""},{"$f":"'Weather Stations (data)'!E59","v":""},{"$f":"'Weather Stations (data)'!F59","v":""},{"$f":"'Weather Stations (data)'!G59","v":""},{"$f":"'Weather Stations (data)'!H59","v":""},{"$f":"'Weather Stations (data)'!I59","v":""},{"$f":"'Weather Stations (data)'!J59","v":""},{"$f":"'Weather Stations (data)'!K60","v":""},{"$f":"'Weather Stations (data)'!L59","v":"Vauxhall"},{"$f":"'Weather Stations (data)'!M59","v":""},{"$f":"'Weather Stations (data)'!N59","v":""},{"$f":"'Weather Stations (data)'!O59","v":""},{"$f":"'Weather Stations (data)'!P59","v":""},{"$f":"'Weather Stations (data)'!Q59","v":""},{"$f":"'Weather Stations (data)'!R59","v":""},{"$f":"'Weather Stations (data)'!S59","v":""},{"$f":"'Weather Stations (data)'!T59","v":""},{"$f":"'Weather Stations (data)'!U59","v":""},{"$f":"'Weather Stations (data)'!V59","v":""},{"$f":"'Weather Stations (data)'!W59","v":""},{"$f":"'Weather Stations (data)'!X59","v":""},{"$f":"'Weather Stations (data)'!Y59","v":""},{"$f":"'Weather Stations (data)'!Z59","v":""},{"$f":"'Weather Stations (data)'!AA59","v":""},{"$f":"'Weather Stations (data)'!AB59","v":""},{"$f":"'Weather Stations (data)'!AC59","v":""},{"$f":"'Weather Stations (data)'!AD59","v":""},{"$f":"'Weather Stations (data)'!AE59","v":""},{"$f":"'Weather Stations (data)'!AF59","v":""},{"$f":"'Weather Stations (data)'!AG59","v":""},{"$f":"'Weather Stations (data)'!AH59","v":""},{"$f":"'Weather Stations (data)'!AI59","v":""},{"$f":"'Weather Stations (data)'!AJ59","v":""},{"$f":"'Weather Stations (data)'!AK59","v":""}]
[null,null,null,null,null,null,null,null,null,null,null,null,null,null,null,58,{"$f":"'Weather Stations (data)'!B60","v":"Cross Drain 5"},null,{"$f":"'Weather Stations (data)'!C60","v":""},{"$f":"'Weather Stations (data)'!D60","v":""},{"$f":"'Weather Stations (data)'!E60","v":""},{"$f":"'Weather Stations (data)'!F60","v":""},{"$f":"'Weather Stations (data)'!G60","v":""},{"$f":"'Weather Stations (data)'!H60","v":""},{"$f":"'Weather Stations (data)'!I60","v":""},{"$f":"'Weather Stations (data)'!J60","v":""},{"$f":"'Weather Stations (data)'!K61","v":""},{"$f":"'Weather Stations (data)'!L60","v":"Wimborne"},{"$f":"'Weather Stations (data)'!M60","v":""},{"$f":"'Weather Stations (data)'!N60","v":""},{"$f":"'Weather Stations (data)'!O60","v":""},{"$f":"'Weather Stations (data)'!P60","v":""},{"$f":"'Weather Stations (data)'!Q60","v":""},{"$f":"'Weather Stations (data)'!R60","v":""},{"$f":"'Weather Stations (data)'!S60","v":""},{"$f":"'Weather Stations (data)'!T60","v":""},{"$f":"'Weather Stations (data)'!U60","v":""},{"$f":"'Weather Stations (data)'!V60","v":""},{"$f":"'Weather Stations (data)'!W60","v":""},{"$f":"'Weather Stations (data)'!X60","v":""},{"$f":"'Weather Stations (data)'!Y60","v":""},{"$f":"'Weather Stations (data)'!Z60","v":""},{"$f":"'Weather Stations (data)'!AA60","v":""},{"$f":"'Weather Stations (data)'!AB60","v":""},{"$f":"'Weather Stations (data)'!AC60","v":""},{"$f":"'Weather Stations (data)'!AD60","v":""},{"$f":"'Weather Stations (data)'!AE60","v":""},{"$f":"'Weather Stations (data)'!AF60","v":""},{"$f":"'Weather Stations (data)'!AG60","v":""},{"$f":"'Weather Stations (data)'!AH60","v":""},{"$f":"'Weather Stations (data)'!AI60","v":""},{"$f":"'Weather Stations (data)'!AJ60","v":""},{"$f":"'Weather Stations (data)'!AK60","v":""}]
[null,null,null,null,null,null,null,null,null,null,null,null,null,null,null,59,{"$f":"'Weather Stations (data)'!B61","v":"Deadwood"}]
[null,null,null,null,null,null,null,null,null,null,null,null,null,null,null,60,{"$f":"'Weather Stations (data)'!B62","v":"Del Bonita"}]
[null,null,null,null,null,null,null,null,null,null,null,null,null,null,null,61,{"$f":"'Weather Stations (data)'!B63","v":"Delburne"}]
[null,null,null,null,null,null,null,null,null,null,null,null,null,null,null,62,{"$f":"'Weather Stations (data)'!B64","v":"Dewberry"}]
[null,null,null,null,null,null,null,null,null,null,null,null,null,null,null,63,{"$f":"'Weather Stations (data)'!B65","v":"Dickson Dam"}]
[null,null,null,null,null,null,null,null,null,null,null,null,null,null,null,64,{"$f":"'Weather Stations (data)'!B66","v":"Divide Hills"}]
[null,null,null,null,null,null,null,null,null,null,null,null,null,null,null,65,{"$f":"'Weather Stations (data)'!B67","v":"Drumheller"}]
[null,null,null,null,null,null,null,null,null,null,null,null,null,null,null,66,{"$f":"'Weather Stations (data)'!B68","v":"Duck Lake"}]
[null,null,null,null,null,null,null,null,null,null,null,null,null,null,null,67,{"$f":"'Weather Stations (data)'!B69","v":"Dupre"}]
[null,null,null,null,null,null,null,null,null,null,null,null,null,null,null,68,{"$f":"'Weather Stations (data)'!B70","v":"Eaglesham"}]
[null,null,null,null,null,null,null,null,null,null,null,null,null,null,null,69,{"$f":"'Weather Stations (data)'!B71","v":"Edgerton"}]
[null,null,null,null,null,null,null,null,null,null,null,null,null,null,null,70,{"$f":"'Weather Stations (data)'!B72","v":"Edmonton"}]
[null,null,null,null,null,null,null,null,null,null,null,null,null,null,null,71,{"$f":"'Weather Stations (data)'!B73","v":"Edson"}]
[null,null,null,null,null,null,null,null,null,null,null,null,null,null,null,72,{"$f":"'Weather Stations (data)'!B74","v":"Elbow"}]
[null,null,null,null,null,null,null,null,null,null,null,null,null,null,null,73,{"$f":"'Weather Stations (data)'!B75","v":"Elk Island Park"}]
[null,null,null,null,null,null,null,null,null,null,null,null,null,null,null,74,{"$f":"'Weather Stations (data)'!B76","v":"Enchant"}]
[null,null,null,null,null,null,null,null,null,null,null,null,null,null,null,75,{"$f":"'Weather Stations (data)'!B77","v":"Esther"}]
[null,null,null,null,null,null,null,null,null,null,null,null,null,null,null,76,{"$f":"'Weather Stations (data)'!B78","v":"Etzikom"}]
[null,null,null,null,null,null,null,null,null,null,null,null,null,null,null,77,{"$f":"'Weather Stations (data)'!B79","v":"Eureka River"}]
[null,null,null,null,null,null,null,null,null,null,null,null,null,null,null,78,{"$f":"'Weather Stations (data)'!B80","v":"Evansburg2"}]
[null,null,null,null,null,null,null,null,null,null,null,null,null,null,null,79,{"$f":"'Weather Stations (data)'!B81","v":"Fairview"}]
[null,null,null,null,null,null,null,null,null,null,null,null,null,null,null,80,{"$f":"'Weather Stations (data)'!B82","v":"Ferintosh"}]
[null,null,null,null,null,null,null,null,null,null,null,null,null,null,null,81,{"$f":"'Weather Stations (data)'!B83","v":"Fincastle"}]
[null,null,null,null,null,null,null,null,null,null,null,null,null,null,null,82,{"$f":"'Weather Stations (data)'!B84","v":"Finnegan"}]
[null,null,null,null,null,null,null,null,null,null,null,null,null,null,null,83,{"$f":"'Weather Stations (data)'!B85","v":"Fleet "}]
[null,null,null,null,null,null,null,null,null,null,null,null,null,null,null,84,{"$f":"'Weather Stations (data)'!B86","v":"Foremost"}]
[null,null,null,null,null,null,null,null,null,null,null,null,null,null,null,85,{"$f":"'Weather Stations (data)'!B87","v":"Forestburg"}]
[null,null,null,null,null,null,null,null,null,null,null,null,null,null,null,86,{"$f":"'Weather Stations (data)'!B88","v":"Fort Macleod"}]
[null,null,null,null,null,null,null,null,null,null,null,null,null,null,null,87,{"$f":"'Weather Stations (data)'!B89","v":"Ft Assiniboine"}]
[null,null,null,null,null,null,null,null,null,null,null,null,null,null,null,88,{"$f":"'Weather Stations (data)'!B90","v":"Ft Vermilion"}]
[null,null,null,null,null,null,null,null,null,null,null,null,null,null,null,89,{"$f":"'Weather Stations (data)'!B91","v":"Gahern"}]
[null,null,null,null,null,null,null,null,null,null,null,null,null,null,null,90,{"$f":"'Weather Stations (data)'!B92","v":"Gilt Edge North"}]
[null,null,null,null,null,null,null,null,null,null,null,null,null,null,null,91,{"$f":"'Weather Stations (data)'!B93","v":"Gladstone"}]
[null,null,null,null,null,null,null,null,null,null,null,null,null,null,null,92,{"$f":"'Weather Stations (data)'!B94","v":"Gleichen"}]
[null,null,null,null,null,null,null,null,null,null,null,null,null,null,null,93,{"$f":"'Weather Stations (data)'!B95","v":"Glenevis"}]
[null,null,null,null,null,null,null,null,null,null,null,null,null,null,null,94,{"$f":"'Weather Stations (data)'!B96","v":"Gooseberry Lake"}]
[null,null,null,null,null,null,null,null,null,null,null,null,null,null,null,95,{"$f":"'Weather Stations (data)'!B97","v":"Grassy Lake"}]
[null,null,null,null,null,null,null,null,null,null,null,null,null,null,null,96,{"$f":"'Weather Stations (data)'!B98","v":"Greencourt"}]
[null,null,null,null,null,null,null,null,null,null,null,null,null,null,null,97,{"$f":"'Weather Stations (data)'!B99","v":"Halkirk"}]
[null,null,null,null,null,null,null,null,null,null,null,null,null,null,null,98,{"$f":"'Weather Stations (data)'!B100","v":"Hand Hills"}]
[null,null,null,null,null,null,null,null,null,null,null,null,null,null,null,99,{"$f":"'Weather Stations (data)'!B101","v":"Hawk Hills"}]
[null,null,null,null,null,null,null,null,null,null,null,null,null,null,null,100,{"$f":"'Weather Stations (data)'!B102","v":"Hazel"}]
[null,null,null,null,null,null,null,null,null,null,null,null,null,null,null,101,{"$f":"'Weather Stations (data)'!B103","v":"Hemaruka"}]
[null,null,null,null,null,null,null,null,null,null,null,null,null,null,null,102,{"$f":"'Weather Stations (data)'!B104","v":"Hespero"}]
[null,null,null,null,null,null,null,null,null,null,null,null,null,null,null,103,{"$f":"'Weather Stations (data)'!B105","v":"High Level"}]
[null,null,null,null,null,null,null,null,null,null,null,null,null,null,null,104,{"$f":"'Weather Stations (data)'!B106","v":"High Prairie"}]
[null,null,null,null,null,null,null,null,null,null,null,null,null,null,null,105,{"$f":"'Weather Stations (data)'!B107","v":"High Prairie - Banana Belt"}]
[null,null,null,null,null,null,null,null,null,null,null,null,null,null,null,106,{"$f":"'Weather Stations (data)'!B108","v":"Hilda"}]
[null,null,null,null,null,null,null,null,null,null,null,null,null,null,null,107,{"$f":"'Weather Stations (data)'!B109","v":"Hines Creek"}]
[null,null,null,null,null,null,null,null,null,null,null,null,null,null,null,108,{"$f":"'Weather Stations (data)'!B110","v":"Holden"}]
[null,null,null,null,null,null,null,null,null,null,null,null,null,null,null,109,{"$f":"'Weather Stations (data)'!B111","v":"Homestead Coulee"}]
[null,null,null,null,null,null,null,null,null,null,null,null,null,null,null,110,{"$f":"'Weather Stations (data)'!B112","v":"Hoselaw"}]
[null,null,null,null,null,null,null,null,null,null,null,null,null,null,null,111,{"$f":"'Weather Stations (data)'!B113","v":"Hughenden"}]
[null,null,null,null,null,null,null,null,null,null,null,null,null,null,null,112,{"$f":"'Weather Stations (data)'!B114","v":"Hussar"}]
[null,null,null,null,null,null,null,null,null,null,null,null,null,null,null,113,{"$f":"'Weather Stations (data)'!B115","v":"Iddesleigh"}]
[null,null,null,null,null,null,null,null,null,null,null,null,null,null,null,114,{"$f":"'Weather Stations (data)'!B116","v":"Irvine"}]
[null,null,null,null,null,null,null,null,null,null,null,null,null,null,null,115,{"$f":"'Weather Stations (data)'!B117","v":"Jean Cote"}]
[null,null,null,null,null,null,null,null,null,null,null,null,null,null,null,116,{"$f":"'Weather Stations (data)'!B118","v":"Keg River"}]
[null,null,null,null,null,null,null,null,null,null,null,null,null,null,null,117,{"$f":"'Weather Stations (data)'!B119","v":"Keoma"}]
[null,null,null,null,null,null,null,null,null,null,null,null,null,null,null,118,{"$f":"'Weather Stations (data)'!B120","v":"Kessler"}]
[null,null,null,null,null,null,null,null,null,null,null,null,null,null,null,119,{"$f":"'Weather Stations (data)'!B121","v":"Ketchum Creek"}]
[null,null,null,null,null,null,null,null,null,null,null,null,null,null,null,120,{"$f":"'Weather Stations (data)'!B122","v":"Killam"}]
[null,null,null,null,null,null,null,null,null,null,null,null,null,null,null,121,{"$f":"'Weather Stations (data)'!B123","v":"Kinikinik"}]
[null,null,null,null,null,null,null,null,null,null,null,null,null,null,null,122,{"$f":"'Weather Stations (data)'!B124","v":"Kinsella"}]
[null,null,null,null,null,null,null,null,null,null,null,null,null,null,null,123,{"$f":"'Weather Stations (data)'!B125","v":"Kirriemuir"}]
[null,null,null,null,null,null,null,null,null,null,null,null,null,null,null,124,{"$f":"'Weather Stations (data)'!B126","v":"Kitscoty"}]
[null,null,null,null,null,null,null,null,null,null,null,null,null,null,null,125,{"$f":"'Weather Stations (data)'!B127","v":"La Crete"}]
[null,null,null,null,null,null,null,null,null,null,null,null,null,null,null,126,{"$f":"'Weather Stations (data)'!B128","v":"La Glace"}]
[null,null,null,null,null,null,null,null,null,null,null,null,null,null,null,127,{"$f":"'Weather Stations (data)'!B129","v":"Lac La Biche"}]
[null,null,null,null,null,null,null,null,null,null,null,null,null,null,null,128,{"$f":"'Weather Stations (data)'!B130","v":"Lacombe"}]
[null,null,null,null,null,null,null,null,null,null,null,null,null,null,null,129,{"$f":"'Weather Stations (data)'!B131","v":"Lathom"}]
[null,null,null,null,null,null,null,null,null,null,null,null,null,null,null,130,{"$f":"'Weather Stations (data)'!B132","v":"Lee Creek"}]
[null,null,null,null,null,null,null,null,null,null,null,null,null,null,null,131,{"$f":"'Weather Stations (data)'!B133","v":"Leedale"}]
[null,null,null,null,null,null,null,null,null,null,null,null,null,null,null,132,{"$f":"'Weather Stations (data)'!B134","v":"Legal"}]
[null,null,null,null,null,null,null,null,null,null,null,null,null,null,null,133,{"$f":"'Weather Stations (data)'!B135","v":"Lethbridge"}]
[null,null,null,null,null,null,null,null,null,null,null,null,null,null,null,134,{"$f":"'Weather Stations (data)'!B136","v":"Lindbergh"}]
[null,null,null,null,null,null,null,null,null,null,null,null,null,null,null,135,{"$f":"'Weather Stations (data)'!B137","v":"Linden"}]
[null,null,null,null,null,null,null,null,null,null,null,null,null,null,null,136,{"$f":"'Weather Stations (data)'!B138","v":"Little Paddle Headwaters"}]
[null,null,null,null,null,null,null,null,null,null,null,null,null,null,null,137,{"$f":"'Weather Stations (data)'!B139","v":"Livingston"}]
[null,null,null,null,null,null,null,null,null,null,null,null,null,null,null,138,{"$f":"'Weather Stations (data)'!B140","v":"Lloydminster"}]
[null,null,null,null,null,null,null,null,null,null,null,null,null,null,null,139,{"$f":"'Weather Stations (data)'!B141","v":"Lodge Creek"}]
[null,null,null,null,null,null,null,null,null,null,null,null,null,null,null,140,{"$f":"'Weather Stations (data)'!B142","v":"Magee Lake"}]
[null,null,null,null,null,null,null,null,null,null,null,null,null,null,null,141,{"$f":"'Weather Stations (data)'!B143","v":"Manning"}]
[null,null,null,null,null,null,null,null,null,null,null,null,null,null,null,142,{"$f":"'Weather Stations (data)'!B144","v":"Mannville"}]
[null,null,null,null,null,null,null,null,null,null,null,null,null,null,null,143,{"$f":"'Weather Stations (data)'!B145","v":"Manyberries"}]
[null,null,null,null,null,null,null,null,null,null,null,null,null,null,null,144,{"$f":"'Weather Stations (data)'!B146","v":"Marwayne"}]
[null,null,null,null,null,null,null,null,null,null,null,null,null,null,null,145,{"$f":"'Weather Stations (data)'!B147","v":"Masinisan"}]
[null,null,null,null,null,null,null,null,null,null,null,null,null,null,null,146,{"$f":"'Weather Stations (data)'!B148","v":"Mayerthorpe"}]
[null,null,null,null,null,null,null,null,null,null,null,null,null,null,null,147,{"$f":"'Weather Stations (data)'!B149","v":"Medicine Hat"}]
[null,null,null,null,null,null,null,null,null,null,null,null,null,null,null,148,{"$f":"'Weather Stations (data)'!B150","v":"Medicine Lodge"}]
[null,null,null,null,null,null,null,null,null,null,null,null,null,null,null,149,{"$f":"'Weather Stations (data)'!B151","v":"Milk River"}]
[null,null,null,null,null,null,null,null,null,null,null,null,null,null,null,150,{"$f":"'Weather Stations (data)'!B152","v":"Milk River Reservoir"}]
[null,null,null,null,null,null,null,null,null,null,null,null,null,null,null,151,{"$f":"'Weather Stations (data)'!B153","v":"Milk River Ridge"}]
[null,null,null,null,null,null,null,null,null,null,null,null,null,null,null,152,{"$f":"'Weather Stations (data)'!B154","v":"Morrin"}]
[null,null,null,null,null,null,null,null,null,null,null,null,null,null,null,153,{"$f":"'Weather Stations (data)'!B155","v":"Mossleigh"}]
[null,null,null,null,null,null,null,null,null,null,null,null,null,null,null,154,{"$f":"'Weather Stations (data)'!B156","v":"Mundare"}]
[null,null,null,null,null,null,null,null,null,null,null,null,null,null,null,155,{"$f":"'Weather Stations (data)'!B157","v":"Myrnam"}]
[null,null,null,null,null,null,null,null,null,null,null,null,null,null,null,156,{"$f":"'Weather Stations (data)'!B158","v":"Neir"}]
[null,null,null,null,null,null,null,null,null,null,null,null,null,null,null,157,{"$f":"'Weather Stations (data)'!B159","v":"New Sarepta"}]
[null,null,null,null,null,null,null,null,null,null,null,null,null,null,null,158,{"$f":"'Weather Stations (data)'!B160","v":"Olds"}]
[null,null,null,null,null,null,null,null,null,null,null,null,null,null,null,159,{"$f":"'Weather Stations (data)'!B161","v":"Oliver"}]
[null,null,null,null,null,null,null,null,null,null,null,null,null,null,null,160,{"$f":"'Weather Stations (data)'!B162","v":"Onefour"}]
[null,null,null,null,null,null,null,null,null,null,null,null,null,null,null,161,{"$f":"'Weather Stations (data)'!B163","v":"Oyen"}]
[null,null,null,null,null,null,null,null,null,null,null,null,null,null,null,162,{"$f":"'Weather Stations (data)'!B164","v":"Paddle Dam"}]
[null,null,null,null,null,null,null,null,null,null,null,null,null,null,null,163,{"$f":"'Weather Stations (data)'!B165","v":"Pakowki Lake"}]
[null,null,null,null,null,null,null,null,null,null,null,null,null,null,null,164,{"$f":"'Weather Stations (data)'!B166","v":"Parlby Creek"}]
[null,null,null,null,null,null,null,null,null,null,null,null,null,null,null,165,{"$f":"'Weather Stations (data)'!B167","v":"Patricia"}]
[null,null,null,null,null,null,null,null,null,null,null,null,null,null,null,166,{"$f":"'Weather Stations (data)'!B168","v":"Peavine"}]
[null,null,null,null,null,null,null,null,null,null,null,null,null,null,null,167,{"$f":"'Weather Stations (data)'!B169","v":"Peoria"}]
[null,null,null,null,null,null,null,null,null,null,null,null,null,null,null,168,{"$f":"'Weather Stations (data)'!B170","v":"Pibroch"}]
[null,null,null,null,null,null,null,null,null,null,null,null,null,null,null,169,{"$f":"'Weather Stations (data)'!B171","v":"Picture Butte"}]
[null,null,null,null,null,null,null,null,null,null,null,null,null,null,null,170,{"$f":"'Weather Stations (data)'!B172","v":"Pincher Creek"}]
[null,null,null,null,null,null,null,null,null,null,null,null,null,null,null,171,{"$f":"'Weather Stations (data)'!B173","v":"Pine Coulee FP"}]
[null,null,null,null,null,null,null,null,null,null,null,null,null,null,null,172,{"$f":"'Weather Stations (data)'!B174","v":"Pinhorn"}]
[null,null,null,null,null,null,null,null,null,null,null,null,null,null,null,173,{"$f":"'Weather Stations (data)'!B175","v":"Pleasant View"}]
[null,null,null,null,null,null,null,null,null,null,null,null,null,null,null,174,{"$f":"'Weather Stations (data)'!B176","v":"Pollockville"}]
[null,null,null,null,null,null,null,null,null,null,null,null,null,null,null,175,{"$f":"'Weather Stations (data)'!B177","v":"Porcupine"}]
[null,null,null,null,null,null,null,null,null,null,null,null,null,null,null,176,{"$f":"'Weather Stations (data)'!B178","v":"Prentiss"}]
[null,null,null,null,null,null,null,null,null,null,null,null,null,null,null,177,{"$f":"'Weather Stations (data)'!B179","v":"Priddis Observatory"}]
[null,null,null,null,null,null,null,null,null,null,null,null,null,null,null,178,{"$f":"'Weather Stations (data)'!B180","v":"Queenstown"}]
[null,null,null,null,null,null,null,null,null,null,null,null,null,null,null,179,{"$f":"'Weather Stations (data)'!B181","v":"Radway"}]
[null,null,null,null,null,null,null,null,null,null,null,null,null,null,null,180,{"$f":"'Weather Stations (data)'!B182","v":"Rainier"}]
[null,null,null,null,null,null,null,null,null,null,null,null,null,null,null,181,{"$f":"'Weather Stations (data)'!B183","v":"Ralston"}]
[null,null,null,null,null,null,null,null,null,null,null,null,null,null,null,182,{"$f":"'Weather Stations (data)'!B184","v":"Ranfurly"}]
[null,null,null,null,null,null,null,null,null,null,null,null,null,null,null,183,{"$f":"'Weather Stations (data)'!B185","v":"Raymond"}]
[null,null,null,null,null,null,null,null,null,null,null,null,null,null,null,184,{"$f":"'Weather Stations (data)'!B186","v":"Red Coat"}]
[null,null,null,null,null,null,null,null,null,null,null,null,null,null,null,185,{"$f":"'Weather Stations (data)'!B187","v":"Red Deer"}]
[null,null,null,null,null,null,null,null,null,null,null,null,null,null,null,186,{"$f":"'Weather Stations (data)'!B188","v":"Redwater"}]
[null,null,null,null,null,null,null,null,null,null,null,null,null,null,null,187,{"$f":"'Weather Stations (data)'!B189","v":"Ribstone"}]
[null,null,null,null,null,null,null,null,null,null,null,null,null,null,null,188,{"$f":"'Weather Stations (data)'!B190","v":"Rich Lake"}]
[null,null,null,null,null,null,null,null,null,null,null,null,null,null,null,189,{"$f":"'Weather Stations (data)'!B191","v":"Rivercourse"}]
[null,null,null,null,null,null,null,null,null,null,null,null,null,null,null,190,{"$f":"'Weather Stations (data)'!B192","v":"Rocky Lane"}]
[null,null,null,null,null,null,null,null,null,null,null,null,null,null,null,191,{"$f":"'Weather Stations (data)'!B193","v":"Rocky Mnt H"}]
[null,null,null,null,null,null,null,null,null,null,null,null,null,null,null,192,{"$f":"'Weather Stations (data)'!B194","v":"Rolling Hills"}]
[null,null,null,null,null,null,null,null,null,null,null,null,null,null,null,193,{"$f":"'Weather Stations (data)'!B195","v":"Roma"}]
[null,null,null,null,null,null,null,null,null,null,null,null,null,null,null,194,{"$f":"'Weather Stations (data)'!B196","v":"Rosalind"}]
[null,null,null,null,null,null,null,null,null,null,null,null,null,null,null,195,{"$f":"'Weather Stations (data)'!B197","v":"Rosemary"}]
[null,null,null,null,null,null,null,null,null,null,null,null,null,null,null,196,{"$f":"'Weather Stations (data)'!B198","v":"Ross Creek"}]
[null,null,null,null,null,null,null,null,null,null,null,null,null,null,null,197,{"$f":"'Weather Stations (data)'!B199","v":"Rush Lake"}]
[null,null,null,null,null,null,null,null,null,null,null,null,null,null,null,198,{"$f":"'Weather Stations (data)'!B200","v":"Rycroft"}]
[null,null,null,null,null,null,null,null,null,null,null,null,null,null,null,199,{"$f":"'Weather Stations (data)'!B201","v":"Sandy Lake"}]
[null,null,null,null,null,null,null,null,null,null,null,null,null,null,null,200,{"$f":"'Weather Stations (data)'!B202","v":"Savanna"}]
[null,null,null,null,null,null,null,null,null,null,null,null,null,null,null,201,{"$f":"'Weather Stations (data)'!B203","v":"Schuler"}]
[null,null,null,null,null,null,null,null,null,null,null,null,null,null,null,202,{"$f":"'Weather Stations (data)'!B204","v":"Sedalia"}]
[null,null,null,null,null,null,null,null,null,null,null,null,null,null,null,203,{"$f":"'Weather Stations (data)'!B205","v":"Seven Persons"}]
[null,null,null,null,null,null,null,null,null,null,null,null,null,null,null,204,{"$f":"'Weather Stations (data)'!B206","v":"Sheerness"}]
[null,null,null,null,null,null,null,null,null,null,null,null,null,null,null,205,{"$f":"'Weather Stations (data)'!B207","v":"Shonts"}]
[null,null,null,null,null,null,null,null,null,null,null,null,null,null,null,206,{"$f":"'Weather Stations (data)'!B208","v":"Slave Lake"}]
[null,null,null,null,null,null,null,null,null,null,null,null,null,null,null,207,{"$f":"'Weather Stations (data)'!B209","v":"Smoky Lake"}]
[null,null,null,null,null,null,null,null,null,null,null,null,null,null,null,208,{"$f":"'Weather Stations (data)'!B210","v":"Social Plains"}]
[null,null,null,null,null,null,null,null,null,null,null,null,null,null,null,209,{"$f":"'Weather Stations (data)'!B211","v":"Spondin"}]
[null,null,null,null,null,null,null,null,null,null,null,null,null,null,null,210,{"$f":"'Weather Stations (data)'!B212","v":"Spring Creek"}]
[null,null,null,null,null,null,null,null,null,null,null,null,null,null,null,211,{"$f":"'Weather Stations (data)'!B213","v":"St Lina"}]
[null,null,null,null,null,null,null,null,null,null,null,null,null,null,null,212,{"$f":"'Weather Stations (data)'!B214","v":"St Paul"}]
[null,null,null,null,null,null,null,null,null,null,null,null,null,null,null,213,{"$f":"'Weather Stations (data)'!B215","v":"St. Albert"}]
[null,null,null,null,null,null,null,null,null,null,null,null,null,null,null,214,{"$f":"'Weather Stations (data)'!B216","v":"St. Francis"}]
[null,null,null,null,null,null,null,null,null,null,null,null,null,null,null,215,{"$f":"'Weather Stations (data)'!B217","v":"St. Mary Reservoir"}]
[null,null,null,null,null,null,null,null,null,null,null,null,null,null,null,216,{"$f":"'Weather Stations (data)'!B218","v":"Standard"}]
[null,null,null,null,null,null,null,null,null,null,null,null,null,null,null,217,{"$f":"'Weather Stations (data)'!B219","v":"Stavely"}]
[null,null,null,null,null,null,null,null,null,null,null,null,null,null,null,218,{"$f":"'Weather Stations (data)'!B220","v":"Stettler"}]
[null,null,null,null,null,null,null,null,null,null,null,null,null,null,null,219,{"$f":"'Weather Stations (data)'!B221","v":"Steveville"}]
[null,null,null,null,null,null,null,null,null,null,null,null,null,null,null,220,{"$f":"'Weather Stations (data)'!B222","v":"Stony Plain"}]
[null,null,null,null,null,null,null,null,null,null,null,null,null,null,null,221,{"$f":"'Weather Stations (data)'!B223","v":"Strathmore"}]
[null,null,null,null,null,null,null,null,null,null,null,null,null,null,null,222,{"$f":"'Weather Stations (data)'!B224","v":"Streeter Creek"}]
[null,null,null,null,null,null,null,null,null,null,null,null,null,null,null,223,{"$f":"'Weather Stations (data)'!B225","v":"Sundre"}]
[null,null,null,null,null,null,null,null,null,null,null,null,null,null,null,224,{"$f":"'Weather Stations (data)'!B226","v":"Sunnynook"}]
[null,null,null,null,null,null,null,null,null,null,null,null,null,null,null,225,{"$f":"'Weather Stations (data)'!B227","v":"Tawatinaw"}]
[null,null,null,null,null,null,null,null,null,null,null,null,null,null,null,226,{"$f":"'Weather Stations (data)'!B228","v":"Teepee Creek"}]
[null,null,null,null,null,null,null,null,null,null,null,null,null,null,null,227,{"$f":"'Weather Stations (data)'!B229","v":"Tennessee Creek"}]
[null,null,null,null,null,null,null,null,null,null,null,null,null,null,null,228,{"$f":"'Weather Stations (data)'!B230","v":"Thorsby"}]
[null,null,null,null,null,null,null,null,null,null,null,null,null,null,null,229,{"$f":"'Weather Stations (data)'!B231","v":"Three Creeks"}]
[null,null,null,null,null,null,null,null,null,null,null,null,null,null,null,230,{"$f":"'Weather Stations (data)'!B232","v":"Three Hills"}]
[null,null,null,null,null,null,null,null,null,null,null,null,null,null,null,231,{"$f":"'Weather Stations (data)'!B233","v":"Tide Lake"}]
[null,null,null,null,null,null,null,null,null,null,null,null,null,null,null,232,{"$f":"'Weather Stations (data)'!B234","v":"Tomahawk"}]
[null,null,null,null,null,null,null,null,null,null,null,null,null,null,null,233,{"$f":"'Weather Stations (data)'!B235","v":"Tompkins Landing"}]
[null,null,null,null,null,null,null,null,null,null,null,null,null,null,null,234,{"$f":"'Weather Stations (data)'!B236","v":"Travers"}]
[null,null,null,null,null,null,null,null,null,null,null,null,null,null,null,235,{"$f":"'Weather Stations (data)'!B237","v":"Tulliby Lake"}]
[null,null,null,null,null,null,null,null,null,null,null,null,null,null,null,236,{"$f":"'Weather Stations (data)'!B238","v":"Twin Lakes"}]
[null,null,null,null,null,null,null,null,null,null,null,null,null,null,null,237,{"$f":"'Weather Stations (data)'!B239","v":"Twin River"}]
[null,null,null,null,null,null,null,null,null,null,null,null,null,null,null,238,{"$f":"'Weather Stations (data)'!B240","v":"Two Hills"}]
[null,null,null,null,null,null,null,null,null,null,null,null,null,null,null,239,{"$f":"'Weather Stations (data)'!B241","v":"Valleyview"}]
[null,null,null,null,null,null,null,null,null,null,null,null,null,null,null,240,{"$f":"'Weather Stations (data)'!B242","v":"Vauxhall"}]
[null,null,null,null,null,null,null,null,null,null,null,null,null,null,null,241,{"$f":"'Weather Stations (data)'!B243","v":"Vega"}]
[null,null,null,null,null,null,null,null,null,null,null,null,null,null,null,242,{"$f":"'Weather Stations (data)'!B244","v":"Vegreville"}]
[null,null,null,null,null,null,null,null,null,null,null,null,null,null,null,243,{"$f":"'Weather Stations (data)'!B245","v":"Verger"}]
[null,null,null,null,null,null,null,null,null,null,null,null,null,null,null,244,{"$f":"'Weather Stations (data)'!B246","v":"Vermilion"}]
[null,null,null,null,null,null,null,null,null,null,null,null,null,null,null,245,{"$f":"'Weather Stations (data)'!B247","v":"Vernon Lake"}]
[null,null,null,null,null,null,null,null,null,null,null,null,null,null,null,246,{"$f":"'Weather Stations (data)'!B248","v":"Viking"}]
[null,null,null,null,null,null,null,null,null,null,null,null,null,null,null,247,{"$f":"'Weather Stations (data)'!B249","v":"Vilna"}]
[null,null,null,null,null,null,null,null,null,null,null,null,null,null,null,248,{"$f":"'Weather Stations (data)'!B250","v":"Wainwright"}]
[null,null,null,null,null,null,null,null,null,null,null,null,null,null,null,249,{"$f":"'Weather Stations (data)'!B251","v":"Wandering River"}]
[null,null,null,null,null,null,null,null,null,null,null,null,null,null,null,250,{"$f":"'Weather Stations (data)'!B252","v":"Wardlow"}]
[null,null,null,null,null,null,null,null,null,null,null,null,null,null,null,251,{"$f":"'Weather Stations (data)'!B253","v":"Warner"}]
[null,null,null,null,null,null,null,null,null,null,null,null,null,null,null,252,{"$f":"'Weather Stations (data)'!B254","v":"Water Valley"}]
[null,null,null,null,null,null,null,null,null,null,null,null,null,null,null,253,{"$f":"'Weather Stations (data)'!B255","v":"Wetaskiwin"}]
[null,null,null,null,null,null,null,null,null,null,null,null,null,null,null,254,{"$f":"'Weather Stations (data)'!B256","v":"Whitecourt"}]
[null,null,null,null,null,null,null,null,null,null,null,null,null,null,null,255,{"$f":"'Weather Stations (data)'!B257","v":"Whitemud Creek"}]
[null,null,null,null,null,null,null,null,null,null,null,null,null,null,null,256,{"$f":"'Weather Stations (data)'!B258","v":"Wimborne"}]
[null,null,null,null,null,null,null,null,null,null,null,null,null,null,null,257,{"$f":"'Weather Stations (data)'!B259","v":"Winnifred"}]
[null,null,null,null,null,null,null,null,null,null,null,null,null,null,null,258,{"$f":"'Weather Stations (data)'!B260","v":"Worsley"}]
[null,null,null,null,null,null,null,null,null,null,null,null,null,null,null,259,{"$f":"'Weather Stations (data)'!B261","v":"Wrentham"}]
[null,null,null,null,null,null,null,null,null,null,null,null,null,null,null,260,{"$f":"'Weather Stations (data)'!B262","v":"Youngstown"}]

{"sheet":"Lookup Tables (data)","index":3,"n_rows":56,"n_cols":17,"rows_kept":56,"cut":false,"hidden":true,"merged":[[0,0,0,4],[0,6,0,10],[2,0,2,1],[2,3,2,4],[2,6,2,7],[2,9,2,10],[1,3,1,4],[1,0,1,1],[1,6,1,7],[1,9,1,10]]}
["SAT Lookup Table",null,null,null,null,null,"MDI Lookup Table"]
["FULL",null,null,"SPLIT",null,null,"FULL",null,null,"SPLIT"]
["lookup table @ 90",null,null,"lookup table @ 85",null,null,"lookup table @80",null,null,"lookup table @70",null,null,null,"Modification History","Updated by","Description of Update","Status"]
[0.1,100,null,0.1,100,null,0.05,100,null,0.05,100,null,null,"2022-12-01","M West","Hid SAT columns","Completed"]
[0.5,100,null,0.45,100,null,0.3,100,null,0.2,100,null,null,"2023-01-19","M West","Added 2023 data","Completed"]
[0.51,97.5,null,0.46,97.5,null,0.31,100,null,0.21,100]
[0.52,95,null,0.47,95,null,0.32,100,null,0.22,100]
[0.53,92.5,null,0.48,92.5,null,0.33,100,null,0.23,100]
[0.54,90,null,0.49,90,null,0.34,100,null,0.24,100]
[0.55000000000000004,87.5,null,0.5,87.5,null,0.35,100,null,0.25,100]
[0.56000000000000005,85,null,0.51,85,null,0.36,100,null,0.26,100]
[0.56999999999999995,82.5,null,0.52,82.5,null,0.37,100,null,0.27,95]
[0.57999999999999996,80,null,0.53,80,null,0.38,100,null,0.28000000000000003,95]
[0.59,77.5,null,0.54,77.5,null,0.39,100,null,0.28999999999999998,90]
[0.6,75,null,0.55000000000000004,75,null,0.4,100,null,0.3,90]
[0.61,72.5,null,0.56000000000000005,72.5,null,0.41,100,null,0.31,85]
[0.62,70,null,0.56999999999999995,70,null,0.42,95,null,0.32,85]
[0.63,67.5,null,0.57999999999999996,67.5,null,0.43,95,null,0.33,80]
[0.64,65,null,0.59,65,null,0.44,90,null,0.34,80]
[0.65,62.5,null,0.6,62.5,null,0.45,90,null,0.35,75]
[0.66,60,null,0.61,60,null,0.46,85,null,0.36,75]
[0.67,57.5,null,0.62,57.5,null,0.47,85,null,0.37,70]
[0.68,55,null,0.63,55,null,0.48,80,null,0.38,70]
[0.69,52.5,null,0.64,52.5,null,0.49,80,null,0.39,65]
[0.7,50,null,0.65,50,null,0.5,75,null,0.4,65]
[0.71,47.5,null,0.66,47.5,null,0.51,75,null,0.41,60]
[0.72,45,null,0.67,45,null,0.52,70,null,0.42,60]
[0.73,42.5,null,0.68,42.5,null,0.53,70,null,0.43,55]
[0.74,40,null,0.69,40,null,0.54,65,null,0.44,55]
[0.75,37.5,null,0.7,37.5,null,0.55000000000000004,65,null,0.45,50]
[0.76,35,null,0.71,35,null,0.56000000000000005,60,null,0.46,50]
[0.77,32.5,null,0.72,32.5,null,0.56999999999999995,60,null,0.47,45]
[0.78,30,null,0.73,30,null,0.57999999999999996,55,null,0.48,45]
[0.79,27.5,null,0.74,27.5,null,0.59,55,null,0.49,40]
[0.8,25,null,0.75,25,null,0.6,50,null,0.5,40]
[0.81,22.5,null,0.76,22.5,null,0.61,50,null,0.51,35]
[0.82,20,null,0.77,20,null,0.62,45,null,0.52,35]
[0.83,17.5,null,0.78,17.5,null,0.63,45,null,0.53,30]
[0.84,15,null,0.79,15,null,0.64,40,null,0.54,30]
[0.85,12.5,null,0.8,12.5,null,0.65,40,null,0.55000000000000004,25]
[0.86,10,null,0.81,10,null,0.66,35,null,0.56000000000000005,25]
[0.87,7.5,null,0.82,7.5,null,0.67,35,null,0.56999999999999995,20]
[0.88,5,null,0.83,5,null,0.68,30,null,0.57999999999999996,20]
[0.89,2.5,null,0.84,2.5,null,0.69,30,null,0.59,15]
[0.9,0,null,0.85,0,null,0.7,25,null,0.6,15]
[1.5,0,null,1.5,0,null,0.71,25,null,0.61,10]
[null,null,null,null,null,null,0.72,20,null,0.62,10]
[null,null,null,null,null,null,0.73,20,null,0.63,5]
[null,null,null,null,null,null,0.74,15,null,0.64,5]
[null,null,null,null,null,null,0.75,15,null,0.65,0]
[null,null,null,null,null,null,0.76,10,null,0.66,0]
[null,null,null,null,null,null,0.77,10,null,0.67,0]
[null,null,null,null,null,null,0.78,5,null,0.68,0]
[null,null,null,null,null,null,0.79,5,null,0.69,0]
[null,null,null,null,null,null,0.8,0,null,0.7,0]
[null,null,null,null,null,null,1,0,null,1,0]

{"sheet":"Weather Stations (data)","index":4,"n_rows":262,"n_cols":45,"rows_kept":262,"cut":false,"hidden":true,"merged":[]}
[null,null,null,null,null,null,"Forage Risk Area",null,null,null,null,null,null,null,null,null,null,null,null,null,null,null,null,null,null,null,null,null,null,null,null,null,null,null,null,null,null,null,"DropDownList"]
[]
["RISK_AREA_ID","RISK_AREA",1,2,3,4,5,6,7,8,9,10,11,12,13,14,15,16,17,18,19,20,21,22,23,24,25,26,27,28,29,30,31,32,33,34,35,null,null,null,null,"Modification History","Updated by","Description of Update","Status"]
[90,"Abee","Bow Island South","Barnwell","Ardenville","Ardenville","Ardenville","Acadia Valley","Acadia Valley","Atlee","Atlee","Ardenville","Ardenville","Azure","Acadia Valley","Alliance","Alliance","Alliance","Azure","Battle River","Battle River","Albert Hall","Albert Hall","Alliance","Barrhead","Barrhead","Barrhead","Abee","Abee","Abee","Abee","Athabasca","Ballater","Ballater","Ballater","Ballater","Brownvale",null,{"$f":"B4","v":"Abee"},null,null,"2020-11-19","Martine West","Updated weather stations & forage risk areas","Completed"]
[204,"Acadia Valley","Bullsprings","Bow Island South","Barnwell","Barnwell","Barons","Atlee","Atlee","Barnwell","Bassano","Azure","Azure","Barons","Alliance","Bellshill","Bassano","Azure","Beiseker","Beiseker","Breton","Alliance","Alliance","Andrew","Battle River","Battle River","Breton","Albert Hall","Andrew","Andrew","Andrew","Ballater","Brownvale","Beaverlodge","Beaverlodge","Beaverlodge","Cleardale",null,{"$f":"B5","v":"Acadia Valley"},null,null,"2022-01-10","Martine West","Update new weather stations & Pibroch spelling","Completed"]
[304,"Aden","Comrey","Brooks","Barons","Barons","Brocket","Barnwell","Bassano","Barons","Beiseker","Barnwell","Barons","Beiseker","Bassano","Big Valley","Beiseker","Bassano","Big Valley","Big Valley","Crestomere","Beiseker","Bellshill","Battle River","Breton","Breton","Campsie","Andrew","Athabasca","Athabasca","Athabasca","Barrhead","Chisholm","Brownvale","Brownvale","Brownvale","Deadwood",null,"Aden",null,null,"2022-12-22","Martine West","Extracted Risk areas from Envoy","Completed"]
[160,"Albert Hall","Etzikom","BTAP","Blackie","Brocket","BTAP","Bow Island South","Bodo","Bassano","Blackie","Barons","Beiseker","Black Diamond","Big Valley","Bodo","Big Valley","Beiseker","Black Diamond","Breton","Dickson Dam","Bellshill","Big Valley","Beiseker","Busby","Busby","Carrot Creek","Beaverdam","Atmore","Barrhead","Atmore","Campsie","Deadwood","Eaglesham","Cleardale","Cleardale","Eureka River",null,"Albert Hall",null,null,"2024-01-24","Jesse Trottier","Fixed sorting for the weather stations","Completed"]
[151,"Alliance","Foremost","Bullsprings","Bow Island South","BTAP","Bullhorn Coulee Reservoir Inlet","Brooks","Brooks","Blackie","Brooks","Bassano","Black Diamond","Blackie","Bodo","Cadogan","Cabin Lake","Big Valley","Blackie","Calgary","Divide Hills","Big Valley","Camrose","Big Valley","Campsie","Campsie","Edson","Camrose","Beaverdam","Battle River","Barrhead","Chisholm","Duck Lake","Eureka River","Deadwood","Deadwood","Fairview",null,"Alliance"]
[91,"Andrew","Irvine","Comrey","Brocket","Bullhorn Coulee Reservoir Inlet","Bullhorn Headwater","Buffalo","Buffalo","Bow Island South","Cabin Lake","Beiseker","Blackie","Calgary","Cabin Lake","Consort","Calgary","Black Diamond","Calgary","Camrose","Edmonton","Bodo","Craigmyle","Breton","Camrose","Carrot Creek","Evansburg2","Dewberry","Busby","Breton","Busby","Duck Lake","Eaglesham","Fairview","Eaglesham","Eaglesham","Ft Vermilion",null,"Andrew"]
[259,"Ardenville","Ketchum Creek","Enchant","Brooks","Bullhorn Headwater","Cardston","Bullsprings","Bullsprings","Brooks","Champion","Big Valley","Brocket","Champion","Cadogan","Coronation","Coronation","Blackie","Craigmyle","Crestomere","Edson","Cadogan","Crestomere","Camrose","Crestomere","Crestomere","Ft Assiniboine","Dupre","Dewberry","Busby","Campsie","Ft Assiniboine","Hazel","High Level","Eureka River","Eureka River","Hawk Hills",null,"Ardenville"]
[161,"Athabasca","Lodge Creek","Etzikom","BTAP","Cardston","Carway","Cabin Lake","Cabin Lake","BTAP","Craigmyle","Black Diamond","BTAP","Claresholm","Cereal","Craigmyle","Craigmyle","Calgary","Delburne","Delburne","Evansburg2","Consort","Delburne","Craigmyle","Delburne","Edmonton","Glenevis","Edmonton","Dupre","Campsie","Chisholm","High Prairie","High Level","High Prairie","Fairview","Fairview","Hazel",null,"Athabasca"]
[203,"Atlee","Manyberries","Fincastle","Bullhorn Coulee Reservoir Inlet","Carway","Claresholm","Cappon","Cadogan","Buffalo","Drumheller","Blackie","Calgary","Elbow","Consort","Delburne","Delburne","Champion","Dickson Dam","Dickson Dam","Hespero","Coronation","Divide Hills","Crestomere","Dickson Dam","Edson","Greencourt","Elk Island Park","Edmonton","Camrose","Duck Lake","High Prairie  Banana Belt","High Prairie","High Prairie  Banana Belt","Hazel","Hawk Hills","High Level",null,"Atlee"]
[92,"Atmore","Medicine Hat","Foremost","Bullhorn Headwater","Champion","Cross Drain 5","Cereal","Cappon","Bullsprings","Enchant","Brocket","Champion","Keoma","Coronation","Divide Hills","Divide Hills","Craigmyle","Divide Hills","Divide Hills","Lacombe","Craigmyle","Drumheller","Delburne","Divide Hills","Evansburg2","Little Paddle Headwaters","Ferintosh","Elk Island Park","Duck Lake","Elk Island Park","Little Paddle Headwaters","High Prairie  Banana Belt","Hines Creek","High Level","Hazel","Hines Creek",null,"Atmore"]
[202,"Azure","Medicine Lodge","Grassy Lake","Cardston","Claresholm","Del Bonita","Etzikom","Cereal","Cabin Lake","Finnegan","BTAP","Claresholm","Linden","Craigmyle","Drumheller","Drumheller","Crestomere","Drumheller","Elbow","Leedale","Delburne","Edgerton","Dickson Dam","Edmonton","Ft Assiniboine","Mayerthorpe","Forestburg","Holden","Edmonton","Evansburg2","Mayerthorpe","Jean Cote","Jean Cote","High Prairie","High Level","Jean Cote",null,"Azure"]
[46,"Ballater","Onefour","Irvine","Carway","Cross Drain 5","Fort Macleod","Fincastle","Consort","Cappon","Gleichen","Bullhorn Coulee Reservoir Inlet","Elbow","Livingston","Drumheller","Edgerton","Finnegan","Delburne","Elbow","Ferintosh","Linden","Divide Hills","Edmonton","Divide Hills","Elk Island Park","Glenevis","Paddle Dam","Gladstone","Hoselaw","Elk Island Park","Ft Assiniboine","Paddle Dam","Manning","La Glace","Hines Creek","Hines Creek","Keg River",null,"Ballater"]
[54,"Barnwell","Pakowki Lake","Ketchum Creek","Champion","Del Bonita","Lee Creek","Finnegan","Coronation","Champion","Hand Hills","Bullhorn Headwater","Fort Macleod","Mossleigh","Esther","Esther","Fleet","Dickson Dam","Gleichen","Hespero","Magee Lake","Drumheller","Elk Island Park","Edmonton","Evansburg2","Greencourt","Rocky Mnt H","Greencourt","Kinikinik","Evansburg2","Glenevis","Peavine","Peavine","Peavine","Jean Cote","Jean Cote","La Crete",null,"Barnwell"]
[146,"Barons","Pinhorn","Lathom","Claresholm","Enchant","Livingston","Foremost","Craigmyle","Claresholm","Hussar","Calgary","Gleichen","Neir","Finnegan","Fleet","Forestburg","Drumheller","Hespero","Keoma","Neir","Edgerton","Ferintosh","Elk Island Park","Ferintosh","Lacombe","Tomahawk","Holden","Kitscoty","Ferintosh","Greencourt","Pibroch","Pleasant View","Peoria","La Glace","La Glace","Manning",null,"Barons"]
[249,"Barrhead","Ralston","Lethbridge","Cross Drain 5","Fincastle","Milk River Ridge","Grassy Lake","Drumheller","Enchant","Keoma","Cardston","Keoma","Olds","Fleet","Forestburg","Gleichen","Elbow","Keoma","Lacombe","Olds","Esther","Fleet","Ferintosh","Glenevis","Leedale","Twin Lakes","Hoselaw","Lac La Biche","Ft Assiniboine","Kinikinik","Slave Lake","Roma","Roma","Manning","Manning","Rocky Lane",null,"Barrhead"]
[147,"Bassano","Rush Lake","Lodge Creek","Del Bonita","Fort Macleod","Pincher Creek","Iddesleigh","Esther","Etzikom","Lathom","Champion","Livingston","Pine Coulee FP","Forestburg","Gooseberry Lake","Halkirk","Ferintosh","Lacombe","Leedale","Prentiss","Fleet","Forestburg","Fleet","Hespero","Little Paddle Headwaters","Whitecourt","Killam","Legal","Gladstone","Lac La Biche","Spring Creek","Slave Lake","Rycroft","Peavine","Peoria","Roma",null,"Bassano"]
[132,"Battle River","Sage Creek","Manyberries","Enchant","Lee Creek","Pine Coulee FP","Irvine","Finnegan","Fincastle","Linden","Claresholm","Mossleigh","Porcupine","Gleichen","Halkirk","Hand Hills","Fleet","Linden","Linden","Red Deer","Forestburg","Gilt Edge North","Forestburg","Holden","Magee Lake","","Kitscoty","Lindbergh","Glenevis","Legal","Twin Lakes","Three Creeks","Savanna","Peoria","Roma","Savanna",null,"Battle River"]
[242,"Beaverdam","Schuler","Masinisan","Fincastle","Lethbridge","Porcupine","Lathom","Fleet","Finnegan","Morrin","Craigmyle","Neir","Priddis Observatory","Gooseberry Lake","Hand Hills","Hemaruka","Forestburg","Magee Lake","Magee Lake","Rocky Mnt H","Gilt Edge North","Gladstone","Gladstone","Lacombe","Mayerthorpe","","Legal","Lloydminster","Greencourt","Little Paddle Headwaters","Valleyview","Valleyview","Spring Creek","Roma","Rycroft","Three Creeks",null,"Beaverdam"]
[47,"Beaverlodge","Seven Persons","Medicine Hat","Foremost","Livingston","Raymond","Lodge Creek","Gleichen","Foremost","Mossleigh","Cross Drain 5","Pincher Creek","Stavely","Halkirk","Hemaruka","Hussar","Gleichen","Morrin","Neir","St. Francis","Gladstone","Halkirk","Halkirk","Leedale","Paddle Dam","","Lindbergh","Mannville","Holden","Mayerthorpe","Vega","Whitemud Creek","Teepee Creek","Rycroft","Savanna","Tompkins Landing",null,"Beaverlodge"]
[149,"Beiseker","Vernon Lake","Medicine Lodge","Fort Macleod","Masinisan","Streeter Creek","Medicine Hat","Gooseberry Lake","Fort Macleod","Patricia","Drumheller","Pine Coulee FP","Strathmore","Hand Hills","Hughenden","Keoma","Halkirk","Mossleigh","Olds","Stony Plain","Gooseberry Lake","Hand Hills","Hespero","Legal","Pibroch","","Lloydminster","Mundare","Killam","Mundare","Whitecourt","Worsley","Three Creeks","Savanna","Teepee Creek","Worsley",null,"Beiseker"]
[162,"Bellshill","Winnifred","Milk River","Grassy Lake","Milk River","Tennessee Creek","Medicine Lodge","Hand Hills","Gleichen","Pollockville","Enchant","Porcupine","Streeter Creek","Hemaruka","Kessler","Linden","Hand Hills","Neir","Parlby Creek","Sundre","Halkirk","Holden","Killam","Little Paddle Headwaters","Rocky Mnt H","","Mannville","Myrnam","Kinikinik","Oliver","Whitemud Creek","","Whitemud Creek","Spring Creek","Three Creeks",null,null,"Bellshill"]
[163,"Big Valley","Hilda","Milk River Reservoir","Ketchum Creek","Milk River Reservoir","","Oyen","Hemaruka","Grassy Lake","Queenstown","Fincastle","Priddis Observatory","Sundre","Hughenden","Killam","Morrin","Hussar","Olds","Prentiss","Thorsby","Hand Hills","Hughenden","Kinsella","Magee Lake","St. Albert","","Mundare","New Sarepta","Kinsella","Paddle Dam","","","","Teepee Creek","Worsley","",null,"Big Valley"]
[201,"Black Diamond","Gahern","Milk River Ridge","Lathom","Milk River Ridge","","Patricia","Homestead Coulee","Hussar","Rainier","Finnegan","Queenstown","Water Valley","Hussar","Kirriemuir","Mossleigh","Keoma","Parlby Creek","Priddis Observatory","Tomahawk","Hemaruka","Killam","Lacombe","Mayerthorpe","St. Francis","","Myrnam","Oliver","Legal","Pibroch","","","","Three Creeks",null,"",null,"Black Diamond"]
[233,"Blackie","Twin River ","Onefour","Lethbridge","Picture Butte","","Pollockville","Hussar","Keoma","Red Coat","Fort Macleod","Standard","","Kessler","Morrin","Neir","Lacombe","Prentiss","Red Deer","Water Valley","Holden","Kinsella","Leedale","Mundare","Stony Plain","","New Sarepta","Pleasant View","Little Paddle Headwaters","Pleasant View","","","","Valleyview","","",null,"Blackie"]
[70,"Bodo","Aden","Pakowki Lake","Masinisan","Pincher Creek","","Rainier","Kessler","Lathom","Rolling Hills","Gleichen","Stavely","","Kirriemuir","Oyen","Olds","Lathom","Priddis Observatory","Rocky Mnt H","Wetaskiwin","Hughenden","Kitscoty","Linden","New Sarepta","Thorsby","","Oliver","Radway","Mayerthorpe","Radway","","","","Whitemud Creek","","",null,"Bodo"]
[1,"Bow Island South","","Picture Butte","Milk River","Pine Coulee FP","","Ralston","Kirriemuir","Lethbridge","Rosemary","Hand Hills","Strathmore","","Morrin","Parlby Creek","Parlby Creek","Linden","Red Deer","Stettler","Wimborne","Hussar","Lacombe","Magee Lake","Oliver","Tomahawk","","Radway","Ranfurly","Mundare","Redwater","","","","Worsley","","",null,"Bow Island South"]
[82,"Breton","","Pinhorn","Milk River Reservoir","Porcupine","","Red Coat","Lathom","Medicine Hat","Sheerness","Hussar","Streeter Creek","","Oyen","Ribstone","Pollockville","Magee Lake","Standard","Strathmore","","Kessler","Magee Lake","Morrin","Paddle Dam","Twin Lakes","","Ranfurly","Redwater","New Sarepta","Rich Lake","","","",null,"","",null,"Breton"]
[63,"Brocket","","Rainier","Milk River Ridge","Raymond","","Rolling Hills","Morrin","Mossleigh","Spondin","Keoma","Tennessee Creek","","Pollockville","Sedalia","Queenstown","Morrin","Stettler","Sundre","","Killam","Mannville","Mundare","Parlby Creek","Vega","","Redwater","Rich Lake","Oliver","Sandy Lake","","","","","","",null,"Brocket"]
[2,"Brooks","","Ralston","Pakowki Lake","St. Mary Reservior","","Rosemary","Oyen","Patricia","Standard","Lathom","Travers","","Ribstone","Sheerness","Red Deer","Mossleigh","Strathmore","Thorsby","","Kinsella","Morrin","Neir","Prentiss","Wetaskiwin","","Rich Lake","Sandy Lake","Paddle Dam","Slave Lake","","","","","","",null,"Brooks"]
[164,"Brownvale","","Raymond","Picture Butte","Stavely","","Rush Lake","Patricia","Picture Butte","Strathmore","Lethbridge","","","Rosemary","Spondin","Rosemary","Neir","Sundre","Three Hills","","Kirriemuir","Mundare","New Sarepta","Radway","Whitecourt","","Rosalind","Shonts","Pibroch","Smoky Lake","","","","","","",null,"Brownvale"]
[64,"BTAP","","Rolling Hills","Pine Coulee FP","Streeter Creek","","Schuler","Pollockville","Pine Coulee FP","Sunnynook","Linden","","","Sedalia","Stettler","Sheerness","Olds","Three Hills","Water Valley","","Kitscoty","Myrnam","Olds","Red Deer","","","Sandy Lake","Smoky Lake","Pleasant View","St. Albert","","","","","","",null,"BTAP"]
[103,"Buffalo","","Rush Lake","Pinhorn","Tennessee Creek","","Seven Persons","Queenstown","Pollockville","Three Hills","Livingston","","","Sheerness","Three Hills","Spondin","Parlby Creek","Water Valley","Wetaskiwin","","Linden","New Sarepta","Oliver","Redwater","","","Shonts","St. Albert","Radway","Stony Plain","","","","","","",null,"Buffalo"]
[210,"Bullhorn Coulee Reservoir Inlet","","Sage Creek","Picture Butte","Travers","","Sheerness","Rainier","Queenstown","Tide Lake","Milk River Reservoir","","","Spondin","Wainwright","Standard","Prentiss","Wimborne","Wimborne","","Lloydminster","Oliver","Parlby Creek","Rocky Mnt H","","","Smoky Lake","St. Lina","Redwater","Tawatinaw","","","","","","",null,"Bullhorn Coulee Reservoir Inlet"]
[209,"Bullhorn Headwater","","Schuler","Porcupine","Vauxhall","","Social Plains","Ralston","Rainier","Travers","Milk River Ridge","","","Standard","Youngstown","Stettler","Priddis Observatory","","","","Mannville","Parlby Creek","Prentiss","Shonts","","","St. Albert","St. Paul","Rosalind","Tomahawk","","","","","","",null,"Bullhorn Headwater"]
[227,"Bullsprings","","Seven Persons","Queenstown","Warner","","Sunnynook","Red Coat","Ralston","Verger","Morrin","","","Stettler","","Strathmore","Queenstown","","","","Morrin","Prentiss","Red Deer","St. Albert","","","St. Lina","Stony Plain","Sandy Lake","Twin Lakes","","","","","","",null,"Bullsprings"]
[84,"Busby","","St. Mary Reservior","Rainier","Wrentham","","Tide Lake","Rolling Hills","Raymond","Youngstown","Mossleigh","","","Sunnynook","","Sunnynook","Red Deer","","","","Myrnam","Ranfurly","Rosalind","St. Francis","","","St. Paul","Tawatinaw","Shonts","Vega","","","","","","",null,"Busby"]
[214,"Cabin Lake","","Steveville","Raymond","Carseland","","Vauxhall","Rosemary","Red Coat","","Neir","","","Verger","","Three Hills","Rosalind","","","","Parlby Creek","Red Deer","Shonts","Stettler","","","Tulliby Lake","Tulliby Lake","Smoky Lake","Vilna","","","","","","",null,"Cabin Lake"]
[137,"Cadogan","","Tide Lake","Rolling Hills","","","Verger","Schuler","Rolling Hills","","Olds","","","Wardlow","","Verger","Standard","","","","Prentiss","Rosalind","St. Albert","Stony Plain","","","Two Hills","Two Hills","St. Albert","Wandering River","","","","","","",null,"Cadogan"]
[24,"Calgary","","Travers","St. Mary Reservior","","","Winnifred","Sedalia","Rosemary","","Picture Butte","","","Youngstown","","Wardlow","Stavely","","","","Ranfurly","Shonts","St. Francis","Thorsby","","","Vegreville","Vegreville","St. Francis","Whitecourt","","","","","","",null,"Calgary"]
[29,"Campsie","","Vauxhall","Stavely","","","Youngstown","Sheerness","Rush Lake","","Pincher Creek","","","","","Wimborne","Stettler","","","","Ribstone","Spondin","Stettler","Tomahawk","","","Vermilion","Vermilion","Stony Plain","","","","","","","",null,"Campsie"]
[33,"Camrose","","Vernon Lake","Steveville","","","Radway","Social Plains","Seven Persons","","Pine Coulee FP","","","","","Youngstown","Strathmore","","","","Rivercourse","Stettler","Stony Plain","Twin Lakes","","","Viking","Vilna","Tawatinaw","","","","","","","",null,"Camrose"]
[262,"Cappon","","Warner","Streeter Creek","","","Ross Creek ","Spondin","Standard","","Porcupine","","","","","","Three Hills","","","","Rosalind","Thorsby","Sundre","Wetaskiwin","","","Vilna","Wandering River","Thorsby","","","","","","","",null,"Cappon"]
[8,"Cardston","","Winnifred","Tennessee Creek","","","Marwayne","Standard","Strathmore","","Priddis Observatory","","","","","","Travers","","","","Shonts","Three Hills","Thorsby","Wimborne","","","Wetaskiwin","","Tomahawk","","","","","","","",null,"Cardston"]
[266,"Carrot Creek","","Wrentham","Travers","","","","Sunnynook","Sunnynook","","Queenstown","","","","","","Water Valley","","","","Spondin","Two Hills","Three Hills","","","","","","Twin Lakes","","","","","","","",null,"Carrot Creek"]
[301,"Carseland","","","Vauxhall","","","","Tide Lake","Tide Lake","","Rainier","","","","","","Wimborne","","","","Standard","Vegreville","Two Hills","","","","","","Two Hills","","","","","","","",null,"Carseland"]
[272,"Carway","","","Warner","","","","Verger","Travers","","Raymond","","","","","","","","","","Stettler","Vermilion","Vegreville","","","","","","Vega","","","","","","","",null,"Carway"]
[231,"Cereal","","","Winnifred","","","","Wardlow","Vauxhall","","Rosemary","","","","","","","","","","Three Hills","Viking","Viking","","","","","","Vegreville","","","","","","","",null,"Cereal"]
[65,"Champion","","","Wrentham","","","","Youngstown","Verger","","St. Mary Reservior","","","","","","","","","","Tulliby Lake","Wainwright","Wetaskiwin","","","","","","Viking","","","","","","","",null,"Champion"]
[93,"Chisholm","","","","","","","","Wardlow","","Standard","","","","","","","","","","Two Hills","Wetaskiwin","Wimborne","","","","","","Vilna","","","","","","","",null,"Chisholm"]
[9,"Claresholm","","","","","","","","Winnifred","","Stavely","","","","","","","","","","Vegreville","Wimborne","","","","","","","Wetaskiwin","","","","","","","",null,"Claresholm"]
[104,"Cleardale","","","","","","","","Wrentham","","Strathmore","","","","","","","","","","Vermilion","","","","","","","","Whitecourt","","","","","","","",null,"Cleardale"]
[294,"Comrey","","","","","","","","","","Streeter Creek","","","","","","","","","","Viking","","","","","","","","","","","","","","","",null,"Comrey"]
[71,"Consort","","","","","","","","","","Tennessee Creek","","","","","","","","","","Wainwright","","","","","","","","","","","","","","","",null,"Consort"]
[20,"Coronation","","","","","","","","","","Three Hills","","","","","","","","","","Wimborne","","","","","","","","","","","","","","","",null,"Coronation"]
[134,"Craigmyle","","","","","","","","","","Travers","","","","","","","","","","","","","","","","","","","","","","","","","",null,"Craigmyle"]
[165,"Crestomere","","","","","","","","","","Vauxhall","","","","","","","","","","","","","","","","","","","","","","","","","",null,"Crestomere"]
[273,"Cross Drain 5","","","","","","","","","","Wimborne","","","","","","","","","","","","","","","","","","","","","","","","","",null,"Cross Drain 5"]
[217,"Deadwood","","","",null,null,"","","","",null,null,null,null,"","",null,"","","","","",null,"",null,null,null,null,null,null,null,"","","","","",null,"Deadwood"]
[66,"Del Bonita","","","",null,null,"","",null,null,null,null,null,null,null,null,null,null,null,null,null,null,null,null,null,null,null,null,null,null,null,null,null,null,null,"",null,"Del Bonita"]
[159,"Delburne","","","",null,null,null,null,null,null,null,null,null,null,null,null,null,null,null,null,null,null,null,null,null,null,null,null,null,null,null,null,null,null,null,null,null,"Delburne"]
[94,"Dewberry",null,"",null,null,null,null,null,null,null,null,null,null,null,null,null,null,null,null,null,null,null,null,null,null,null,null,null,null,null,null,null,null,null,null,null,null,"Dewberry"]
[124,"Dickson Dam",null,null,null,null,null,null,null,null,null,null,null,null,null,null,null,null,null,null,null,null,null,null,null,null,null,null,null,null,null,null,null,null,null,null,null,null,"Dickson Dam"]
[289,"Divide Hills",null,null,null,null,null,null,null,null,null,null,null,null,null,null,null,null,null,null,null,null,null,null,null,null,null,null,null,null,null,null,null,null,null,null,null,null,"Divide Hills"]
[22,"Drumheller",null,null,null,null,null,null,null,null,null,null,null,null,null,null,null,null,null,null,null,null,null,null,null,null,null,null,null,null,null,null,null,null,null,null,null,null,"Drumheller"]
[267,"Duck Lake",null,null,null,null,null,null,null,null,null,null,null,null,null,null,null,null,null,null,null,null,null,null,null,null,null,null,null,null,null,null,null,null,null,null,null,null,"Duck Lake"]
[166,"Dupre",null,null,null,null,null,null,null,null,null,null,null,null,null,null,null,null,null,null,null,null,null,null,null,null,null,null,null,null,null,null,null,null,null,null,null,null,{"$f":"B69","v":"Dupre"}]
[167,"Eaglesham",null,null,null,null,null,null,null,null,null,null,null,null,null,null,null,null,null,null,null,null,null,null,null,null,null,null,null,null,null,null,null,null,null,null,null,null,"Eaglesham"]
[112,"Edgerton",null,null,null,null,null,null,null,null,null,null,null,null,null,null,null,null,null,null,null,null,null,null,null,null,null,null,null,null,null,null,null,null,null,null,null,null,"Edgerton"]
[34,"Edmonton",null,null,null,null,null,null,null,null,null,null,null,null,null,null,null,null,null,null,null,null,null,null,null,null,null,null,null,null,null,null,null,null,null,null,null,null,"Edmonton"]
[87,"Edson",null,null,null,null,null,null,null,null,null,null,null,null,null,null,null,null,null,null,null,null,null,null,null,null,null,null,null,null,null,null,null,null,null,null,null,null,"Edson"]
[76,"Elbow",null,null,null,null,null,null,null,null,null,null,null,null,null,null,null,null,null,null,null,null,null,null,null,null,null,null,null,null,null,null,null,null,null,null,null,null,"Elbow"]
[95,"Elk Island Park",null,null,null,null,null,null,null,null,null,null,null,null,null,null,null,null,null,null,null,null,null,null,null,null,null,null,null,null,null,null,null,null,null,null,null,null,"Elk Island Park"]
[56,"Enchant",null,null,null,null,null,null,null,null,null,null,null,null,null,null,null,null,null,null,null,null,null,null,null,null,null,null,null,null,null,null,null,null,null,null,null,null,"Enchant"]
[16,"Esther",null,null,null,null,null,null,null,null,null,null,null,null,null,null,null,null,null,null,null,null,null,null,null,null,null,null,null,null,null,null,null,null,null,null,null,null,"Esther"]
[140,"Etzikom",null,null,null,null,null,null,null,null,null,null,null,null,null,null,null,null,null,null,null,null,null,null,null,null,null,null,null,null,null,null,null,null,null,null,null,null,"Etzikom"]
[279,"Eureka River",null,null,null,null,null,null,null,null,null,null,null,null,null,null,null,null,null,null,null,null,null,null,null,null,null,null,null,null,null,null,null,null,null,null,null,null,"Eureka River"]
[277,"Evansburg2",null,null,null,null,null,null,null,null,null,null,null,null,null,null,null,null,null,null,null,null,null,null,null,null,null,null,null,null,null,null,null,null,null,null,null,null,"Evansburg2"]
[105,"Fairview",null,null,null,null,null,null,null,null,null,null,null,null,null,null,null,null,null,null,null,null,null,null,null,null,null,null,null,null,null,null,null,null,null,null,null,null,"Fairview"]
[169,"Ferintosh",null,null,null,null,null,null,null,null,null,null,null,null,null,null,null,null,null,null,null,null,null,null,null,null,null,null,null,null,null,null,null,null,null,null,null,null,"Ferintosh"]
[170,"Fincastle",null,null,null,null,null,null,null,null,null,null,null,null,null,null,null,null,null,null,null,null,null,null,null,null,null,null,null,null,null,null,null,null,null,null,null,null,"Fincastle"]
[261,"Finnegan",null,null,null,null,null,null,null,null,null,null,null,null,null,null,null,null,null,null,null,null,null,null,null,null,null,null,null,null,null,null,null,null,null,null,null,null,"Finnegan"]
[240,"Fleet ",null,null,null,null,null,null,null,null,null,null,null,null,null,null,null,null,null,null,null,null,null,null,null,null,null,null,null,null,null,null,null,null,null,null,null,null,"Fleet "]
[57,"Foremost",null,null,null,null,null,null,null,null,null,null,null,null,null,null,null,null,null,null,null,null,null,null,null,null,null,null,null,null,null,null,null,null,null,null,null,null,"Foremost"]
[171,"Forestburg",null,null,null,null,null,null,null,null,null,null,null,null,null,null,null,null,null,null,null,null,null,null,null,null,null,null,null,null,null,null,null,null,null,null,null,null,"Forestburg"]
[145,"Fort Macleod",null,null,null,null,null,null,null,null,null,null,null,null,null,null,null,null,null,null,null,null,null,null,null,null,null,null,null,null,null,null,null,null,null,null,null,null,"Fort Macleod"]
[113,"Ft Assiniboine",null,null,null,null,null,null,null,null,null,null,null,null,null,null,null,null,null,null,null,null,null,null,null,null,null,null,null,null,null,null,null,null,null,null,null,null,"Ft Assiniboine"]
[106,"Ft Vermilion",null,null,null,null,null,null,null,null,null,null,null,null,null,null,null,null,null,null,null,null,null,null,null,null,null,null,null,null,null,null,null,null,null,null,null,null,"Ft Vermilion"]
[302,"Gahern",null,null,null,null,null,null,null,null,null,null,null,null,null,null,null,null,null,null,null,null,null,null,null,null,null,null,null,null,null,null,null,null,null,null,null,null,"Gahern"]
[154,"Gilt Edge North",null,null,null,null,null,null,null,null,null,null,null,null,null,null,null,null,null,null,null,null,null,null,null,null,null,null,null,null,null,null,null,null,null,null,null,null,"Gilt Edge North"]
[237,"Gladstone",null,null,null,null,null,null,null,null,null,null,null,null,null,null,null,null,null,null,null,null,null,null,null,null,null,null,null,null,null,null,null,null,null,null,null,null,"Gladstone"]
[25,"Gleichen",null,null,null,null,null,null,null,null,null,null,null,null,null,null,null,null,null,null,null,null,null,null,null,null,null,null,null,null,null,null,null,null,null,null,null,null,"Gleichen"]
[172,"Glenevis",null,null,null,null,null,null,null,null,null,null,null,null,null,null,null,null,null,null,null,null,null,null,null,null,null,null,null,null,null,null,null,null,null,null,null,null,"Glenevis"]
[239,"Gooseberry Lake",null,null,null,null,null,null,null,null,null,null,null,null,null,null,null,null,null,null,null,null,null,null,null,null,null,null,null,null,null,null,null,null,null,null,null,null,"Gooseberry Lake"]
[173,"Grassy Lake",null,null,null,null,null,null,null,null,null,null,null,null,null,null,null,null,null,null,null,null,null,null,null,null,null,null,null,null,null,null,null,null,null,null,null,null,"Grassy Lake"]
[282,"Greencourt",null,null,null,null,null,null,null,null,null,null,null,null,null,null,null,null,null,null,null,null,null,null,null,null,null,null,null,null,null,null,null,null,null,null,null,null,"Greencourt"]
[174,"Halkirk",null,null,null,null,null,null,null,null,null,null,null,null,null,null,null,null,null,null,null,null,null,null,null,null,null,null,null,null,null,null,null,null,null,null,null,null,"Halkirk"]
[232,"Hand Hills",null,null,null,null,null,null,null,null,null,null,null,null,null,null,null,null,null,null,null,null,null,null,null,null,null,null,null,null,null,null,null,null,null,null,null,null,"Hand Hills"]
[175,"Hawk Hills",null,null,null,null,null,null,null,null,null,null,null,null,null,null,null,null,null,null,null,null,null,null,null,null,null,null,null,null,null,null,null,null,null,null,null,null,"Hawk Hills"]
[265,"Hazel",null,null,null,null,null,null,null,null,null,null,null,null,null,null,null,null,null,null,null,null,null,null,null,null,null,null,null,null,null,null,null,null,null,null,null,null,"Hazel"]
[135,"Hemaruka",null,null,null,null,null,null,null,null,null,null,null,null,null,null,null,null,null,null,null,null,null,null,null,null,null,null,null,null,null,null,null,null,null,null,null,null,"Hemaruka"]
[176,"Hespero",null,null,null,null,null,null,null,null,null,null,null,null,null,null,null,null,null,null,null,null,null,null,null,null,null,null,null,null,null,null,null,null,null,null,null,null,"Hespero"]
[288,"High Level",null,null,null,null,null,null,null,null,null,null,null,null,null,null,null,null,null,null,null,null,null,null,null,null,null,null,null,null,null,null,null,null,null,null,null,null,"High Level"]
[107,"High Prairie",null,null,null,null,null,null,null,null,null,null,null,null,null,null,null,null,null,null,null,null,null,null,null,null,null,null,null,null,null,null,null,null,null,null,null,null,"High Prairie"]
[213,"High Prairie - Banana Belt",null,null,null,null,null,null,null,null,null,null,null,null,null,null,null,null,null,null,null,null,null,null,null,null,null,null,null,null,null,null,null,null,null,null,null,null,"High Prairie - Banana Belt"]
[306,"Hilda",null,null,null,null,null,null,null,null,null,null,null,null,null,null,null,null,null,null,null,null,null,null,null,null,null,null,null,null,null,null,null,null,null,null,null,null,"Hilda"]
[220,"Hines Creek",null,null,null,null,null,null,null,null,null,null,null,null,null,null,null,null,null,null,null,null,null,null,null,null,null,null,null,null,null,null,null,null,null,null,null,null,"Hines Creek"]
[96,"Holden",null,null,null,null,null,null,null,null,null,null,null,null,null,null,null,null,null,null,null,null,null,null,null,null,null,null,null,null,null,null,null,null,null,null,null,null,"Holden"]
[285,"Homestead Coulee",null,null,null,null,null,null,null,null,null,null,null,null,null,null,null,null,null,null,null,null,null,null,null,null,null,null,null,null,null,null,null,null,null,null,null,null,"Homestead Coulee"]
[243,"Hoselaw",null,null,null,null,null,null,null,null,null,null,null,null,null,null,null,null,null,null,null,null,null,null,null,null,null,null,null,null,null,null,null,null,null,null,null,null,"Hoselaw"]
[153,"Hughenden",null,null,null,null,null,null,null,null,null,null,null,null,null,null,null,null,null,null,null,null,null,null,null,null,null,null,null,null,null,null,null,null,null,null,null,null,"Hughenden"]
[75,"Hussar",null,null,null,null,null,null,null,null,null,null,null,null,null,null,null,null,null,null,null,null,null,null,null,null,null,null,null,null,null,null,null,null,null,null,null,null,"Hussar"]
[286,"Iddesleigh",null,null,null,null,null,null,null,null,null,null,null,null,null,null,null,null,null,null,null,null,null,null,null,null,null,null,null,null,null,null,null,null,null,null,null,null,"Iddesleigh"]
[148,"Irvine",null,null,null,null,null,null,null,null,null,null,null,null,null,null,null,null,null,null,null,null,null,null,null,null,null,null,null,null,null,null,null,null,null,null,null,null,"Irvine"]
[177,"Jean Cote",null,null,null,null,null,null,null,null,null,null,null,null,null,null,null,null,null,null,null,null,null,null,null,null,null,null,null,null,null,null,null,null,null,null,null,null,"Jean Cote"]
[108,"Keg River",null,null,null,null,null,null,null,null,null,null,null,null,null,null,null,null,null,null,null,null,null,null,null,null,null,null,null,null,null,null,null,null,null,null,null,null,"Keg River"]
[77,"Keoma",null,null,null,null,null,null,null,null,null,null,null,null,null,null,null,null,null,null,null,null,null,null,null,null,null,null,null,null,null,null,null,null,null,null,null,null,"Keoma"]
[152,"Kessler",null,null,null,null,null,null,null,null,null,null,null,null,null,null,null,null,null,null,null,null,null,null,null,null,null,null,null,null,null,null,null,null,null,null,null,null,"Kessler"]
[290,"Ketchum Creek",null,null,null,null,null,null,null,null,null,null,null,null,null,null,null,null,null,null,null,null,null,null,null,null,null,null,null,null,null,null,null,null,null,null,null,null,"Ketchum Creek"]
[97,"Killam",null,null,null,null,null,null,null,null,null,null,null,null,null,null,null,null,null,null,null,null,null,null,null,null,null,null,null,null,null,null,null,null,null,null,null,null,"Killam"]
[269,"Kinikinik",null,null,null,null,null,null,null,null,null,null,null,null,null,null,null,null,null,null,null,null,null,null,null,null,null,null,null,null,null,null,null,null,null,null,null,null,"Kinikinik"]
[205,"Kinsella",null,null,null,null,null,null,null,null,null,null,null,null,null,null,null,null,null,null,null,null,null,null,null,null,null,null,null,null,null,null,null,null,null,null,null,null,"Kinsella"]
[238,"Kirriemuir",null,null,null,null,null,null,null,null,null,null,null,null,null,null,null,null,null,null,null,null,null,null,null,null,null,null,null,null,null,null,null,null,null,null,null,null,"Kirriemuir"]
[155,"Kitscoty",null,null,null,null,null,null,null,null,null,null,null,null,null,null,null,null,null,null,null,null,null,null,null,null,null,null,null,null,null,null,null,null,null,null,null,null,"Kitscoty"]
[178,"La Crete",null,null,null,null,null,null,null,null,null,null,null,null,null,null,null,null,null,null,null,null,null,null,null,null,null,null,null,null,null,null,null,null,null,null,null,null,"La Crete"]
[179,"La Glace",null,null,null,null,null,null,null,null,null,null,null,null,null,null,null,null,null,null,null,null,null,null,null,null,null,null,null,null,null,null,null,null,null,null,null,null,"La Glace"]
[44,"Lac La Biche",null,null,null,null,null,null,null,null,null,null,null,null,null,null,null,null,null,null,null,null,null,null,null,null,null,null,null,null,null,null,null,null,null,null,null,null,"Lac La Biche"]
[30,"Lacombe",null,null,null,null,null,null,null,null,null,null,null,null,null,null,null,null,null,null,null,null,null,null,null,null,null,null,null,null,null,null,null,null,null,null,null,null,"Lacombe"]
[234,"Lathom",null,null,null,null,null,null,null,null,null,null,null,null,null,null,null,null,null,null,null,null,null,null,null,null,null,null,null,null,null,null,null,null,null,null,null,null,"Lathom"]
[126,"Lee Creek",null,null,null,null,null,null,null,null,null,null,null,null,null,null,null,null,null,null,null,null,null,null,null,null,null,null,null,null,null,null,null,null,null,null,null,null,"Lee Creek"]
[117,"Leedale",null,null,null,null,null,null,null,null,null,null,null,null,null,null,null,null,null,null,null,null,null,null,null,null,null,null,null,null,null,null,null,null,null,null,null,null,{"$f":"B133","v":"Leedale"}]
[180,"Legal",null,null,null,null,null,null,null,null,null,null,null,null,null,null,null,null,null,null,null,null,null,null,null,null,null,null,null,null,null,null,null,null,null,null,null,null,"Legal"]
[11,"Lethbridge",null,null,null,null,null,null,null,null,null,null,null,null,null,null,null,null,null,null,null,null,null,null,null,null,null,null,null,null,null,null,null,null,null,null,null,null,"Lethbridge"]
[123,"Lindbergh",null,null,null,null,null,null,null,null,null,null,null,null,null,null,null,null,null,null,null,null,null,null,null,null,null,null,null,null,null,null,null,null,null,null,null,null,"Lindbergh"]
[150,"Linden",null,null,null,null,null,null,null,null,null,null,null,null,null,null,null,null,null,null,null,null,null,null,null,null,null,null,null,null,null,null,null,null,null,null,null,null,"Linden"]
[248,"Little Paddle Headwaters",null,null,null,null,null,null,null,null,null,null,null,null,null,null,null,null,null,null,null,null,null,null,null,null,null,null,null,null,null,null,null,null,null,null,null,null,"Little Paddle Headwaters"]
[69,"Livingston",null,null,null,null,null,null,null,null,null,null,null,null,null,null,null,null,null,null,null,null,null,null,null,null,null,null,null,null,null,null,null,null,null,null,null,null,"Livingston"]
[36,"Lloydminster",null,null,null,null,null,null,null,null,null,null,null,null,null,null,null,null,null,null,null,null,null,null,null,null,null,null,null,null,null,null,null,null,null,null,null,null,"Lloydminster"]
[244,"Lodge Creek",null,null,null,null,null,null,null,null,null,null,null,null,null,null,null,null,null,null,null,null,null,null,null,null,null,null,null,null,null,null,null,null,null,null,null,null,"Lodge Creek"]
[127,"Magee Lake",null,null,null,null,null,null,null,null,null,null,null,null,null,null,null,null,null,null,null,null,null,null,null,null,null,null,null,null,null,null,null,null,null,null,null,null,"Magee Lake"]
[51,"Manning",null,null,null,null,null,null,null,null,null,null,null,null,null,null,null,null,null,null,null,null,null,null,null,null,null,null,null,null,null,null,null,null,null,null,null,null,"Manning"]
[138,"Mannville",null,null,null,null,null,null,null,null,null,null,null,null,null,null,null,null,null,null,null,null,null,null,null,null,null,null,null,null,null,null,null,null,null,null,null,null,"Mannville"]
[144,"Manyberries",null,null,null,null,null,null,null,null,null,null,null,null,null,null,null,null,null,null,null,null,null,null,null,null,null,null,null,null,null,null,null,null,null,null,null,null,"Manyberries"]
[305,"Marwayne",null,null,null,null,null,null,null,null,null,null,null,null,null,null,null,null,null,null,null,null,null,null,null,null,null,null,null,null,null,null,null,null,null,null,null,null,"Marwayne"]
[59,"Masinisan",null,null,null,null,null,null,null,null,null,null,null,null,null,null,null,null,null,null,null,null,null,null,null,null,null,null,null,null,null,null,null,null,null,null,null,null,"Masinisan"]
[88,"Mayerthorpe",null,null,null,null,null,null,null,null,null,null,null,null,null,null,null,null,null,null,null,null,null,null,null,null,null,null,null,null,null,null,null,null,null,null,null,null,"Mayerthorpe"]
[5,"Medicine Hat",null,null,null,null,null,null,null,null,null,null,null,null,null,null,null,null,null,null,null,null,null,null,null,null,null,null,null,null,null,null,null,null,null,null,null,null,"Medicine Hat"]
[181,"Medicine Lodge",null,null,null,null,null,null,null,null,null,null,null,null,null,null,null,null,null,null,null,null,null,null,null,null,null,null,null,null,null,null,null,null,null,null,null,null,"Medicine Lodge"]
[6,"Milk River",null,null,null,null,null,null,null,null,null,null,null,null,null,null,null,null,null,null,null,null,null,null,null,null,null,null,null,null,null,null,null,null,null,null,null,null,"Milk River"]
[207,"Milk River Reservoir",null,null,null,null,null,null,null,null,null,null,null,null,null,null,null,null,null,null,null,null,null,null,null,null,null,null,null,null,null,null,null,null,null,null,null,null,"Milk River Reservoir"]
[208,"Milk River Ridge",null,null,null,null,null,null,null,null,null,null,null,null,null,null,null,null,null,null,null,null,null,null,null,null,null,null,null,null,null,null,null,null,null,null,null,null,"Milk River Ridge"]
[78,"Morrin",null,null,null,null,null,null,null,null,null,null,null,null,null,null,null,null,null,null,null,null,null,null,null,null,null,null,null,null,null,null,null,null,null,null,null,null,"Morrin"]
[139,"Mossleigh",null,null,null,null,null,null,null,null,null,null,null,null,null,null,null,null,null,null,null,null,null,null,null,null,null,null,null,null,null,null,null,null,null,null,null,null,"Mossleigh"]
[182,"Mundare",null,null,null,null,null,null,null,null,null,null,null,null,null,null,null,null,null,null,null,null,null,null,null,null,null,null,null,null,null,null,null,null,null,null,null,null,"Mundare"]
[183,"Myrnam",null,null,null,null,null,null,null,null,null,null,null,null,null,null,null,null,null,null,null,null,null,null,null,null,null,null,null,null,null,null,null,null,null,null,null,null,"Myrnam"]
[120,"Neir",null,null,null,null,null,null,null,null,null,null,null,null,null,null,null,null,null,null,null,null,null,null,null,null,null,null,null,null,null,null,null,null,null,null,null,null,"Neir"]
[184,"New Sarepta",null,null,null,null,null,null,null,null,null,null,null,null,null,null,null,null,null,null,null,null,null,null,null,null,null,null,null,null,null,null,null,null,null,null,null,null,"New Sarepta"]
[79,"Olds",null,null,null,null,null,null,null,null,null,null,null,null,null,null,null,null,null,null,null,null,null,null,null,null,null,null,null,null,null,null,null,null,null,null,null,null,"Olds"]
[114,"Oliver",null,null,null,null,null,null,null,null,null,null,null,null,null,null,null,null,null,null,null,null,null,null,null,null,null,null,null,null,null,null,null,null,null,null,null,null,"Oliver"]
[7,"Onefour",null,null,null,null,null,null,null,null,null,null,null,null,null,null,null,null,null,null,null,null,null,null,null,null,null,null,null,null,null,null,null,null,null,null,null,null,"Onefour"]
[73,"Oyen",null,null,null,null,null,null,null,null,null,null,null,null,null,null,null,null,null,null,null,null,null,null,null,null,null,null,null,null,null,null,null,null,null,null,null,null,"Oyen"]
[247,"Paddle Dam",null,null,null,null,null,null,null,null,null,null,null,null,null,null,null,null,null,null,null,null,null,null,null,null,null,null,null,null,null,null,null,null,null,null,null,null,"Paddle Dam"]
[141,"Pakowki Lake",null,null,null,null,null,null,null,null,null,null,null,null,null,null,null,null,null,null,null,null,null,null,null,null,null,null,null,null,null,null,null,null,null,null,null,null,"Pakowki Lake"]
[128,"Parlby Creek",null,null,null,null,null,null,null,null,null,null,null,null,null,null,null,null,null,null,null,null,null,null,null,null,null,null,null,null,null,null,null,null,null,null,null,null,"Parlby Creek"]
[229,"Patricia",null,null,null,null,null,null,null,null,null,null,null,null,null,null,null,null,null,null,null,null,null,null,null,null,null,null,null,null,null,null,null,null,null,null,null,null,"Patricia"]
[212,"Peavine",null,null,null,null,null,null,null,null,null,null,null,null,null,null,null,null,null,null,null,null,null,null,null,null,null,null,null,null,null,null,null,null,null,null,null,null,"Peavine"]
[109,"Peoria",null,null,null,null,null,null,null,null,null,null,null,null,null,null,null,null,null,null,null,null,null,null,null,null,null,null,null,null,null,null,null,null,null,null,null,null,"Peoria"]
[293,"Pibroch",null,null,null,null,null,null,null,null,null,null,null,null,null,null,null,null,null,null,null,null,null,null,null,null,null,null,null,null,null,null,null,null,null,null,null,null,"Pibroch"]
[298,"Picture Butte",null,null,null,null,null,null,null,null,null,null,null,null,null,null,null,null,null,null,null,null,null,null,null,null,null,null,null,null,null,null,null,null,null,null,null,null,"Picture Butte"]
[10,"Pincher Creek",null,null,null,null,null,null,null,null,null,null,null,null,null,null,null,null,null,null,null,null,null,null,null,null,null,null,null,null,null,null,null,null,null,null,null,null,"Pincher Creek"]
[274,"Pine Coulee FP",null,null,null,null,null,null,null,null,null,null,null,null,null,null,null,null,null,null,null,null,null,null,null,null,null,null,null,null,null,null,null,null,null,null,null,null,"Pine Coulee FP"]
[236,"Pinhorn",null,null,null,null,null,null,null,null,null,null,null,null,null,null,null,null,null,null,null,null,null,null,null,null,null,null,null,null,null,null,null,null,null,null,null,null,"Pinhorn"]
[270,"Pleasant View",null,null,null,null,null,null,null,null,null,null,null,null,null,null,null,null,null,null,null,null,null,null,null,null,null,null,null,null,null,null,null,null,null,null,null,null,"Pleasant View"]
[74,"Pollockville",null,null,null,null,null,null,null,null,null,null,null,null,null,null,null,null,null,null,null,null,null,null,null,null,null,null,null,null,null,null,null,null,null,null,null,null,"Pollockville"]
[129,"Porcupine",null,null,null,null,null,null,null,null,null,null,null,null,null,null,null,null,null,null,null,null,null,null,null,null,null,null,null,null,null,null,null,null,null,null,null,null,"Porcupine"]
[275,"Prentiss",null,null,null,null,null,null,null,null,null,null,null,null,null,null,null,null,null,null,null,null,null,null,null,null,null,null,null,null,null,null,null,null,null,null,null,null,"Prentiss"]
[250,"Priddis Observatory",null,null,null,null,null,null,null,null,null,null,null,null,null,null,null,null,null,null,null,null,null,null,null,null,null,null,null,null,null,null,null,null,null,null,null,null,"Priddis Observatory"]
[23,"Queenstown",null,null,null,null,null,null,null,null,null,null,null,null,null,null,null,null,null,null,null,null,null,null,null,null,null,null,null,null,null,null,null,null,null,null,null,null,"Queenstown"]
[185,"Radway",null,null,null,null,null,null,null,null,null,null,null,null,null,null,null,null,null,null,null,null,null,null,null,null,null,null,null,null,null,null,null,null,null,null,null,null,"Radway"]
[271,"Rainier",null,null,null,null,null,null,null,null,null,null,null,null,null,null,null,null,null,null,null,null,null,null,null,null,null,null,null,null,null,null,null,null,null,null,null,null,"Rainier"]
[225,"Ralston",null,null,null,null,null,null,null,null,null,null,null,null,null,null,null,null,null,null,null,null,null,null,null,null,null,null,null,null,null,null,null,null,null,null,null,null,"Ralston"]
[264,"Ranfurly",null,null,null,null,null,null,null,null,null,null,null,null,null,null,null,null,null,null,null,null,null,null,null,null,null,null,null,null,null,null,null,null,null,null,null,null,"Ranfurly"]
[121,"Raymond",null,null,null,null,null,null,null,null,null,null,null,null,null,null,null,null,null,null,null,null,null,null,null,null,null,null,null,null,null,null,null,null,null,null,null,null,"Raymond"]
[297,"Red Coat",null,null,null,null,null,null,null,null,null,null,null,null,null,null,null,null,null,null,null,null,null,null,null,null,null,null,null,null,null,null,null,null,null,null,null,null,"Red Coat"]
[31,"Red Deer",null,null,null,null,null,null,null,null,null,null,null,null,null,null,null,null,null,null,null,null,null,null,null,null,null,null,null,null,null,null,null,null,null,null,null,null,"Red Deer"]
[281,"Redwater",null,null,null,null,null,null,null,null,null,null,null,null,null,null,null,null,null,null,null,null,null,null,null,null,null,null,null,null,null,null,null,null,null,null,null,null,"Redwater"]
[142,"Ribstone",null,null,null,null,null,null,null,null,null,null,null,null,null,null,null,null,null,null,null,null,null,null,null,null,null,null,null,null,null,null,null,null,null,null,null,null,"Ribstone"]
[99,"Rich Lake",null,null,null,null,null,null,null,null,null,null,null,null,null,null,null,null,null,null,null,null,null,null,null,null,null,null,null,null,null,null,null,null,null,null,null,null,"Rich Lake"]
[37,"Rivercourse",null,null,null,null,null,null,null,null,null,null,null,null,null,null,null,null,null,null,null,null,null,null,null,null,null,null,null,null,null,null,null,null,null,null,null,null,"Rivercourse"]
[257,"Rocky Lane",null,null,null,null,null,null,null,null,null,null,null,null,null,null,null,null,null,null,null,null,null,null,null,null,null,null,null,null,null,null,null,null,null,null,null,null,"Rocky Lane"]
[32,"Rocky Mnt H",null,null,null,null,null,null,null,null,null,null,null,null,null,null,null,null,null,null,null,null,null,null,null,null,null,null,null,null,null,null,null,null,null,null,null,null,"Rocky Mnt H"]
[143,"Rolling Hills",null,null,null,null,null,null,null,null,null,null,null,null,null,null,null,null,null,null,null,null,null,null,null,null,null,null,null,null,null,null,null,null,null,null,null,null,"Rolling Hills"]
[287,"Roma",null,null,null,null,null,null,null,null,null,null,null,null,null,null,null,null,null,null,null,null,null,null,null,null,null,null,null,null,null,null,null,null,null,null,null,null,"Roma"]
[186,"Rosalind",null,null,null,null,null,null,null,null,null,null,null,null,null,null,null,null,null,null,null,null,null,null,null,null,null,null,null,null,null,null,null,null,null,null,null,null,"Rosalind"]
[187,"Rosemary",null,null,null,null,null,null,null,null,null,null,null,null,null,null,null,null,null,null,null,null,null,null,null,null,null,null,null,null,null,null,null,null,null,null,null,null,{"$f":"B197","v":"Rosemary"}]
[300,"Ross Creek",null,null,null,null,null,null,null,null,null,null,null,null,null,null,null,null,null,null,null,null,null,null,null,null,null,null,null,null,null,null,null,null,null,null,null,null,"Ross Creek"]
[211,"Rush Lake",null,null,null,null,null,null,null,null,null,null,null,null,null,null,null,null,null,null,null,null,null,null,null,null,null,null,null,null,null,null,null,null,null,null,null,null,"Rush Lake"]
[188,"Rycroft",null,null,null,null,null,null,null,null,null,null,null,null,null,null,null,null,null,null,null,null,null,null,null,null,null,null,null,null,null,null,null,null,null,null,null,null,"Rycroft"]
[241,"Sandy Lake",null,null,null,null,null,null,null,null,null,null,null,null,null,null,null,null,null,null,null,null,null,null,null,null,null,null,null,null,null,null,null,null,null,null,null,null,"Sandy Lake"]
[189,"Savanna",null,null,null,null,null,null,null,null,null,null,null,null,null,null,null,null,null,null,null,null,null,null,null,null,null,null,null,null,null,null,null,null,null,null,null,null,"Savanna"]
[61,"Schuler",null,null,null,null,null,null,null,null,null,null,null,null,null,null,null,null,null,null,null,null,null,null,null,null,null,null,null,null,null,null,null,null,null,null,null,null,"Schuler"]
[136,"Sedalia",null,null,null,null,null,null,null,null,null,null,null,null,null,null,null,null,null,null,null,null,null,null,null,null,null,null,null,null,null,null,null,null,null,null,null,null,"Sedalia"]
[190,"Seven Persons",null,null,null,null,null,null,null,null,null,null,null,null,null,null,null,null,null,null,null,null,null,null,null,null,null,null,null,null,null,null,null,null,null,null,null,null,"Seven Persons"]
[230,"Sheerness",null,null,null,null,null,null,null,null,null,null,null,null,null,null,null,null,null,null,null,null,null,null,null,null,null,null,null,null,null,null,null,null,null,null,null,null,"Sheerness"]
[191,"Shonts",null,null,null,null,null,null,null,null,null,null,null,null,null,null,null,null,null,null,null,null,null,null,null,null,null,null,null,null,null,null,null,null,null,null,null,null,"Shonts"]
[100,"Slave Lake",null,null,null,null,null,null,null,null,null,null,null,null,null,null,null,null,null,null,null,null,null,null,null,null,null,null,null,null,null,null,null,null,null,null,null,null,"Slave Lake"]
[101,"Smoky Lake",null,null,null,null,null,null,null,null,null,null,null,null,null,null,null,null,null,null,null,null,null,null,null,null,null,null,null,null,null,null,null,null,null,null,null,null,"Smoky Lake"]
[228,"Social Plains",null,null,null,null,null,null,null,null,null,null,null,null,null,null,null,null,null,null,null,null,null,null,null,null,null,null,null,null,null,null,null,null,null,null,null,null,"Social Plains"]
[156,"Spondin",null,null,null,null,null,null,null,null,null,null,null,null,null,null,null,null,null,null,null,null,null,null,null,null,null,null,null,null,null,null,null,null,null,null,null,null,"Spondin"]
[130,"Spring Creek",null,null,null,null,null,null,null,null,null,null,null,null,null,null,null,null,null,null,null,null,null,null,null,null,null,null,null,null,null,null,null,null,null,null,null,null,"Spring Creek"]
[192,"St Lina",null,null,null,null,null,null,null,null,null,null,null,null,null,null,null,null,null,null,null,null,null,null,null,null,null,null,null,null,null,null,null,null,null,null,null,null,"St Lina"]
[45,"St Paul",null,null,null,null,null,null,null,null,null,null,null,null,null,null,null,null,null,null,null,null,null,null,null,null,null,null,null,null,null,null,null,null,null,null,null,null,"St Paul"]
[206,"St. Albert",null,null,null,null,null,null,null,null,null,null,null,null,null,null,null,null,null,null,null,null,null,null,null,null,null,null,null,null,null,null,null,null,null,null,null,null,"St. Albert"]
[268,"St. Francis",null,null,null,null,null,null,null,null,null,null,null,null,null,null,null,null,null,null,null,null,null,null,null,null,null,null,null,null,null,null,null,null,null,null,null,null,"St. Francis"]
[253,"St. Mary Reservoir",null,null,null,null,null,null,null,null,null,null,null,null,null,null,null,null,null,null,null,null,null,null,null,null,null,null,null,null,null,null,null,null,null,null,null,null,"St. Mary Reservoir"]
[193,"Standard",null,null,null,null,null,null,null,null,null,null,null,null,null,null,null,null,null,null,null,null,null,null,null,null,null,null,null,null,null,null,null,null,null,null,null,null,"Standard"]
[119,"Stavely",null,null,null,null,null,null,null,null,null,null,null,null,null,null,null,null,null,null,null,null,null,null,null,null,null,null,null,null,null,null,null,null,null,null,null,null,"Stavely"]
[17,"Stettler",null,null,null,null,null,null,null,null,null,null,null,null,null,null,null,null,null,null,null,null,null,null,null,null,null,null,null,null,null,null,null,null,null,null,null,null,"Stettler"]
[296,"Steveville",null,null,null,null,null,null,null,null,null,null,null,null,null,null,null,null,null,null,null,null,null,null,null,null,null,null,null,null,null,null,null,null,null,null,null,null,"Steveville"]
[111,"Stony Plain",null,null,null,null,null,null,null,null,null,null,null,null,null,null,null,null,null,null,null,null,null,null,null,null,null,null,null,null,null,null,null,null,null,null,null,null,"Stony Plain"]
[122,"Strathmore",null,null,null,null,null,null,null,null,null,null,null,null,null,null,null,null,null,null,null,null,null,null,null,null,null,null,null,null,null,null,null,null,null,null,null,null,"Strathmore"]
[251,"Streeter Creek",null,null,null,null,null,null,null,null,null,null,null,null,null,null,null,null,null,null,null,null,null,null,null,null,null,null,null,null,null,null,null,null,null,null,null,null,"Streeter Creek"]
[28,"Sundre",null,null,null,null,null,null,null,null,null,null,null,null,null,null,null,null,null,null,null,null,null,null,null,null,null,null,null,null,null,null,null,null,null,null,null,null,"Sundre"]
[260,"Sunnynook",null,null,null,null,null,null,null,null,null,null,null,null,null,null,null,null,null,null,null,null,null,null,null,null,null,null,null,null,null,null,null,null,null,null,null,null,"Sunnynook"]
[194,"Tawatinaw",null,null,null,null,null,null,null,null,null,null,null,null,null,null,null,null,null,null,null,null,null,null,null,null,null,null,null,null,null,null,null,null,null,null,null,null,"Tawatinaw"]
[195,"Teepee Creek",null,null,null,null,null,null,null,null,null,null,null,null,null,null,null,null,null,null,null,null,null,null,null,null,null,null,null,null,null,null,null,null,null,null,null,null,"Teepee Creek"]
[252,"Tennessee Creek",null,null,null,null,null,null,null,null,null,null,null,null,null,null,null,null,null,null,null,null,null,null,null,null,null,null,null,null,null,null,null,null,null,null,null,null,"Tennessee Creek"]
[196,"Thorsby",null,null,null,null,null,null,null,null,null,null,null,null,null,null,null,null,null,null,null,null,null,null,null,null,null,null,null,null,null,null,null,null,null,null,null,null,"Thorsby"]
[283,"Three Creeks",null,null,null,null,null,null,null,null,null,null,null,null,null,null,null,null,null,null,null,null,null,null,null,null,null,null,null,null,null,null,null,null,null,null,null,null,"Three Creeks"]
[27,"Three Hills",null,null,null,null,null,null,null,null,null,null,null,null,null,null,null,null,null,null,null,null,null,null,null,null,null,null,null,null,null,null,null,null,null,null,null,null,"Three Hills"]
[226,"Tide Lake",null,null,null,null,null,null,null,null,null,null,null,null,null,null,null,null,null,null,null,null,null,null,null,null,null,null,null,null,null,null,null,null,null,null,null,null,"Tide Lake"]
[118,"Tomahawk",null,null,null,null,null,null,null,null,null,null,null,null,null,null,null,null,null,null,null,null,null,null,null,null,null,null,null,null,null,null,null,null,null,null,null,null,"Tomahawk"]
[258,"Tompkins Landing",null,null,null,null,null,null,null,null,null,null,null,null,null,null,null,null,null,null,null,null,null,null,null,null,null,null,null,null,null,null,null,null,null,null,null,null,"Tompkins Landing"]
[133,"Travers",null,null,null,null,null,null,null,null,null,null,null,null,null,null,null,null,null,null,null,null,null,null,null,null,null,null,null,null,null,null,null,null,null,null,null,null,"Travers"]
[158,"Tulliby Lake",null,null,null,null,null,null,null,null,null,null,null,null,null,null,null,null,null,null,null,null,null,null,null,null,null,null,null,null,null,null,null,null,null,null,null,null,"Tulliby Lake"]
[246,"Twin Lakes",null,null,null,null,null,null,null,null,null,null,null,null,null,null,null,null,null,null,null,null,null,null,null,null,null,null,null,null,null,null,null,null,null,null,null,null,"Twin Lakes"]
[303,"Twin River",null,null,null,null,null,null,null,null,null,null,null,null,null,null,null,null,null,null,null,null,null,null,null,null,null,null,null,null,null,null,null,null,null,null,null,null,"Twin River"]
[40,"Two Hills",null,null,null,null,null,null,null,null,null,null,null,null,null,null,null,null,null,null,null,null,null,null,null,null,null,null,null,null,null,null,null,null,null,null,null,null,"Two Hills"]
[53,"Valleyview",null,null,null,null,null,null,null,null,null,null,null,null,null,null,null,null,null,null,null,null,null,null,null,null,null,null,null,null,null,null,null,null,null,null,null,null,"Valleyview"]
[3,"Vauxhall",null,null,null,null,null,null,null,null,null,null,null,null,null,null,null,null,null,null,null,null,null,null,null,null,null,null,null,null,null,null,null,null,null,null,null,null,"Vauxhall"]
[216,"Vega",null,null,null,null,null,null,null,null,null,null,null,null,null,null,null,null,null,null,null,null,null,null,null,null,null,null,null,null,null,null,null,null,null,null,null,null,"Vega"]
[41,"Vegreville",null,null,null,null,null,null,null,null,null,null,null,null,null,null,null,null,null,null,null,null,null,null,null,null,null,null,null,null,null,null,null,null,null,null,null,null,"Vegreville"]
[263,"Verger",null,null,null,null,null,null,null,null,null,null,null,null,null,null,null,null,null,null,null,null,null,null,null,null,null,null,null,null,null,null,null,null,null,null,null,null,"Verger"]
[42,"Vermilion",null,null,null,null,null,null,null,null,null,null,null,null,null,null,null,null,null,null,null,null,null,null,null,null,null,null,null,null,null,null,null,null,null,null,null,null,"Vermilion"]
[295,"Vernon Lake",null,null,null,null,null,null,null,null,null,null,null,null,null,null,null,null,null,null,null,null,null,null,null,null,null,null,null,null,null,null,null,null,null,null,null,null,"Vernon Lake"]
[197,"Viking",null,null,null,null,null,null,null,null,null,null,null,null,null,null,null,null,null,null,null,null,null,null,null,null,null,null,null,null,null,null,null,null,null,null,null,null,"Viking"]
[198,"Vilna",null,null,null,null,null,null,null,null,null,null,null,null,null,null,null,null,null,null,null,null,null,null,null,null,null,null,null,null,null,null,null,null,null,null,null,null,"Vilna"]
[102,"Wainwright",null,null,null,null,null,null,null,null,null,null,null,null,null,null,null,null,null,null,null,null,null,null,null,null,null,null,null,null,null,null,null,null,null,null,null,null,"Wainwright"]
[223,"Wandering River",null,null,null,null,null,null,null,null,null,null,null,null,null,null,null,null,null,null,null,null,null,null,null,null,null,null,null,null,null,null,null,null,null,null,null,null,"Wandering River"]
[291,"Wardlow",null,null,null,null,null,null,null,null,null,null,null,null,null,null,null,null,null,null,null,null,null,null,null,null,null,null,null,null,null,null,null,null,null,null,null,null,"Wardlow"]
[235,"Warner",null,null,null,null,null,null,null,null,null,null,null,null,null,null,null,null,null,null,null,null,null,null,null,null,null,null,null,null,null,null,null,null,null,null,null,null,"Warner"]
[80,"Water Valley",null,null,null,null,null,null,null,null,null,null,null,null,null,null,null,null,null,null,null,null,null,null,null,null,null,null,null,null,null,null,null,null,null,null,null,null,"Water Valley"]
[199,"Wetaskiwin",null,null,null,null,null,null,null,null,null,null,null,null,null,null,null,null,null,null,null,null,null,null,null,null,null,null,null,null,null,null,null,null,null,null,null,null,"Wetaskiwin"]
[245,"Whitecourt",null,null,null,null,null,null,null,null,null,null,null,null,null,null,null,null,null,null,null,null,null,null,null,null,null,null,null,null,null,null,null,null,null,null,null,null,"Whitecourt"]
[280,"Whitemud Creek",null,null,null,null,null,null,null,null,null,null,null,null,null,null,null,null,null,null,null,null,null,null,null,null,null,null,null,null,null,null,null,null,null,null,null,null,"Whitemud Creek"]
[200,"Wimborne",null,null,null,null,null,null,null,null,null,null,null,null,null,null,null,null,null,null,null,null,null,null,null,null,null,null,null,null,null,null,null,null,null,null,null,null,"Wimborne"]
[292,"Winnifred",null,null,null,null,null,null,null,null,null,null,null,null,null,null,null,null,null,null,null,null,null,null,null,null,null,null,null,null,null,null,null,null,null,null,null,null,"Winnifred"]
[278,"Worsley",null,null,null,null,null,null,null,null,null,null,null,null,null,null,null,null,null,null,null,null,null,null,null,null,null,null,null,null,null,null,null,null,null,null,null,null,"Worsley"]
[62,"Wrentham",null,null,null,null,null,null,null,null,null,null,null,null,null,null,null,null,null,null,null,null,null,null,null,null,null,null,null,null,null,null,null,null,null,null,null,null,{"$f":"B261","v":"Wrentham"}]
[14,"Youngstown",null,null,null,null,null,null,null,null,null,null,null,null,null,null,null,null,null,null,null,null,null,null,null,null,null,null,null,null,null,null,null,null,null,null,null,null,"Youngstown"]

{"sheet":"MDI Farmer Rates (data)","index":5,"n_rows":261,"n_cols":12,"rows_kept":261,"cut":false,"hidden":true,"merged":[]}
["risk_area","A","B","C","D",null,null,null,"Note: Check to unsure the Rate named range is still valid after update."]
["Abee",9.41,9.0299999999999994,6.98,6.79,null,null,null,"Modification History","Updated by","Description of Update","Status"]
["Acadia Valley",9.85,10.62,9.2799999999999994,9.64,null,null,null,"2020-01-14","Martine West","Data extracted from Envoy","Completed"]
["Aden",19.36,21.84,23.29,25.54,null,null,null,"2021-01-19","Martine West","Updated Risk Areas","Completed"]
["Albert Hall",9.85,9.76,7.51,7.37,null,null,null,"2021-01-20","Martine West","Updated data for Ras","Completed"]
["Alliance",9.16,9.2200000000000006,7.16,7.27,null,null,null,"2022-01-19","Martine West","Updated data","Completed"]
["Andrew",9.41,9.0299999999999994,6.98,6.79,null,null,null,"2023-01-23","Jim Baumgartner","Updated data","Completed"]
["Ardenville",10.55,11.3,9.6199999999999992,10.26,null,null,null,"2024-01-26","Jesse Trottier","Updated Marwayne station","Completed"]
["Athabasca",9.41,9.0299999999999994,6.98,6.79]
["Atlee",9.85,10.62,9.2799999999999994,9.64]
["Atmore",9.41,9.0299999999999994,6.98,6.79]
["Azure",7.34,8.42,7.14,7.53]
["BTAP",10.55,11.3,9.6199999999999992,10.26]
["Ballater",9.75,9.8000000000000007,8.42,8.34]
["Barnwell",10.55,11.3,9.6199999999999992,10.26]
["Barons",9.85,10.62,9.2799999999999994,9.64]
["Barrhead",9.41,9.0299999999999994,6.98,6.79]
["Bassano",9.85,10.62,9.2799999999999994,9.64]
["Battle River",6.48,6.48,5.13,5.14]
["Beaverdam",9.41,9.0299999999999994,6.98,6.79]
["Beaverlodge",9.75,9.8000000000000007,8.42,8.34]
["Beiseker",7.34,8.42,7.14,7.53]
["Bellshill",9.85,9.76,7.51,7.37]
["Big Valley",9.16,9.2200000000000006,7.16,7.27]
["Black Diamond",7.34,8.42,7.14,7.53]
["Blackie",9.85,10.62,9.2799999999999994,9.64]
["Bodo",9.16,9.2200000000000006,7.16,7.27]
["Bow Island South",9.85,10.62,9.2799999999999994,9.64]
["Breton",6.48,6.48,5.13,5.14]
["Brocket",9.85,10.62,9.2799999999999994,9.64]
["Brooks",9.85,10.62,9.2799999999999994,9.64]
["Brownvale",9.75,9.8000000000000007,8.42,8.34]
["Buffalo",9.85,10.62,9.2799999999999994,9.64]
["Bullhorn Coulee Reservoir Inlet",10.55,11.3,9.6199999999999992,10.26]
["Bullhorn Headwater",10.55,11.3,9.6199999999999992,10.26]
["Bullsprings",9.85,10.62,9.2799999999999994,9.64]
["Busby",9.41,9.0299999999999994,6.98,6.79]
["Cabin Lake",9.85,10.62,9.2799999999999994,9.64]
["Cadogan",9.16,9.2200000000000006,7.16,7.27]
["Calgary",7.34,8.42,7.14,7.53]
["Campsie",9.41,9.0299999999999994,6.98,6.79]
["Camrose",9.85,9.76,7.51,7.37]
["Cappon",9.85,10.62,9.2799999999999994,9.64]
["Cardston",9.85,10.62,9.2799999999999994,9.64]
["Carrot Creek",9.34,9.0299999999999994,6.98,6.79]
["Carseland",14.27,15.07,15.38,16.14]
["Carway",10.55,11.3,9.6199999999999992,10.26]
["Cereal",9.16,9.2200000000000006,7.16,7.27]
["Champion",9.85,10.62,9.2799999999999994,9.64]
["Chisholm",9.41,9.0299999999999994,6.98,6.79]
["Claresholm",9.85,10.62,9.2799999999999994,9.64]
["Cleardale",9.75,9.8000000000000007,8.42,8.34]
["Comrey",19.36,21.84,23.29,25.54]
["Consort",9.16,9.2200000000000006,7.16,7.27]
["Coronation",9.16,9.2200000000000006,7.16,7.27]
["Craigmyle",9.16,9.2200000000000006,7.16,7.27]
["Crestomere",6.48,6.48,5.13,5.14]
["Cross Drain 5",10.55,11.3,9.6199999999999992,10.26]
["Deadwood",9.75,9.8000000000000007,8.42,8.34]
["Del Bonita",9.85,10.62,9.2799999999999994,9.64]
["Delburne",6.48,6.48,5.13,5.14]
["Dewberry",9.85,9.76,7.51,7.37]
["Dickson Dam",6.48,6.48,5.13,5.14]
["Divide Hills",6.72,6.48,5.09,5.07]
["Drumheller",9.85,10.62,9.2799999999999994,9.64]
["Duck Lake",9.34,9.0299999999999994,6.98,6.79]
["Dupre",9.41,9.0299999999999994,6.98,6.79]
["Eaglesham",9.75,9.8000000000000007,8.42,8.34]
["Edgerton",9.85,9.76,7.51,7.37]
["Edmonton",9.85,9.76,7.51,7.37]
["Edson",6.48,6.48,5.13,5.14]
["Elbow",7.34,8.42,7.14,7.53]
["Elk Island Park",9.41,9.0299999999999994,6.98,6.79]
["Enchant",9.85,10.62,9.2799999999999994,9.64]
["Esther",10.55,11.3,9.6199999999999992,10.26]
["Etzikom",10.55,11.3,9.6199999999999992,10.26]
["Eureka River",10.39,10.27,8.42,8.34]
["Evansburg2",9.34,9.0299999999999994,6.98,6.79]
["Fairview",9.75,9.8000000000000007,8.42,8.34]
["Ferintosh",9.85,9.76,7.51,7.37]
["Fincastle",10.55,11.3,9.6199999999999992,10.26]
["Finnegan",9.85,10.62,9.2799999999999994,9.64]
["Fleet ",9.16,9.2200000000000006,7.16,7.27]
["Foremost",10.55,11.3,9.6199999999999992,10.26]
["Forestburg",9.85,9.76,7.51,7.37]
["Fort Macleod",9.85,10.62,9.2799999999999994,9.64]
["Ft Assiniboine",6.48,6.48,5.13,5.14]
["Ft Vermilion",9.75,9.8000000000000007,8.42,8.34]
["Gahern",19.36,21.84,23.29,25.54]
["Gilt Edge North",9.85,9.76,7.51,7.37]
["Gladstone",9.85,9.76,7.51,7.37]
["Gleichen",7.34,8.42,7.14,7.53]
["Glenevis",9.41,9.0299999999999994,6.98,6.79]
["Gooseberry Lake",9.16,9.2200000000000006,7.16,7.27]
["Grassy Lake",10.55,11.3,9.6199999999999992,10.26]
["Greencourt",9.42,9.0299999999999994,6.98,6.79]
["Halkirk",9.16,9.2200000000000006,7.16,7.27]
["Hand Hills",9.16,9.2200000000000006,7.16,7.27]
["Hawk Hills",9.75,9.8000000000000007,8.42,8.34]
["Hazel",9.75,9.8000000000000007,8.42,8.34]
["Hemaruka",9.85,10.62,9.2799999999999994,9.64]
["Hespero",6.48,6.48,5.13,5.14]
["High Level",10.38,10.27,8.42,8.34]
["High Prairie",9.75,9.8000000000000007,8.42,8.34]
["High Prairie - Banana Belt",9.75,9.8000000000000007,8.42,8.34]
["Hilda",19.309999999999999,21.18,21.95,23.32]
["Hines Creek",9.75,9.8000000000000007,8.42,8.34]
["Holden",9.85,9.76,7.51,7.37]
["Homestead Coulee",9.16,9.2200000000000006,6.81,6.86]
["Hoselaw",9.41,9.0299999999999994,6.98,6.79]
["Hughenden",9.85,9.76,7.51,7.37]
["Hussar",9.85,10.62,9.2799999999999994,9.64]
["Iddesleigh",9.89,10.62,9.08,9.4700000000000006]
["Irvine",10.55,11.3,9.6199999999999992,10.26]
["Jean Cote",9.75,9.8000000000000007,8.42,8.34]
["Keg River",9.75,9.8000000000000007,8.42,8.34]
["Keoma",7.34,8.42,7.14,7.53]
["Kessler",9.16,9.2200000000000006,7.16,7.27]
["Ketchum Creek",10.55,11.3,9.48,10.119999999999999]
["Killam",9.85,9.76,7.51,7.37]
["Kinikinik",9.34,9.0299999999999994,6.98,6.79]
["Kinsella",9.85,9.76,7.51,7.37]
["Kirriemuir",9.16,9.2200000000000006,7.16,7.27]
["Kitscoty",9.85,9.76,7.51,7.37]
["La Crete",9.75,9.8000000000000007,8.42,8.34]
["La Glace",9.75,9.8000000000000007,8.42,8.34]
["Lac La Biche",9.41,9.0299999999999994,6.98,6.79]
["Lacombe",6.48,6.48,5.13,5.14]
["Lathom",9.85,10.62,9.2799999999999994,9.64]
["Lee Creek",10.55,11.3,9.6199999999999992,10.26]
["Leedale",6.48,6.48,5.13,5.14]
["Legal",9.41,9.0299999999999994,6.98,6.79]
["Lethbridge",10.55,11.3,9.6199999999999992,10.26]
["Lindbergh",9.85,9.76,7.51,7.37]
["Linden",6.48,6.48,5.13,5.14]
["Little Paddle Headwaters",9.41,9.0299999999999994,6.98,6.79]
["Livingston",7.34,8.42,7.14,7.53]
["Lloydminster",9.85,9.76,7.51,7.37]
["Lodge Creek",10.55,11.3,9.6199999999999992,10.26]
["Magee Lake",6.48,6.48,5.13,5.14]
["Manning",9.75,9.8000000000000007,8.42,8.34]
["Mannville",9.41,9.0299999999999994,6.98,6.79]
["Manyberries",10.55,11.3,9.6199999999999992,10.26]
["Marwayne",15.1,15.14,14.5,14.5]
["Masinisan",10.55,11.3,9.6199999999999992,10.26]
["Mayerthorpe",6.48,6.48,5.13,5.14]
["Medicine Hat",10.55,11.3,9.6199999999999992,10.26]
["Medicine Lodge",9.85,10.62,9.2799999999999994,9.64]
["Milk River",10.55,11.3,9.6199999999999992,10.26]
["Milk River Reservoir",10.55,11.3,9.6199999999999992,10.26]
["Milk River Ridge",10.55,11.3,9.6199999999999992,10.26]
["Morrin",7.34,8.42,7.14,7.53]
["Mossleigh",7.34,8.42,7.14,7.53]
["Mundare",9.41,9.0299999999999994,6.98,6.79]
["Myrnam",9.41,9.0299999999999994,6.98,6.79]
["Neir",6.48,6.48,5.13,5.14]
["New Sarepta",9.85,9.76,7.51,7.37]
["Olds",6.48,6.48,5.13,5.14]
["Oliver",9.41,9.0299999999999994,6.98,6.79]
["Onefour",10.55,11.3,9.6199999999999992,10.26]
["Oyen",10.55,11.3,9.6199999999999992,10.26]
["Paddle Dam",9.41,9.0299999999999994,6.98,6.79]
["Pakowki Lake",10.55,11.3,9.6199999999999992,10.26]
["Parlby Creek",6.48,6.48,5.13,5.14]
["Patricia",9.85,10.62,9.2799999999999994,9.64]
["Peavine",9.75,9.8000000000000007,8.42,8.34]
["Peoria",9.75,9.8000000000000007,8.42,8.34]
["Pibroch",13.81,13.47,10.54,10.43]
["Picture Butte",10.55,11.3,9.6199999999999992,10.26]
["Pincher Creek",9.85,10.62,9.2799999999999994,9.64]
["Pine Coulee FP",7.34,8.42,7.14,7.53]
["Pinhorn",10.55,11.3,9.6199999999999992,10.26]
["Pleasant View",9.34,9.0299999999999994,6.98,6.79]
["Pollockville",9.85,10.62,9.2799999999999994,9.64]
["Porcupine",7.34,8.42,7.14,7.53]
["Prentiss",6.46,6.48,5.13,5.14]
["Priddis Observatory",7.34,8.42,7.14,7.53]
["Queenstown",9.85,10.62,9.2799999999999994,9.64]
["Radway",9.41,9.0299999999999994,6.98,6.79]
["Rainier",9.85,10.62,9.2799999999999994,9.64]
["Ralston",9.85,10.62,9.2799999999999994,9.64]
["Ranfurly",9.85,9.76,7.51,7.37]
["Raymond",10.55,11.3,9.6199999999999992,10.26]
["Red Coat",19.36,21.84,23.29,25.54]
["Red Deer",6.48,6.48,5.13,5.14]
["Redwater",9.42,9.0299999999999994,6.98,6.79]
["Ribstone",9.85,9.76,7.51,7.37]
["Rich Lake",9.41,9.0299999999999994,6.98,6.79]
["Rivercourse",9.85,9.76,7.51,7.37]
["Rocky Lane",9.16,9.2200000000000006,7.16,7.27]
["Rocky Mnt H",6.48,6.48,5.13,5.14]
["Rolling Hills",9.85,10.62,9.2799999999999994,9.64]
["Roma",10.38,10.27,8.42,8.34]
["Rosalind",9.85,9.76,7.51,7.37]
["Rosemary",9.85,10.62,9.2799999999999994,9.64]
["Ross Creek",13.96,13.59,13.26,12.97]
["Rush Lake",10.55,11.3,9.6199999999999992,10.26]
["Rycroft",9.75,9.8000000000000007,8.42,8.34]
["Sage Creek",19.36,21.84,23.29,25.54]
["Sandy Lake",9.41,9.0299999999999994,6.98,6.79]
["Savanna",9.75,9.8000000000000007,8.42,8.34]
["Schuler",10.55,11.3,9.6199999999999992,10.26]
["Sedalia",9.85,10.62,9.2799999999999994,9.64]
["Seven Persons",10.55,11.3,9.6199999999999992,10.26]
["Sheerness",9.16,9.2200000000000006,7.16,7.27]
["Shonts",9.85,9.76,7.51,7.37]
["Slave Lake",9.75,9.8000000000000007,8.42,8.34]
["Smoky Lake",9.41,9.0299999999999994,6.98,6.79]
["Social Plains",9.85,10.62,9.2799999999999994,9.64]
["Spondin",9.16,9.2200000000000006,7.16,7.27]
["Spring Creek",9.75,9.8000000000000007,8.42,8.34]
["St Lina",9.41,9.0299999999999994,6.98,6.79]
["St Paul",9.41,9.0299999999999994,6.98,6.79]
["St. Albert",9.85,9.76,7.51,7.37]
["St. Francis",6.46,6.48,5.13,5.14]
["St. Mary Reservoir",10.55,11.3,9.6199999999999992,10.26]
["Standard",7.34,8.42,7.14,7.53]
["Stavely",9.85,10.62,9.2799999999999994,9.64]
["Stettler",6.48,6.48,5.13,5.14]
["Steveville",19.309999999999999,21.18,21.95,23.32]
["Stony Plain",9.85,9.76,7.51,7.37]
["Strathmore",7.34,8.42,7.14,7.53]
["Streeter Creek",7.34,8.42,7.14,7.53]
["Sundre",6.48,6.48,5.13,5.14]
["Sunnynook",9.16,9.2200000000000006,7.16,7.27]
["Tawatinaw",9.41,9.0299999999999994,6.98,6.79]
["Teepee Creek",9.75,9.8000000000000007,8.42,8.34]
["Tennessee Creek",10.55,11.3,9.6199999999999992,10.26]
["Thorsby",6.48,6.48,5.13,5.14]
["Three Creeks",10.39,10.27,8.42,8.34]
["Three Hills",7.34,8.42,7.14,7.53]
["Tide Lake",9.85,10.62,9.2799999999999994,9.64]
["Tomahawk",6.48,6.48,5.13,5.14]
["Tompkins Landing",9.75,9.8000000000000007,8.42,8.34]
["Travers",9.85,10.62,9.2799999999999994,9.64]
["Tulliby Lake",9.85,9.76,7.51,7.37]
["Twin Lakes",9.41,9.0299999999999994,6.98,6.79]
["Twin River",19.36,21.84,23.29,25.54]
["Two Hills",9.85,9.76,7.51,7.37]
["Valleyview",9.75,9.8000000000000007,8.42,8.34]
["Vauxhall",9.85,10.62,9.2799999999999994,9.64]
["Vega",9.41,9.0299999999999994,6.98,6.79]
["Vegreville",9.85,9.76,7.51,7.37]
["Verger",9.85,10.62,9.2799999999999994,9.64]
["Vermilion",9.85,9.76,7.51,7.37]
["Vernon Lake",19.36,21.84,23.29,25.54]
["Viking",9.85,9.76,7.51,7.37]
["Vilna",9.41,9.0299999999999994,6.98,6.79]
["Wainwright",9.85,9.76,7.51,7.37]
["Wandering River",9.41,9.0299999999999994,6.98,6.79]
["Wardlow",17.82,19.68,16.82,17.54]
["Warner",10.55,11.3,9.6199999999999992,10.26]
["Water Valley",6.48,6.48,5.13,5.14]
["Wetaskiwin",6.48,6.48,5.13,5.14]
["Whitecourt",9.41,9.0299999999999994,6.98,6.79]
["Whitemud Creek",10.39,10.27,8.42,8.34]
["Wimborne",6.48,6.48,5.13,5.14]
["Winnifred",17.82,19.68,16.82,17.54]
["Worsley",10.39,10.27,8.42,8.34]
["Wrentham",10.55,11.3,9.6199999999999992,10.26]
["Youngstown",9.16,9.2200000000000006,7.16,7.27]

{"sheet":"Properties (data)","index":6,"n_rows":10,"n_cols":15,"rows_kept":10,"cut":false,"hidden":true,"merged":[]}
[null,"Common Data","Local Properties"]
["Property","Value","Property","Value",null,null,null,null,null,null,null,"Modification History","Updated by","Description of Update","Status"]
["Hail Factor",null,"Crop Year",2024,null,null,null,null,null,null,null,"2020-11-19","Martine West","Updated year, powerusers","Completed"]
["ReplyEmailAddress","Info@afsc.ca","PowerUsers","<bnewman><mbarefoot>",null,null,null,null,null,null,null,"2021-01-21","Martine West","Options extracted from TING4 ","Completed"]
["LogoFile","CAP AFSC AB CAN bw.jpg",null,null,null,null,null,null,null,null,null,"2022-12-01","Martine West","Removed SAT from calc name","Completed"]
["DataFilePath1","\\\\hs-teams.afsc.ca@SSL\\DavWWWRoot\\pnp\\pnp\\Calculators\\","LOW PRICE OPTION",7.4999999999999997E-2,null,null,null,null,null,null,null,"2023-01-25","Jim Baumgartner","Updated Price Options."]
["DataFilePath2","\\\\homestead.afsc.ca@SSL\\DavWWWRoot\\wrkres\\Documents","HIGH PRICE OPTION",9.7000000000000003E-2,null,null,null,null,null,null,null,"2023-12-06","Jim Baumgartner","Updated Crop Year to 2024"]
["CommonDataFile","ManualCalcCommonData",null,null,null,null,null,null,null,null,null,"2024-01-08","Jim Baumgartner","Update the Low and High Price Options."]
["ModulePath","\\\\hs-teams.afsc.ca@SSL\\DavWWWRoot\\pnp\\pnp\\Calculators\\","MDI_Cov_Prem_Calc"]
["ModuleName","CalculatorMacros.code"]